{"text_format":"1","workbook":"xlsx","n_sheets":5,"sheets":["CONFIGURATOR","QUOTE","MAS BOM","Sheet1","DATA"],"not_rendered":{"charts":0,"images":4,"macros":1,"external_links":2,"defined_names":64,"comments":0,"pivot_tables":0},"unopened":[],"bounds":{"document_bytes":16777216,"sheet_cells":100000,"rows_first":2000,"rows_last":500,"rows_between":2000,"halvings":0,"cell_chars":16384,"cell_head_chars":4096},"cells_cut":0,"cells_raw":0,"read":"whole","date_system":"1900"}

{"sheet":"CONFIGURATOR","index":0,"n_rows":110,"n_cols":25,"rows_kept":110,"cut":false,"hidden":false,"merged":[[21,16,21,18],[21,4,21,10],[26,16,26,17],[27,5,27,16],[26,5,26,9],[7,14,9,15],[2,8,2,13],[3,8,3,13],[4,8,4,13],[21,12,21,14],[30,4,30,10],[30,12,30,14],[30,16,30,18],[35,5,35,9],[35,16,35,17],[36,5,36,16],[39,4,39,10],[39,12,39,14],[39,16,39,18],[44,5,44,9],[44,16,44,17],[45,5,45,16],[48,4,48,10],[48,12,48,14],[48,16,48,18],[53,5,53,9],[53,16,53,17],[54,5,54,16],[57,4,57,10],[57,12,57,14],[57,16,57,18],[62,5,62,9],[62,16,62,17],[63,5,63,16],[66,4,66,10],[66,12,66,14],[66,16,66,18],[71,5,71,9],[71,16,71,17],[72,5,72,16],[75,4,75,10],[75,12,75,14],[75,16,75,18],[80,5,80,9],[80,16,80,17],[81,5,81,16],[84,4,84,10],[84,12,84,14],[84,16,84,18],[89,5,89,9],[89,16,89,17],[90,5,90,16],[93,4,93,10],[93,12,93,14],[93,16,93,18],[98,5,98,9],[98,16,98,17],[108,5,108,16],[99,5,99,16],[102,4,102,10],[102,12,102,14],[102,16,102,18],[107,5,107,9],[107,16,107,17],[18,1,18,3],[17,1,17,3],[86,1,88,1],[95,1,97,1],[104,1,106,1],[41,1,43,1],[50,1,52,1],[59,1,61,1],[68,1,70,1],[77,1,79,1],[23,1,25,1],[32,1,34,1]]}
[]
[]
[null,null,null,null,null,null,null,null,"CBF FIXTURE CONFIGURATOR\n©2016 JESCO LIGHTING GROUP, LLC"]
[null,null,null,null,null,null,null,null,"Tel: 800.527.7796 Fax: 855.265.5768"]
[null,null,null,null,null,null,null,null,"www.jescolighting.com"]
[null,"R02072019"]
[null,"Customer:",null,null,null,null,null,"Project Designer:",null,null,null,null,null,null,"NOTES",null,"Quotation No."]
[null,null,null,null,null,null,null,"Project manager:",null,null,null,null,null,null,null,null,"Customer ID"]
[null,null,null,null,null,null,null,"Estimator:",null,null,null,null,null,null,null,null,"Expiration Date"]
[null,null,null,null,null,null,null,"Sales Agent",null,null,"Date",null,null,null,null,null,"Prepared By"]
[]
[null,"Fill out"]
[null,"Click on QUOTE tab "]
[null,"For prices & add accessories"]
[]
[]
[]
[null,"Press RESET CONFIGURATOR to clear all contents"]
[]
[]
[]
[null,null,null,null,"FIXTURE",null,null,null,null,null,null,null,"INPUT CABLE",null,null,null,"OUTPUT CABLE"]
[null,"RUN","QTY",null,"CHANNEL","LENS",null,"LED STRIP","CCT",null,"LENGTH",null,"TYPE","LENGTH","COLOR",null,"TYPE","LENGTH","COLOR"]
[null,"A"]
[null,null,null,null,null,null,null,null,null,{"$f":"VLOOKUP(I25,DATA!$K$31:$L$38,2,FALSE)","v":{"$error":"#N/A"}},null,null,null,null,null,null,null,null,null,null,{"$f":"CONCATENATE(H25,I25)","v":""},{"$f":"IF(R25>0,\"IN. \",\"\")","v":""},{"$f":"IF(Q25=\"NO OUTPUT\",\"DEC\",\"O\")","v":"O"},{"$f":"(VLOOKUP(U25,DATA!$K$49:$L$66,2,FALSE))*(VLOOKUP(F25,DATA!$K$70:$L$75,2,FALSE))","v":{"$error":"#N/A"}},{"$f":"X25*K25","v":{"$error":"#N/A"}}]
[null,null,null,null,null,null,null,null,null,null,null,null,null,null,null,null,null,null,null,null,{"$f":"CONCATENATE(H26,I26)","v":""},{"$f":"IF(R26>0,\"IN. \",\"\")","v":""},{"$f":"IF(Q26=\"NO OUTPUT\",\"DEC\",\"O\")","v":"O"}]
[null,"NAME","SCHEDULE",null,"MODEL NO.",{"$f":"DATA!P25","v":""},null,null,null,null,null,null,null,null,null,null,"FIXTURE WATTAGE:",null,{"$f":"DATA!AN12","v":""},null,"","","O"]
[null,null,null,null,"DESCRIPTIONS",{"$f":"DATA!P26","v":""},null,null,null,null,null,null,null,null,null,null,null,"*LUMENS:",{"$f":"IFERROR(Y25,\"\")","v":""},null,"","IN. ","O"]
[null,null,null,null,"NOTE",null,null,null,null,null,null,null,null,null,null,null,null,"DN/FIXTURE:",{"$f":"IF(C25>0,DATA!AX12,\"\")","v":""},null,"","IN. ","O"]
[null,null,null,null,null,null,null,null,null,null,null,null,null,null,null,null,null,null,null,null,"","","O"]
[null,null,null,null,"FIXTURE",null,null,null,null,null,null,null,"INPUT CABLE",null,null,null,"OUTPUT CABLE",null,null,null,"","","O"]
[null,"RUN","QTY",null,"CHANNEL","LENS",null,"LED STRIP","CCT",null,"LENGTH",null,"TYPE","LENGTH","COLOR",null,"TYPE","LENGTH","COLOR",null,null,"IN. ","O"]
[null,"B",null,null,null,null,null,null,null,null,null,null,null,null,null,null,null,null,null,null,"","","O"]
[null,null,null,null,null,null,null,null,null,{"$f":"VLOOKUP(I34,DATA!$K$31:$L$38,2,FALSE)","v":{"$error":"#N/A"}},null,null,null,null,null,null,null,null,null,null,"","","O",{"$f":"(VLOOKUP(U34,DATA!$K$49:$L$66,2,FALSE))*(VLOOKUP(F34,DATA!$K$70:$L$75,2,FALSE))","v":{"$error":"#N/A"}},{"$f":"X34*K34","v":{"$error":"#N/A"}}]
[null,null,null,null,null,null,null,null,null,null,null,null,null,null,null,null,null,null,null,null,"","","O"]
[null,"NAME","SCHEDULE",null,"MODEL NO.",{"$f":"DATA!P33","v":""},null,null,null,null,null,null,null,null,null,null,"FIXTURE WATTAGE:",null,{"$f":"DATA!AN13","v":""},null,"","","O"]
[null,null,null,null,"DESCRIPTIONS",{"$f":"DATA!P34","v":""},null,null,null,null,null,null,null,null,null,null,null,"*LUMENS:",{"$f":"IFERROR(Y34,\"\")","v":""},null,"","IN. ","O"]
[null,null,null,null,"NOTE",null,null,null,null,null,null,null,null,null,null,null,null,"DN/FIXTURE:",{"$f":"IF(C34>0,DATA!AX13,\"\")","v":""},null,"","IN. ","O"]
[null,null,null,null,null,null,null,null,null,null,null,null,null,null,null,null,null,null,null,null,"","","O"]
[null,null,null,null,"FIXTURE",null,null,null,null,null,null,null,"INPUT CABLE",null,null,null,"OUTPUT CABLE",null,null,null,"","","O"]
[null,"RUN","QTY",null,"CHANNEL","LENS",null,"LED STRIP","CCT",null,"LENGTH",null,"TYPE","LENGTH","COLOR",null,"TYPE","LENGTH","COLOR",null,null,"IN. ","O"]
[null,"C",null,null,null,null,null,null,null,null,null,null,null,null,null,null,null,null,null,null,"","","O"]
[null,null,null,null,null,null,null,null,null,{"$f":"VLOOKUP(I43,DATA!$K$31:$L$38,2,FALSE)","v":{"$error":"#N/A"}},null,null,null,null,null,null,null,null,null,null,"","","O",{"$f":"(VLOOKUP(U43,DATA!$K$49:$L$66,2,FALSE))*(VLOOKUP(F43,DATA!$K$70:$L$75,2,FALSE))","v":{"$error":"#N/A"}},{"$f":"X43*K43","v":{"$error":"#N/A"}}]
[null,null,null,null,null,null,null,null,null,null,null,null,null,null,null,null,null,null,null,null,"","","O"]
[null,"NAME","SCHEDULE",null,"MODEL NO.",{"$f":"DATA!P41","v":""},null,null,null,null,null,null,null,null,null,null,"FIXTURE WATTAGE:",null,{"$f":"DATA!AN14","v":""},null,"","","O"]
[null,null,null,null,"DESCRIPTIONS",{"$f":"DATA!P42","v":""},null,null,null,null,null,null,null,null,null,null,null,"*LUMENS:",{"$f":"IFERROR(Y43,\"\")","v":""},null,"","IN. ","O"]
[null,null,null,null,"NOTE",null,null,null,null,null,null,null,null,null,null,null,null,"DN/FIXTURE:",{"$f":"IF(C43>0,DATA!AX14,\"\")","v":""},null,"","IN. ","O"]
[null,null,null,null,null,null,null,null,null,null,null,null,null,null,null,null,null,null,null,null,"","","O"]
[null,null,null,null,"FIXTURE",null,null,null,null,null,null,null,"INPUT CABLE",null,null,null,"OUTPUT CABLE",null,null,null,"","","O"]
[null,"RUN","QTY",null,"CHANNEL","LENS",null,"LED STRIP","CCT",null,"LENGTH",null,"TYPE","LENGTH","COLOR",null,"TYPE","LENGTH","COLOR",null,null,"IN. ","O"]
[null,"D",null,null,null,null,null,null,null,null,null,null,null,null,null,null,null,null,null,null,"","","O"]
[null,null,null,null,null,null,null,null,null,{"$f":"VLOOKUP(I52,DATA!$K$31:$L$38,2,FALSE)","v":{"$error":"#N/A"}},null,null,null,null,null,null,null,null,null,null,"","","O",{"$f":"(VLOOKUP(U52,DATA!$K$49:$L$66,2,FALSE))*(VLOOKUP(F52,DATA!$K$70:$L$75,2,FALSE))","v":{"$error":"#N/A"}},{"$f":"X52*K52","v":{"$error":"#N/A"}}]
[null,null,null,null,null,null,null,null,null,null,null,null,null,null,null,null,null,null,null,null,"","","O"]
[null,"NAME","SCHEDULE",null,"MODEL NO.",{"$f":"DATA!P49","v":""},null,null,null,null,null,null,null,null,null,null,"FIXTURE WATTAGE:",null,{"$f":"DATA!AN15","v":""},null,"","","O"]
[null,null,null,null,"DESCRIPTIONS",{"$f":"DATA!P50","v":""},null,null,null,null,null,null,null,null,null,null,null,"*LUMENS:",{"$f":"IFERROR(Y52,\"\")","v":""},null,"","IN. ","O"]
[null,null,null,null,"NOTE",null,null,null,null,null,null,null,null,null,null,null,null,"DN:",{"$f":"IF(C52>0,DATA!AX15,\"\")","v":""},null,"","IN. ","O"]
[null,null,null,null,null,null,null,null,null,null,null,null,null,null,null,null,null,null,null,null,"","","O"]
[null,null,null,null,"FIXTURE",null,null,null,null,null,null,null,"INPUT CABLE",null,null,null,"OUTPUT CABLE",null,null,null,"","","O"]
[null,"RUN","QTY",null,"CHANNEL","LENS",null,"LED STRIP","CCT",null,"LENGTH",null,"TYPE","LENGTH","COLOR",null,"TYPE","LENGTH","COLOR",null,null,"IN. ","O"]
[null,"E",null,null,null,null,null,null,null,null,null,null,null,null,null,null,null,null,null,null,"","","O"]
[null,null,null,null,null,null,null,null,null,{"$f":"VLOOKUP(I61,DATA!$K$31:$L$38,2,FALSE)","v":{"$error":"#N/A"}},null,null,null,null,null,null,null,null,null,null,"","","O",{"$f":"(VLOOKUP(U61,DATA!$K$49:$L$66,2,FALSE))*(VLOOKUP(F61,DATA!$K$70:$L$75,2,FALSE))","v":{"$error":"#N/A"}},{"$f":"X61*K61","v":{"$error":"#N/A"}}]
[null,null,null,null,null,null,null,null,null,null,null,null,null,null,null,null,null,null,null,null,"","","O"]
[null,"NAME","SCHEDULE",null,"MODEL NO.",{"$f":"DATA!P57","v":""},null,null,null,null,null,null,null,null,null,null,"FIXTURE WATTAGE:",null,{"$f":"DATA!AN16","v":""},null,"","","O"]
[null,null,null,null,"DESCRIPTIONS",{"$f":"DATA!P58","v":""},null,null,null,null,null,null,null,null,null,null,null,"*LUMENS:",{"$f":"IFERROR(Y61,\"\")","v":""},null,"","IN. ","O"]
[null,null,null,null,"NOTE",null,null,null,null,null,null,null,null,null,null,null,null,"DN/FIXTURE:",{"$f":"IF(C61>0,DATA!AX16,\"\")","v":""},null,"","IN. ","O"]
[null,null,null,null,null,null,null,null,null,null,null,null,null,null,null,null,null,null,null,null,"","","O"]
[null,null,null,null,"FIXTURE",null,null,null,null,null,null,null,"INPUT CABLE",null,null,null,"OUTPUT CABLE",null,null,null,"","","O"]
[null,"RUN","QTY",null,"CHANNEL","LENS",null,"LED STRIP","CCT",null,"LENGTH",null,"TYPE","LENGTH","COLOR",null,"TYPE","LENGTH","COLOR",null,null,"IN. ","O"]
[null,"F",null,null,null,null,null,null,null,null,null,null,null,null,null,null,null,null,null,null,"","","O"]
[null,null,null,null,null,null,null,null,null,{"$f":"VLOOKUP(I70,DATA!$K$31:$L$38,2,FALSE)","v":{"$error":"#N/A"}},null,null,null,null,null,null,null,null,null,null,"","","O",{"$f":"(VLOOKUP(U70,DATA!$K$49:$L$66,2,FALSE))*(VLOOKUP(F70,DATA!$K$70:$L$75,2,FALSE))","v":{"$error":"#N/A"}},{"$f":"X70*K70","v":{"$error":"#N/A"}}]
[null,null,null,null,null,null,null,null,null,null,null,null,null,null,null,null,null,null,null,null,"","","O"]
[null,"NAME","SCHEDULE",null,"MODEL NO.",{"$f":"DATA!P65","v":""},null,null,null,null,null,null,null,null,null,null,"FIXTURE WATTAGE:",null,{"$f":"DATA!AN17","v":""},null,"","","O"]
[null,null,null,null,"DESCRIPTIONS",{"$f":"DATA!P66","v":""},null,null,null,null,null,null,null,null,null,null,null,"*LUMENS:",{"$f":"IFERROR(Y70,\"\")","v":""},null,"","IN. ","O"]
[null,null,null,null,"NOTE",null,null,null,null,null,null,null,null,null,null,null,null,"DN/FIXTURE:",{"$f":"IF(C70>0,DATA!AX17,\"\")","v":""},null,"","IN. ","O"]
[null,null,null,null,null,null,null,null,null,null,null,null,null,null,null,null,null,null,null,null,"","","O"]
[null,null,null,null,"FIXTURE",null,null,null,null,null,null,null,"INPUT CABLE",null,null,null,"OUTPUT CABLE",null,null,null,"","","O"]
[null,"RUN","QTY",null,"CHANNEL","LENS",null,"LED STRIP","CCT",null,"LENGTH",null,"TYPE","LENGTH","COLOR",null,"TYPE","LENGTH","COLOR",null,null,"IN. ","O"]
[null,"G",null,null,null,null,null,null,null,null,null,null,null,null,null,null,null,null,null,null,"","","O"]
[null,null,null,null,null,null,null,null,null,{"$f":"VLOOKUP(I79,DATA!$K$31:$L$38,2,FALSE)","v":{"$error":"#N/A"}},null,null,null,null,null,null,null,null,null,null,"","","O",{"$f":"(VLOOKUP(U79,DATA!$K$49:$L$66,2,FALSE))*(VLOOKUP(F79,DATA!$K$70:$L$75,2,FALSE))","v":{"$error":"#N/A"}},{"$f":"X79*K79","v":{"$error":"#N/A"}}]
[null,null,null,null,null,null,null,null,null,null,null,null,null,null,null,null,null,null,null,null,"","","O"]
[null,"NAME","SCHEDULE",null,"MODEL NO.",{"$f":"DATA!P73","v":""},null,null,null,null,null,null,null,null,null,null,"FIXTURE WATTAGE:",null,{"$f":"DATA!AN18","v":""},null,"","","O"]
[null,null,null,null,"DESCRIPTIONS",{"$f":"DATA!P74","v":""},null,null,null,null,null,null,null,null,null,null,null,"*LUMENS:",{"$f":"IFERROR(Y79,\"\")","v":""},null,"","IN. ","O"]
[null,null,null,null,"NOTE",null,null,null,null,null,null,null,null,null,null,null,null,"DN/FIXTURE:",{"$f":"IF(C79>0,DATA!AX18,\"\")","v":""},null,"","IN. ","O"]
[null,null,null,null,null,null,null,null,null,null,null,null,null,null,null,null,null,null,null,null,"","","O"]
[null,null,null,null,"FIXTURE",null,null,null,null,null,null,null,"INPUT CABLE",null,null,null,"OUTPUT CABLE",null,null,null,"","","O"]
[null,"RUN","QTY",null,"CHANNEL","LENS",null,"LED STRIP","CCT",null,"LENGTH",null,"TYPE","LENGTH","COLOR",null,"TYPE","LENGTH","COLOR",null,null,"IN. ","O"]
[null,"H",null,null,null,null,null,null,null,null,null,null,null,null,null,null,null,null,null,null,"","","O"]
[null,null,null,null,null,null,null,null,null,{"$f":"VLOOKUP(I88,DATA!$K$31:$L$38,2,FALSE)","v":{"$error":"#N/A"}},null,null,null,null,null,null,null,null,null,null,"","","O",{"$f":"(VLOOKUP(U88,DATA!$K$49:$L$66,2,FALSE))*(VLOOKUP(F88,DATA!$K$70:$L$75,2,FALSE))","v":{"$error":"#N/A"}},{"$f":"X88*K88","v":{"$error":"#N/A"}}]
[null,null,null,null,null,null,null,null,null,null,null,null,null,null,null,null,null,null,null,null,"","","O"]
[null,"NAME","SCHEDULE",null,"MODEL NO.",{"$f":"DATA!P81","v":""},null,null,null,null,null,null,null,null,null,null,"FIXTURE WATTAGE:",null,{"$f":"DATA!AN19","v":""},null,{"$f":"CONCATENATE(H90,I90)","v":""},{"$f":"IF(R90>0,\"IN. \",\"\")","v":""},{"$f":"IF(Q90=\"NO OUTPUT\",\"DEC\",\"O\")","v":"O"}]
[null,null,null,null,"DESCRIPTIONS",{"$f":"DATA!P82","v":""},null,null,null,null,null,null,null,null,null,null,null,"*LUMENS:",{"$f":"IFERROR(Y88,\"\")","v":""},null,"","IN. ","O"]
[null,null,null,null,"NOTE",null,null,null,null,null,null,null,null,null,null,null,null,"DN/FIXTURE:",{"$f":"IF(C88>0,DATA!AX19,\"\")","v":""},null,"","IN. ","O"]
[null,null,null,null,null,null,null,null,null,null,null,null,null,null,null,null,null,null,null,null,"","","O"]
[null,null,null,null,"FIXTURE",null,null,null,null,null,null,null,"INPUT CABLE",null,null,null,"OUTPUT CABLE",null,null,null,"","","O"]
[null,"RUN","QTY",null,"CHANNEL","LENS",null,"LED STRIP","CCT",null,"LENGTH",null,"TYPE","LENGTH","COLOR",null,"TYPE","LENGTH","COLOR",null,null,"IN. ","O"]
[null,"I",null,null,null,null,null,null,null,null,null,null,null,null,null,null,null,null,null,null,"","","O"]
[null,null,null,null,null,null,null,null,null,{"$f":"VLOOKUP(I97,DATA!$K$31:$L$38,2,FALSE)","v":{"$error":"#N/A"}},null,null,null,null,null,null,null,null,null,null,"","","O",{"$f":"(VLOOKUP(U97,DATA!$K$49:$L$66,2,FALSE))*(VLOOKUP(F97,DATA!$K$70:$L$75,2,FALSE))","v":{"$error":"#N/A"}},{"$f":"X97*K97","v":{"$error":"#N/A"}}]
[null,null,null,null,null,null,null,null,null,null,null,null,null,null,null,null,null,null,null,null,"","","O"]
[null,"NAME","SCHEDULE",null,"MODEL NO.",{"$f":"DATA!P89","v":""},null,null,null,null,null,null,null,null,null,null,"FIXTURE WATTAGE:",null,{"$f":"DATA!AN20","v":""},null,"","","O"]
[null,null,null,null,"DESCRIPTIONS",{"$f":"DATA!P90","v":""},null,null,null,null,null,null,null,null,null,null,null,"*LUMENS:",{"$f":"IFERROR(Y97,\"\")","v":""},null,"","IN. ","O"]
[null,null,null,null,"NOTE",null,null,null,null,null,null,null,null,null,null,null,null,"DN/FIXTURE:",{"$f":"IF(C97>0,DATA!AX20,\"\")","v":""},null,"","IN. ","O"]
[null,null,null,null,null,null,null,null,null,null,null,null,null,null,null,null,null,null,null,null,"","","O"]
[null,null,null,null,"FIXTURE",null,null,null,null,null,null,null,"INPUT CABLE",null,null,null,"OUTPUT CABLE",null,null,null,"","","O"]
[null,"RUN","QTY",null,"CHANNEL","LENS",null,"LED STRIP","CCT",null,"LENGTH",null,"TYPE","LENGTH","COLOR",null,"TYPE","LENGTH","COLOR",null,null,"IN. ","O"]
[null,"J",null,null,null,null,null,null,null,null,null,null,null,null,null,null,null,null,null,null,"","","O"]
[null,null,null,null,null,null,null,null,null,{"$f":"VLOOKUP(I106,DATA!$K$31:$L$38,2,FALSE)","v":{"$error":"#N/A"}},null,null,null,null,null,null,null,null,null,null,"","","O",{"$f":"(VLOOKUP(U106,DATA!$K$49:$L$66,2,FALSE))*(VLOOKUP(F106,DATA!$K$70:$L$75,2,FALSE))","v":{"$error":"#N/A"}},{"$f":"X106*K106","v":{"$error":"#N/A"}}]
[]
[null,"NAME","SCHEDULE",null,"MODEL NO.",{"$f":"DATA!P97","v":""},null,null,null,null,null,null,null,null,null,null,"FIXTURE WATTAGE:",null,{"$f":"DATA!AN21","v":""}]
[null,null,null,null,"DESCRIPTIONS",{"$f":"DATA!P98","v":""},null,null,null,null,null,null,null,null,null,null,null,"*LUMENS:",{"$f":"IFERROR(Y106,\"\")","v":""}]
[null,null,null,null,"NOTE",null,null,null,null,null,null,null,null,null,null,null,null,"DN/FIXTURE:",{"$f":"IF(C106>0,DATA!AX21,\"\")","v":""}]

{"sheet":"QUOTE","index":1,"n_rows":85,"n_cols":7,"rows_kept":85,"cut":false,"hidden":true,"merged":[[0,3,0,4],[71,1,71,2],[81,2,81,3],[74,2,74,3],[75,1,80,1],[75,2,75,3],[76,2,76,3],[77,2,77,3],[78,2,78,3],[79,2,79,3],[16,1,17,2],[50,0,50,1],[60,0,60,1],[64,0,64,1]]}
[]
[]
[null,null,"New York Corporate Office"]
[null,null,"15 Harbor Park Drive, Port Washington, NY 11050"]
[null,null,"Tel: 800.527.7796  Fax: 855.265.5768"]
[]
[null,null,"Los Angeles","DATE:",{"$f":"IF(CONFIGURATOR!M10>0,CONFIGURATOR!M10,\"\")","v":""}]
[null,null,"219 South 6th Avenue, City of Industry, California 91746 "]
[null,null,"Tel: 626.333.3661  Fax: 626.333.2955"]
[]
["CUSTOMER:",{"$f":"IF(CONFIGURATOR!C7>0,CONFIGURATOR!C7,\"\")","v":""},null,"Quotation No.:",{"$f":"IF(CONFIGURATOR!R7>0,CONFIGURATOR!R7,\"\")","v":""}]
[null,{"$f":"IF(CONFIGURATOR!C8>0,CONFIGURATOR!C8,\"\")","v":""},null,"Customer ID:",{"$f":"IF(CONFIGURATOR!R8>0,CONFIGURATOR!R8,\"\")","v":""}]
[null,{"$f":"IF(CONFIGURATOR!C9>0,CONFIGURATOR!C9,\"\")","v":""},null,"Expiration Date:",{"$f":"IF(CONFIGURATOR!R9>0,CONFIGURATOR!R9,\"\")","v":""}]
["Project Designer:",{"$f":"IF(CONFIGURATOR!I7>0,CONFIGURATOR!I7,\"\")","v":""},null,"Sales Agent:",{"$f":"IF(CONFIGURATOR!I10>0,CONFIGURATOR!I10,\"\")","v":""}]
["Project Manager:",{"$f":"IF(CONFIGURATOR!I8>0,CONFIGURATOR!I8,\"\")","v":""},null,"Prepared By:",{"$f":"IF(CONFIGURATOR!R10>0,CONFIGURATOR!R10,\"\")","v":""}]
["Estimator:",{"$f":"IF(CONFIGURATOR!I9>0,CONFIGURATOR!I9,\"\")","v":""}]
["Comments:"]
[]
[]
["QUANTITY","MODEL#","DESCRIPTION","UNIT COST","EXTENDED COST"]
["RUN A",{"$f":"IF(CONFIGURATOR!B28>0,CONCATENATE(\"NAME: \",CONFIGURATOR!B28),\"\")","v":""},{"$f":"IF(CONFIGURATOR!C28>0,CONCATENATE(\"SCHEDULE: \",CONFIGURATOR!C28),\"\")","v":""}]
[{"$f":"IF(CONFIGURATOR!C25>0,CONFIGURATOR!$C$25,\"\")","v":""},{"$f":"CONFIGURATOR!F27","v":""},{"$f":"IF(A22>0,CONFIGURATOR!F28,\"\")","v":""},{"$f":"DATA!AX12","v":""},{"$f":"IF(CONFIGURATOR!C25>0,D22*A22,\"\")","v":""}]
[]
["RUN B",{"$f":"IF(CONFIGURATOR!B37>0,CONCATENATE(\"NAME: \",CONFIGURATOR!B37),\"\")","v":""},{"$f":"IF(CONFIGURATOR!C37>0,CONCATENATE(\"SCHEDULE: \",CONFIGURATOR!C37),\"\")","v":""}]
[{"$f":"IF(CONFIGURATOR!C34>0,CONFIGURATOR!$C$34,\"\")","v":""},{"$f":"CONFIGURATOR!F36","v":""},{"$f":"IF(A22>0,CONFIGURATOR!F37,\"\")","v":""},{"$f":"DATA!AX13","v":""},{"$f":"IF(CONFIGURATOR!C34>0,D25*A25,\"\")","v":""}]
[]
["RUN C",{"$f":"IF(CONFIGURATOR!B46>0,CONCATENATE(\"NAME: \",CONFIGURATOR!B46),\"\")","v":""},{"$f":"IF(CONFIGURATOR!C46>0,CONCATENATE(\"SCHEDULE: \",CONFIGURATOR!C46),\"\")","v":""}]
[{"$f":"IF(CONFIGURATOR!$C$43>0,CONFIGURATOR!$C$43,\"\")","v":""},{"$f":"CONFIGURATOR!F45","v":""},{"$f":"IF(A28>0,CONFIGURATOR!F46,\"\")","v":""},{"$f":"DATA!AX14","v":""},{"$f":"IF(CONFIGURATOR!C43>0,D28*A28,\"\")","v":""}]
[]
["RUN D ",{"$f":"IF(CONFIGURATOR!B55>0,CONCATENATE(\"NAME: \",CONFIGURATOR!B55),\"\")","v":""},{"$f":"IF(CONFIGURATOR!C55>0,CONCATENATE(\"SCHEDULE: \",CONFIGURATOR!C55),\"\")","v":""}]
[{"$f":"IF(CONFIGURATOR!$C$52>0,CONFIGURATOR!$C$52,\"\")","v":""},{"$f":"CONFIGURATOR!F54","v":""},{"$f":"IF(A31>0,CONFIGURATOR!F55,\"\")","v":""},{"$f":"DATA!AX15","v":""},{"$f":"IF(CONFIGURATOR!C52>0,D31*A31,\"\")","v":""}]
[]
["RUN E",{"$f":"IF(CONFIGURATOR!B64>0,CONCATENATE(\"NAME: \",CONFIGURATOR!B64),\"\")","v":""},{"$f":"IF(CONFIGURATOR!C64>0,CONCATENATE(\"SCHEDULE: \",CONFIGURATOR!C64),\"\")","v":""}]
[{"$f":"IF(CONFIGURATOR!$C$61>0,CONFIGURATOR!$C$61,\"\")","v":""},{"$f":"CONFIGURATOR!F63","v":""},{"$f":"IF(A34>0,CONFIGURATOR!F64,\"\")","v":""},{"$f":"DATA!AX16","v":""},{"$f":"IF(CONFIGURATOR!C61>0,D34*A34,\"\")","v":""}]
[]
["RUN F",{"$f":"IF(CONFIGURATOR!B73>0,CONCATENATE(\"NAME: \",CONFIGURATOR!B73),\"\")","v":""},{"$f":"IF(CONFIGURATOR!C73>0,CONCATENATE(\"SCHEDULE: \",CONFIGURATOR!C73),\"\")","v":""}]
[{"$f":"IF(CONFIGURATOR!$C$70>0,CONFIGURATOR!$C$70,\"\")","v":""},{"$f":"CONFIGURATOR!F72","v":""},{"$f":"IF(A37>0,CONFIGURATOR!F73,\"\")","v":""},{"$f":"DATA!AX17","v":""},{"$f":"IF(CONFIGURATOR!C70>0,D37*A37,\"\")","v":""},2,{"$f":"IFERROR(IF(A37>0,A37*F37,A37*0),\"\")","v":""}]
[null,null,null,null,null,2,{"$f":"IFERROR(IF(A38>0,A38*F38,A38*0),\"\")","v":0}]
["RUN G ",{"$f":"IF(CONFIGURATOR!B82>0,CONCATENATE(\"NAME: \",CONFIGURATOR!B82),\"\")","v":""},{"$f":"IF(CONFIGURATOR!C82>0,CONCATENATE(\"SCHEDULE: \",CONFIGURATOR!C82),\"\")","v":""},null,null,3,{"$f":"IFERROR(IF(A39>0,A39*F39,A39*0),\"\")","v":""}]
[{"$f":"IF(CONFIGURATOR!$C$79>0,CONFIGURATOR!$C$79,\"\")","v":""},{"$f":"CONFIGURATOR!F81","v":""},{"$f":"IF(A40>0,CONFIGURATOR!F82,\"\")","v":""},{"$f":"DATA!AX18","v":""},{"$f":"IF(CONFIGURATOR!C79>0,D40*A40,\"\")","v":""},3,{"$f":"IFERROR(IF(A40>0,A40*F40,A40*0),\"\")","v":""}]
[]
["RUN H",{"$f":"IF(CONFIGURATOR!B91>0,CONCATENATE(\"NAME: \",CONFIGURATOR!B91),\"\")","v":""},{"$f":"IF(CONFIGURATOR!C91>0,CONCATENATE(\"SCHEDULE: \",CONFIGURATOR!C91),\"\")","v":""}]
[{"$f":"IF(CONFIGURATOR!$C$88>0,CONFIGURATOR!$C$88,\"\")","v":""},{"$f":"CONFIGURATOR!F90","v":""},{"$f":"IF(A43>0,CONFIGURATOR!F91,\"\")","v":""},{"$f":"DATA!AX19","v":""},{"$f":"IF(CONFIGURATOR!C88>0,D43*A43,\"\")","v":""}]
[]
["RUN I",{"$f":"IF(CONFIGURATOR!B100>0,CONCATENATE(\"NAME: \",CONFIGURATOR!B100),\"\")","v":""},{"$f":"IF(CONFIGURATOR!C100>0,CONCATENATE(\"SCHEDULE: \",CONFIGURATOR!C100),\"\")","v":""},null,null,3,{"$f":"IFERROR(IF(A45>0,A45*F45,A45*0),\"\")","v":""}]
[{"$f":"IF(CONFIGURATOR!$C$97>0,CONFIGURATOR!$C$97,\"\")","v":""},{"$f":"CONFIGURATOR!F99","v":""},{"$f":"IF(A46>0,CONFIGURATOR!F100,\"\")","v":""},{"$f":"DATA!AX20","v":""},{"$f":"IF(CONFIGURATOR!C97>0,D46*A46,\"\")","v":""}]
[]
["RUN J",{"$f":"IF(CONFIGURATOR!B109>0,CONCATENATE(\"NAME: \",CONFIGURATOR!B109),\"\")","v":""},{"$f":"IF(CONFIGURATOR!C109>0,CONCATENATE(\"SCHEDULE: \",CONFIGURATOR!C109),\"\")","v":""},null,null,3,{"$f":"IFERROR(IF(A48>0,A48*F48,A48*0),\"\")","v":""}]
[{"$f":"IF(CONFIGURATOR!$C$106>0,CONFIGURATOR!$C$106,\"\")","v":""},{"$f":"CONFIGURATOR!F108","v":""},{"$f":"IF(A49>0,CONFIGURATOR!F109,\"\")","v":""},{"$f":"DATA!AX21","v":""},{"$f":"IF(CONFIGURATOR!C106>0,D49*A49,\"\")","v":""},3,{"$f":"IFERROR(IF(A49>0,A49*F49,A49*0),\"\")","v":""}]
[]
["MOUNTING CLIPS / ACCESSORIES",null,null,null,null,4,{"$f":"IFERROR(IF(A51>0,A51*F51,A51*0),\"\")","v":""}]
[]
[]
[]
[]
[]
[]
[]
[]
[]
["POWER SUPPLY"]
[]
[]
[]
["CONTROLLER / DIMMING INTERFACE"]
[]
[]
[null,null,null,null,null,4,{"$f":"IFERROR(IF(A68>0,A68*F68,A68*0),\"\")","v":0}]
[null,null,null,null,null,{"$f":"SUM(A37:A68)","v":0},{"$f":"SUM(G37:G68)","v":0}]
[]
[]
[null,"     NOTE: Prices do not include State or Local Taxes",null,"TOTAL",{"$f":"IFERROR(SUM(E22:E23,E25:E26,E28:E29,E31:E32,E34:E35,E37:E38,E40:E41,E43:E44,E46:E47,E49:E50,E52:E60,E62:E64,E66:E68),\"\")","v":0}]
[]
[]
["PURCHASE ORDER","FREIGHT","PAYMENT TERMS",null,"LEAD TIME"]
["Contact: ","All Freight is Prepaid and Invoiced"]
[null,null,"Credit Card            Invoice               Deposit",null,"Stock to"]
[null,null,"<$25,000 1/3 Deposit Balance Net 30Days",null,"6 weeks"]
[null,null,"$75,000 1/3 Deposit, 1/3 Shipment Notification, Balance Net 30 Days"]
[null,null,"1.5% monthly finance charge added to balance 31 days after shipment"]
[]
[]
[" "]
["JESCO Lighting Showrooms:",null,"CALIFORNIA:  219 South 6th Avenue, City of Industry, CA  91746"]
[null,null,"DALLAS:            2100 N. Stemmons Fwy. #4313 Dallas Trade Mart, Dallas, TX 75207"]

{"sheet":"MAS BOM","index":2,"n_rows":79,"n_cols":16,"rows_kept":79,"cut":false,"hidden":true,"merged":[[16,2,16,4],[17,2,17,4],[18,2,18,4],[5,1,6,1],[5,2,5,7],[7,2,7,5],[7,6,7,7],[8,2,8,4],[15,2,15,4],[10,2,10,4],[9,2,9,4],[13,2,13,4],[14,2,14,4],[11,2,11,4],[12,2,12,4],[6,2,6,7],[23,2,23,4],[24,2,24,4],[25,2,25,4],[26,2,26,4],[27,2,27,4],[20,1,21,1],[20,2,20,7],[21,2,21,7],[22,2,22,5],[22,6,22,7],[33,2,33,4],[35,1,36,1],[35,2,35,7],[36,2,36,7],[37,2,37,5],[37,6,37,7],[28,2,28,4],[29,2,29,4],[30,2,30,4],[31,2,31,4],[32,2,32,4],[43,2,43,4],[44,2,44,4],[45,2,45,4],[46,2,46,4],[47,2,47,4],[38,2,38,4],[39,2,39,4],[40,2,40,4],[41,2,41,4],[42,2,42,4],[53,2,53,4],[54,2,54,4],[55,2,55,4],[56,2,56,4],[57,2,57,4],[48,2,48,4],[50,1,51,1],[50,2,50,7],[51,2,51,7],[52,2,52,5],[52,6,52,7],[71,2,71,4],[72,2,72,4],[63,2,63,4],[65,1,66,1],[65,2,65,7],[66,2,66,7],[67,2,67,5],[67,6,67,7],[58,2,58,4],[59,2,59,4],[60,2,60,4],[61,2,61,4],[62,2,62,4],[78,2,78,4],[5,10,6,10],[5,11,5,16],[6,11,6,16],[7,11,7,14],[7,15,7,16],[8,11,8,13],[9,11,9,13],[10,11,10,13],[11,11,11,13],[12,11,12,13],[13,11,13,13],[14,11,14,13],[15,11,15,13],[16,11,16,13],[17,11,17,13],[73,2,73,4],[74,2,74,4],[75,2,75,4],[76,2,76,4],[77,2,77,4],[68,2,68,4],[69,2,69,4],[70,2,70,4],[23,11,23,13],[24,11,24,13],[25,11,25,13],[26,11,26,13],[27,11,27,13],[18,11,18,13],[20,10,21,10],[20,11,20,16],[21,11,21,16],[22,11,22,14],[22,15,22,16],[33,11,33,13],[35,10,36,10],[35,11,35,16],[36,11,36,16],[37,11,37,14],[37,15,37,16],[28,11,28,13],[29,11,29,13],[30,11,30,13],[31,11,31,13],[32,11,32,13],[43,11,43,13],[44,11,44,13],[45,11,45,13],[46,11,46,13],[47,11,47,13],[38,11,38,13],[39,11,39,13],[40,11,40,13],[41,11,41,13],[42,11,42,13],[53,11,53,13],[54,11,54,13],[55,11,55,13],[56,11,56,13],[57,11,57,13],[48,11,48,13],[50,10,51,10],[50,11,50,16],[51,11,51,16],[52,11,52,14],[52,15,52,16],[63,11,63,13],[65,10,66,10],[65,11,65,16],[66,11,66,16],[67,11,67,14],[67,15,67,16],[58,11,58,13],[59,11,59,13],[60,11,60,13],[61,11,61,13],[62,11,62,13],[78,11,78,13],[73,11,73,13],[74,11,74,13],[75,11,75,13],[76,11,76,13],[77,11,77,13],[68,11,68,13],[69,11,69,13],[70,11,70,13],[71,11,71,13],[72,11,72,13]]}
[]
[]
[]
[]
[]
[null,"A",{"$f":"DATA!P25","v":""},null,null,null,null,null,null,null,"F",{"$f":"DATA!P65","v":""}]
[null,null,{"$f":"DATA!P26","v":""},null,null,null,null,null,null,null,null,{"$f":"DATA!P66","v":""}]
[null,null,"BOM",null,null,null,null,null,null,null,null,"BOM"]
[null,null,"PART NUMBER",null,null,"QTY.",null,null,null,null,null,"PART NUMBER",null,null,"QTY."]
[null,null,{"$f":"DATA!AQ12","v":{"$error":"#N/A"}},null,null,{"$f":"IF(C10=\"CH-SM-31-96\",1,DATA!AF12)","v":{"$error":"#N/A"}},null,null,null,null,null,{"$f":"DATA!AQ17","v":{"$error":"#N/A"}},null,null,{"$f":"IF(L10=\"CH-SM-31-96\",1,DATA!AF17)","v":{"$error":"#N/A"}}]
[null,null,{"$f":"IF(DATA!AS12=0,\"\",DATA!AS12)","v":{"$error":"#N/A"}},null,null,{"$f":"IF(C10=\"CH-SM-31-96\",2,\"\")","v":{"$error":"#N/A"}},null,null,null,null,null,{"$f":"IF(DATA!AS17=0,\"\",DATA!AS17)","v":{"$error":"#N/A"}},null,null,{"$f":"IF(L10=\"CH-SM-31-96\",2,\"\")","v":{"$error":"#N/A"}}]
[null,null,{"$f":"DATA!K12","v":{"$error":"#N/A"}},null,null,{"$f":"DATA!AF12","v":""},null,null,null,null,null,{"$f":"DATA!K17","v":{"$error":"#N/A"}},null,null,{"$f":"DATA!AF17","v":""}]
[null,null,{"$f":"DATA!AC12","v":""},null,null,{"$f":"IF(CONFIGURATOR!C25>0,1,\"\")","v":""},null,null,null,null,null,{"$f":"DATA!AC17","v":""},null,null,{"$f":"IF(CONFIGURATOR!C70>0,1,\"\")","v":""}]
[null,null,{"$f":"IFERROR(DATA!AE12,\"\")","v":""},null,null,{"$f":"IFERROR(VLOOKUP(C14,DATA!$B$31:$D$39,3,FALSE),\"\")","v":""},null,null,null,null,null,{"$f":"IFERROR(DATA!AE17,\"\")","v":""},null,null,{"$f":"IF(CONFIGURATOR!C70>0,IF(DATA!T17=\"_ENDCAP_\",\"\",1),\"1\")","v":"1"}]
[null,null,{"$f":"DATA!BA12","v":{"$error":"#N/A"}},null,null,{"$f":"IF(CONFIGURATOR!$C$25>0,1,\"\")","v":""},null,null,null,null,null,{"$f":"DATA!$BA17","v":{"$error":"#N/A"}},null,null,{"$f":"IF(CONFIGURATOR!$C$70>0,1,\"\")","v":""}]
[null,null,{"$f":"DATA!BB12","v":{"$error":"#N/A"}},null,null,{"$f":"VLOOKUP(C15,DATA!$CH$3:$CI$20,2,FALSE)","v":{"$error":"#N/A"}},null,null,null,null,null,{"$f":"DATA!$BB17","v":{"$error":"#N/A"}},null,null,{"$f":"VLOOKUP(L15,DATA!$CH$3:$CI$20,2,FALSE)","v":{"$error":"#N/A"}}]
[null,null,"FIRST COST",null,null,{"$f":"DATA!AW12","v":{"$error":"#N/A"}},"PRODUCT LINE: DISP",null,null,null,null,"FIRST COST",null,null,{"$f":"DATA!AW17","v":{"$error":"#N/A"}},"PRODUCT LINE: DISP"]
[null,null,"DN",null,null,{"$f":"DATA!AX12","v":""},"DEFAULT WH: 1PW",null,null,null,null,"DN",null,null,{"$f":"DATA!AX17","v":""},"DEFAULT WH: 1PW"]
[null,null,"MARGIN",null,null,{"$f":"(F18-F17)/F18","v":{"$error":"#VALUE!"}},"00-JESCOLE",null,null,null,null,"MARGIN",null,null,{"$f":"(O18-O17)/O18","v":{"$error":"#VALUE!"}},"00-JESCOLE"]
[]
[null,"B",{"$f":"DATA!P33","v":""},null,null,null,null,null,null,null,"G",{"$f":"DATA!$P73","v":""}]
[null,null,{"$f":"DATA!P34","v":""},null,null,null,null,null,null,null,null,{"$f":"DATA!$P74","v":""}]
[null,null,"BOM",null,null,null,null,null,null,null,null,"BOM"]
[null,null,"PART NUMBER",null,null,"QTY.",null,null,null,null,null,"PART NUMBER",null,null,"QTY."]
[null,null,{"$f":"DATA!AQ13","v":{"$error":"#N/A"}},null,null,{"$f":"IF(C25=\"CH-SM-31-96\",1,DATA!AF13)","v":{"$error":"#N/A"}},null,null,null,null,null,{"$f":"DATA!$AQ18","v":{"$error":"#N/A"}},null,null,{"$f":"IF(L25=\"CH-SM-31-96\",1,DATA!$AF18)","v":{"$error":"#N/A"}}]
[null,null,{"$f":"IF(DATA!AS13=0,\"\",DATA!AS13)","v":{"$error":"#N/A"}},null,null,{"$f":"IF(C25=\"CH-SM-31-96\",2,\"\")","v":{"$error":"#N/A"}},null,null,null,null,null,{"$f":"IF(DATA!$AS18=0,\"\",DATA!$AS18)","v":{"$error":"#N/A"}},null,null,{"$f":"IF(L25=\"CH-SM-31-96\",2,\"\")","v":{"$error":"#N/A"}}]
[null,null,{"$f":"DATA!K13","v":{"$error":"#N/A"}},null,null,{"$f":"DATA!AF13","v":""},null,null,null,null,null,{"$f":"DATA!$K18","v":{"$error":"#N/A"}},null,null,{"$f":"DATA!$AF18","v":""}]
[null,null,{"$f":"DATA!AC13","v":""},null,null,{"$f":"IF(CONFIGURATOR!C34>0,1,\"\")","v":""},null,null,null,null,null,{"$f":"DATA!$AC18","v":""},null,null,{"$f":"IF(CONFIGURATOR!$C79>0,1,\"\")","v":""}]
[null,null,{"$f":"IFERROR(DATA!AE13,\"\")","v":""},null,null,{"$f":"IFERROR(VLOOKUP(C29,DATA!$B$31:$D$39,3,FALSE),\"\")","v":""},null,null,null,null,null,{"$f":"IFERROR(DATA!$AE18,\"\")","v":""},null,null,{"$f":"IF(CONFIGURATOR!$C79>0,IF(DATA!$T18=\"_ENDCAP_\",\"\",1),\"1\")","v":"1"}]
[null,null,{"$f":"DATA!BA13","v":{"$error":"#N/A"}},null,null,{"$f":"IF(CONFIGURATOR!$C$34>0,1,\"\")","v":""},null,null,null,null,null,{"$f":"DATA!$BA18","v":{"$error":"#N/A"}},null,null,{"$f":"IF(CONFIGURATOR!$C79>0,1,\"\")","v":""}]
[null,null,{"$f":"DATA!BB13","v":{"$error":"#N/A"}},null,null,{"$f":"VLOOKUP(C30,DATA!$CH$3:$CI$20,2,FALSE)","v":{"$error":"#N/A"}},null,null,null,null,null,{"$f":"DATA!$BA18","v":{"$error":"#N/A"}},null,null,{"$f":"VLOOKUP(L30,DATA!$CH$3:$CI$20,2,FALSE)","v":{"$error":"#N/A"}}]
[null,null,"FIRST COST",null,null,{"$f":"DATA!AW13","v":{"$error":"#N/A"}},"PRODUCT LINE: DISP",null,null,null,null,"FIRST COST",null,null,{"$f":"DATA!$AW18","v":{"$error":"#N/A"}},"PRODUCT LINE: DISP"]
[null,null,"DN",null,null,{"$f":"DATA!AX13","v":""},"DEFAULT WH: 1PW",null,null,null,null,"DN",null,null,{"$f":"DATA!$AX18","v":""},"DEFAULT WH: 1PW"]
[null,null,"MARGIN",null,null,{"$f":"(F33-F32)/F33","v":{"$error":"#VALUE!"}},"00-JESCOLE",null,null,null,null,"MARGIN",null,null,{"$f":"(O33-O32)/O33","v":{"$error":"#VALUE!"}},"00-JESCOLE"]
[]
[null,"C",{"$f":"DATA!P41","v":""},null,null,null,null,null,null,null,"H",{"$f":"DATA!$P81","v":""}]
[null,null,{"$f":"DATA!P42","v":""},null,null,null,null,null,null,null,null,{"$f":"DATA!$P82","v":""}]
[null,null,"BOM",null,null,null,null,null,null,null,null,"BOM"]
[null,null,"PART NUMBER",null,null,"QTY.",null,null,null,null,null,"PART NUMBER",null,null,"QTY."]
[null,null,{"$f":"DATA!AQ14","v":{"$error":"#N/A"}},null,null,{"$f":"IF(C40=\"CH-SM-31-96\",1,DATA!AF14)","v":{"$error":"#N/A"}},null,null,null,null,null,{"$f":"DATA!$AQ19","v":{"$error":"#N/A"}},null,null,{"$f":"IF(L40=\"CH-SM-31-96\",1,DATA!$AF19)","v":{"$error":"#N/A"}}]
[null,null,{"$f":"IF(DATA!AS14=0,\"\",DATA!AS14)","v":{"$error":"#N/A"}},null,null,{"$f":"IF(C40=\"CH-SM-31-96\",2,\"\")","v":{"$error":"#N/A"}},null,null,null,null,null,{"$f":"IF(DATA!$AS19=0,\"\",DATA!$AS19)","v":{"$error":"#N/A"}},null,null,{"$f":"IF(L40=\"CH-SM-31-96\",2,\"\")","v":{"$error":"#N/A"}}]
[null,null,{"$f":"DATA!K14","v":{"$error":"#N/A"}},null,null,{"$f":"DATA!AF13","v":""},null,null,null,null,null,{"$f":"DATA!$K19","v":{"$error":"#N/A"}},null,null,{"$f":"DATA!$AF19","v":""}]
[null,null,{"$f":"DATA!AC14","v":""},null,null,{"$f":"IF(CONFIGURATOR!C43>0,1,\"\")","v":""},null,null,null,null,null,{"$f":"DATA!$AC19","v":""},null,null,{"$f":"IF(CONFIGURATOR!$C88>0,1,\"\")","v":""}]
[null,null,{"$f":"IFERROR(DATA!AE14,\"\")","v":""},null,null,{"$f":"IF(CONFIGURATOR!C43>0,IF(DATA!T14=\"_ENDCAP_\",\"\",1),\"1\")","v":"1"},null,null,null,null,null,{"$f":"IFERROR(DATA!$AE19,\"\")","v":""},null,null,{"$f":"IF(CONFIGURATOR!$C88>0,IF(DATA!$T33=\"_ENDCAP_\",\"\",1),\"1\")","v":"1"}]
[null,null,{"$f":"DATA!BA14","v":{"$error":"#N/A"}},null,null,{"$f":"IF(CONFIGURATOR!$C$43>0,1,\"\")","v":""},null,null,null,null,null,{"$f":"DATA!$BA19","v":{"$error":"#N/A"}},null,null,{"$f":"IF(CONFIGURATOR!$C88>0,1,\"\")","v":""}]
[null,null,{"$f":"DATA!BB14","v":{"$error":"#N/A"}},null,null,{"$f":"VLOOKUP(C45,DATA!$CH$3:$CI$20,2,FALSE)","v":{"$error":"#N/A"}},null,null,null,null,null,{"$f":"DATA!$BB19","v":{"$error":"#N/A"}},null,null,{"$f":"VLOOKUP(L45,DATA!$CH$3:$CI$20,2,FALSE)","v":{"$error":"#N/A"}}]
[null,null,"FIRST COST",null,null,{"$f":"DATA!AW14","v":{"$error":"#N/A"}},"PRODUCT LINE: DISP",null,null,null,null,"FIRST COST",null,null,{"$f":"DATA!$AW19","v":{"$error":"#N/A"}},"PRODUCT LINE: DISP"]
[null,null,"DN",null,null,{"$f":"DATA!AX14","v":""},"DEFAULT WH: 1PW",null,null,null,null,"DN",null,null,{"$f":"DATA!$AX19","v":""},"DEFAULT WH: 1PW"]
[null,null,"MARGIN",null,null,{"$f":"(F48-F47)/F48","v":{"$error":"#VALUE!"}},"00-JESCOLE",null,null,null,null,"MARGIN",null,null,{"$f":"(O48-O47)/O48","v":{"$error":"#VALUE!"}},"00-JESCOLE"]
[]
[null,"D",{"$f":"DATA!P49","v":""},null,null,null,null,null,null,null,"I",{"$f":"DATA!$P89","v":""}]
[null,null,{"$f":"DATA!P50","v":""},null,null,null,null,null,null,null,null,{"$f":"DATA!$P90","v":""}]
[null,null,"BOM",null,null,null,null,null,null,null,null,"BOM"]
[null,null,"PART NUMBER",null,null,"QTY.",null,null,null,null,null,"PART NUMBER",null,null,"QTY."]
[null,null,{"$f":"DATA!AQ15","v":{"$error":"#N/A"}},null,null,{"$f":"IF(C55=\"CH-SM-31-96\",1,DATA!AF15)","v":{"$error":"#N/A"}},null,null,null,null,null,{"$f":"DATA!$AQ20","v":{"$error":"#N/A"}},null,null,{"$f":"IF(L55=\"CH-SM-31-96\",1,DATA!$AF20)","v":{"$error":"#N/A"}}]
[null,null,{"$f":"IF(DATA!AS15=0,\"\",DATA!AS15)","v":{"$error":"#N/A"}},null,null,{"$f":"IF(C55=\"CH-SM-31-96\",2,\"\")","v":{"$error":"#N/A"}},null,null,null,null,null,{"$f":"IF(DATA!$AS20=0,\"\",DATA!$AS20)","v":{"$error":"#N/A"}},null,null,{"$f":"IF(L55=\"CH-SM-31-96\",2,\"\")","v":{"$error":"#N/A"}}]
[null,null,{"$f":"DATA!K15","v":{"$error":"#N/A"}},null,null,{"$f":"DATA!AF15","v":""},null,null,null,null,null,{"$f":"DATA!$K20","v":{"$error":"#N/A"}},null,null,{"$f":"DATA!$AF20","v":""}]
[null,null,{"$f":"DATA!AC15","v":""},null,null,{"$f":"IF(CONFIGURATOR!C52>0,1,\"\")","v":""},null,null,null,null,null,{"$f":"DATA!$AC20","v":""},null,null,{"$f":"IF(CONFIGURATOR!$C97>0,1,\"\")","v":""}]
[null,null,{"$f":"IFERROR(DATA!AE15,\"\")","v":""},null,null,{"$f":"IF(CONFIGURATOR!C58>0,IF(DATA!T29=\"_ENDCAP_\",\"\",1),\"1\")","v":"1"},null,null,null,null,null,{"$f":"IFERROR(DATA!$AE20,\"\")","v":""},null,null,{"$f":"IF(CONFIGURATOR!$C97>0,IF(DATA!$T20=\"_ENDCAP_\",\"\",1),\"1\")","v":"1"}]
[null,null,{"$f":"DATA!BA15","v":{"$error":"#N/A"}},null,null,{"$f":"IF(CONFIGURATOR!$C$52>0,1,\"\")","v":""},null,null,null,null,null,{"$f":"DATA!$BA20","v":{"$error":"#N/A"}},null,null,{"$f":"IF(CONFIGURATOR!$C97>0,1,\"\")","v":""}]
[null,null,{"$f":"DATA!BB15","v":{"$error":"#N/A"}},null,null,{"$f":"VLOOKUP(C60,DATA!$CH$3:$CI$20,2,FALSE)","v":{"$error":"#N/A"}},null,null,null,null,null,{"$f":"DATA!$BB20","v":{"$error":"#N/A"}},null,null,{"$f":"VLOOKUP(L60,DATA!$CH$3:$CI$20,2,FALSE)","v":{"$error":"#N/A"}}]
[null,null,"FIRST COST",null,null,{"$f":"DATA!AW15","v":{"$error":"#N/A"}},"PRODUCT LINE: DISP",null,null,null,null,"FIRST COST",null,null,{"$f":"DATA!$AW20","v":{"$error":"#N/A"}},"PRODUCT LINE: DISP"]
[null,null,"DN",null,null,{"$f":"DATA!AX15","v":""},"DEFAULT WH: 1PW",null,null,null,null,"DN",null,null,{"$f":"DATA!$AX20","v":""},"DEFAULT WH: 1PW"]
[null,null,"MARGIN",null,null,{"$f":"(F63-F62)/F63","v":{"$error":"#VALUE!"}},"00-JESCOLE",null,null,null,null,"MARGIN",null,null,{"$f":"(O63-O62)/O63","v":{"$error":"#VALUE!"}},"00-JESCOLE"]
[]
[null,"E",{"$f":"DATA!P57","v":""},null,null,null,null,null,null,null,"J",{"$f":"DATA!$P97","v":""}]
[null,null,{"$f":"DATA!P58","v":""},null,null,null,null,null,null,null,null,{"$f":"DATA!$P98","v":""}]
[null,null,"BOM",null,null,null,null,null,null,null,null,"BOM"]
[null,null,"PART NUMBER",null,null,"QTY.",null,null,null,null,null,"PART NUMBER",null,null,"QTY."]
[null,null,{"$f":"DATA!AQ16","v":{"$error":"#N/A"}},null,null,{"$f":"IF(C70=\"CH-SM-31-96\",1,DATA!AF16)","v":{"$error":"#N/A"}},null,null,null,null,null,{"$f":"DATA!$AQ21","v":{"$error":"#N/A"}},null,null,{"$f":"IF(L70=\"CH-SM-31-96\",1,DATA!$AF21)","v":{"$error":"#N/A"}}]
[null,null,{"$f":"IF(DATA!AS16=0,\"\",DATA!AS16)","v":{"$error":"#N/A"}},null,null,{"$f":"IF(C70=\"CH-SM-31-96\",2,\"\")","v":{"$error":"#N/A"}},null,null,null,null,null,{"$f":"IF(DATA!$AS21=0,\"\",DATA!$AS21)","v":{"$error":"#N/A"}},null,null,{"$f":"IF(L70=\"CH-SM-31-96\",2,\"\")","v":{"$error":"#N/A"}}]
[null,null,{"$f":"DATA!K16","v":{"$error":"#N/A"}},null,null,{"$f":"DATA!AF16","v":""},null,null,null,null,null,{"$f":"DATA!$K21","v":{"$error":"#N/A"}},null,null,{"$f":"DATA!$AF21","v":""}]
[null,null,{"$f":"DATA!AC16","v":""},null,null,{"$f":"IF(CONFIGURATOR!C61>0,1,\"\")","v":""},null,null,null,null,null,{"$f":"DATA!$AC21","v":""},null,null,{"$f":"IF(CONFIGURATOR!$C106>0,1,\"\")","v":""}]
[null,null,{"$f":"IFERROR(DATA!AE16,\"\")","v":""},null,null,{"$f":"IF(CONFIGURATOR!C61>0,IF(DATA!T16=\"_ENDCAP_\",\"\",1),\"1\")","v":"1"},null,null,null,null,null,{"$f":"IFERROR(DATA!$AE21,\"\")","v":""},null,null,{"$f":"IF(CONFIGURATOR!$C106>0,IF(DATA!$T21=\"_ENDCAP_\",\"\",1),\"1\")","v":"1"}]
[null,null,{"$f":"DATA!BA16","v":{"$error":"#N/A"}},null,null,{"$f":"IF(CONFIGURATOR!$C$61>0,1,\"\")","v":""},null,null,null,null,null,{"$f":"DATA!$BA21","v":{"$error":"#N/A"}},null,null,{"$f":"IF(CONFIGURATOR!$C106>0,1,\"\")","v":""}]
[null,null,{"$f":"DATA!BB16","v":{"$error":"#N/A"}},null,null,{"$f":"VLOOKUP(C75,DATA!$CH$3:$CI$20,2,FALSE)","v":{"$error":"#N/A"}},null,null,null,null,null,{"$f":"DATA!$BB21","v":{"$error":"#N/A"}},null,null,{"$f":"VLOOKUP(L75,DATA!$CH$3:$CI$20,2,FALSE)","v":{"$error":"#N/A"}}]
[null,null,"FIRST COST",null,null,{"$f":"DATA!AW16","v":{"$error":"#N/A"}},"PRODUCT LINE: DISP",null,null,null,null,"FIRST COST",null,null,{"$f":"DATA!$AW21","v":{"$error":"#N/A"}},"PRODUCT LINE: DISP"]
[null,null,"DN",null,null,{"$f":"DATA!AX16","v":""},"DEFAULT WH: 1PW",null,null,null,null,"DN",null,null,{"$f":"DATA!$AX21","v":""},"DEFAULT WH: 1PW"]
[null,null,"MARGIN",null,null,{"$f":"(F78-F77)/F78","v":{"$error":"#VALUE!"}},"00-JESCOLE",null,null,null,null,"MARGIN",null,null,{"$f":"(O78-O77)/O78","v":{"$error":"#VALUE!"}},"00-JESCOLE"]

{"sheet":"Sheet1","index":3,"n_rows":9,"n_cols":4,"rows_kept":9,"cut":false,"hidden":true,"merged":[]}
[]
[]
[]
[]
[]
[]
[]
[]
[null,"A","INPUT",{"$f":"'MAS BOM'!C13:E13","v":0}]

{"sheet":"DATA","index":4,"n_rows":574,"n_cols":106,"rows_kept":574,"cut":false,"hidden":true,"merged":[[0,77,1,78],[0,80,1,81],[0,83,1,84],[48,1,48,2],[25,15,25,20],[24,15,24,20],[2,5,2,6],[1,12,1,13],[1,8,1,9],[0,15,0,20],[9,25,9,26],[33,15,33,20],[34,15,34,20],[32,15,32,20],[40,15,40,20],[41,15,41,20],[48,15,48,20],[49,15,49,20],[56,15,56,20],[57,15,57,20],[64,15,64,20],[65,15,65,20],[72,15,72,20],[73,15,73,20],[80,15,80,20],[81,15,81,20],[105,15,105,20],[88,15,88,20],[89,15,89,20],[96,15,96,20],[97,15,97,20],[104,15,104,20]]}
[null,null,null,null,null,null,null,null,null,null,null,null,null,null,null,"CCT",null,null,null,null,null,null,null,null,null,null,null,null,null,null,null,null,null,null,null,null,null,null,null,null,null,null,null,null,null,null,null,null,null,null,null,null,null,null,null,null,null,null,null,null,null,null,null,null,"_4_INCH","_2_INCH","_1_INCH",null,"_PLUG _PLAY_IN_A_","_PLUG _PLAY_IN_B_","_LINK_IN_","_HARDWIRE_IN_","_PLUG_PLAY_OUT_A_","_PLUG_PLAY_OUT_B_","_LINK_OUT_","_HARDWIRE_OUT_","_ST_","LIVE OR DEAD ENDCAP",null,null,"XREF ENDCAP TO CHANNEL SET",null,null,"XREF ENDCAP TO CHANNEL SET",null,null,null,null,"SM31_OP_4_INCH","SM31_OP_2_INCH","SM31_OP_1INCH","SM31_FR_4_INCH","SM31_FR_2_INCH","SM31_FR_1INCH","SM31_FR60_4_INCH","SM31_FR60_2_INCH","SM31_FR60_1INCH","SM35_ARFR_4_INCH","SM35_ARFR_2_INCH","SM35_ARFR_1INCH","SM35_AROP_4_INCH","SM35_AROP_2_INCH","SM35_AROP_1INCH","SM35_TROP_4_INCH","SM35_TROP_2_INCH","SM35_TROP_1INCH"]
[null,null,null,null,null,null,null,null,"PART NO",null,null,null,null,null,null,"HD72_","HD724_",null,"DL36_","CFX2_","CFX2P_",null,"PLUG & PLAY IN (A)","_PLUG_PLAY_IN_A_","NO OUTPUT","_ENDCAP_","IA","DEC"]
[null,null,null,null,null,"LENS",null,null,"SM31_FR60","CH-SM-31-FR60-12",null,null,"HD72","HD72_",null,null,null,null,null,null,null,null,"PLUG & PLAY IN (B)","_PLUG_PLAY_IN_B_","PLUG & PLAY OUT (A)","_PLUG_PLAY_OUT_A_","IB","OA",null,null,null,null,null,null,null,null,null,null,null,null,null,null,null,null,null,null,null,null,null,null,null,null,null,null,null,null,null,"CON. NAME","MODEL NO.","WATT/FT","WATT/IN","CUT LENGTH",null,null,4,2,1,null,3,2,1,3,3,2,1,3,3,"_PLUG_PLAY_IN_A_","L",null,"CH-SM-31-FR60-12","CH-SM-31-FR60-LEC",null,"CH-SM-31-FR60-12","CH-SM-31-FR60-DEC","CH-SM-31-FR60-ECS",{"$f":"\" \"","v":" "},null,4,2,1,4,2,1,4,2,1,4,2,1,4,2,1,4,2,1]
[null,"CHANNEL","NAME",null,null,"SM31","SM35",null,"SM31_FR","CH-SM-31-FR-12",null,null,"HD724","HD724_",null,"2700K","3000K",null,"3000K","WW","WW",null,"SMART TRACK IN","_ST_","PLUG & PLAY OUT (B)","_PLUG_PLAY_OUT_B_","ST","OB",null,null,null,null,null,null,null,null,null,null,null,null,null,null,null,null,null,null,null,null,null,null,null,null,null,null,null,null,null,"HD72_2700K","DL-FLEX-HD-CV-27",6,{"$f":"BH4/12","v":0.5},1,"_1_INCH",null,8,4,2,null,4,3,2,4,4,3,2,4,4,"_PLUG_PLAY_IN_B_","D",null,"CH-SM-31-FR-12","CH-SM-31-LEC",null,"CH-SM-31-FR-12","CH-SM-31-DEC","CH-SM-31-ECS",{"$f":"\" \"","v":" "},null,8,4,2,8,4,2,8,4,2,8,4,2,8,4,2,8,4,2]
[null,null,null,null,null,null,null,null,"SM31_OP","CH-SM-31-OP-12",null,null,"DL36","DL36_",null,"3000K","3500K",null,"3500K","NW","NW",null,"HARDWIRE IN","_HARDWIRE_IN_","HARDWIRE OUT","_HARDWIRE_OUT_","IHW","OHW",null,null,null,null,null,null,null,null,null,null,null,null,null,null,null,null,null,null,null,null,null,null,null,null,null,null,null,null,null,"HD72_3000K","DL-FLEX-HD-CV-30",6,{"$f":"BH5/12","v":0.5},1,"_1_INCH",null,12,6,3,null,5,4,3,5,5,4,3,5,5,"_LINK_IN_","L",null,"CH-SM-31-OP-12","CH-SM-31-LEC",null,"CH-SM-31-OP-12","CH-SM-31-DEC","CH-SM-31-ECS"," ",null,12,6,3,12,6,3,12,6,3,12,6,3,12,6,3,12,6,3]
[null,"SM31","SM31_",null,null,"FR60","AROP",null,"SM35_ARFR","CH-SM-35-ARFR-12",null,null,"CFX2","CFX2_",null,"3500K","4000K",null,"4000K","CW","CW",null,"LINK IN","_LINK_IN_","LINK OUT","_LINK_OUT_","IL","OL",null,null,null,null,null,null,null,null,null,null,null,null,null,null,null,null,null,null,null,null,null,null,null,null,null,null,null,null,null,"HD72_3500K","DL-FLEX-HD-CV-35",6,0.5,1,"_1_INCH",null,16,8,4,null,6,5,4,6,6,5,4,6,6,"_HARDWIRE_IN_","L",null,"CH-SM-35-ARFR-12","CH-SM-35-AR-LEC",null,"CH-SM-35-ARFR-12","CH-SM-35-AR-DEC","CH-SM-35-AR-ECS"," ",null,16,8,4,16,8,4,16,8,4,16,8,4,16,8,4,16,8,4]
[null,"SM35","SM35_",null,null,"FR","TROP",null,"SM35_AROP","CH-SM-35-AROP-12",null,null,"CFX2P","CFX2P_",null,"4000K","6000K",null,null,null,null,null,null,null,null,null,null,null,null,null,null,null,null,null,null,null,null,null,null,null,null,null,null,null,null,null,null,null,null,null,null,null,null,null,null,null,null,"HD72_4000K","DL-FLEX-HD-CV-40",6,0.5,1,"_1_INCH",null,20,10,5,null,7,6,5,7,7,6,5,7,7,"_ENDCAP_","D",null,"CH-SM-35-AROP-12","CH-SM-35-AR-LEC",null,"CH-SM-35-AROP-12","CH-SM-35-AR-DEC","CH-SM-35-AR-ECS"," ",null,20,10,5,20,10,5,20,10,5,20,10,5,20,10,5,20,10,5]
[null,null,null,null,null,"OP","ARFR",null,"SM35_TROP","CH-SM-35-TROP-12",null,null,null,null,null,"6000K",null,null,null,null,null,null,null,null,null,null,null,null,null,null,null,null,null,null,null,null,null,null,null,null,null,null,null,null,null,null,null,null,null,null,null,null,null,null,null,null,null,"HD72_6000K","DL-FLEX-HD-CV-60",6,0.5,1,"_1_INCH",null,24,12,6,null,8,7,6,8,8,7,6,8,8,"_PLUG_PLAY_OUT_A_","L",null,"CH-SM-35-TROP-12","CH-SM-35-TR-LEC",null,"CH-SM-35-TROP-12","CH-SM-35-TR-DEC","CH-SM-35-TR-ECS"," ",null,24,12,6,24,12,6,24,12,6,24,12,6,24,12,6,24,12,6]
[null,null,null,null,null,null,null,null,null,null,null,null,null,null,null,null,null,null,null,null,null,null,null,null,null,null,null,null,null,null,null,null,null,null,null,null,null,null,null,null,null,null,null,null,null,null,null,null,null,null,null,null,null,null,null,null,null,"HD724_3000K","DL-FLEX-HD-CV3W-30",3.5,0.29166666666666669,1,"_1_INCH",null,28,14,7,null,9,8,7,9,9,8,7,9,9,"_PLUG_PLAY_OUT_B_","D",null,null,null,null,null,null,"CH-SM-31-FR60-LEC",1,null,28,14,7,28,14,7,28,14,7,28,14,7,28,14,7,28,14,7]
[null,"ME21","ME21_",null,null,null,null,null,null,null,null,null,null,null,null,null,null,null,null,null,null,null,null,null,null,"CABLE COLOR NAME",null,null,null,null,null,null,null,null,null,null,null,null,null,null,null,null,null,null,null,null,null,null,null,null,null,null,null,null,null,null,null,"HD724_3500K","DL-FLEX-HD-CV3W-35",3.5,0.29166666666666669,1,"_1_INCH",null,32,16,8,null,10,9,8,10,10,9,8,10,10,"_LINK_OUT_","L",null,null,null,null,null,null,"CH-SM-31-LEC",1,null,32,16,8,32,16,8,32,16,8,32,16,8,32,16,8,32,16,8]
[null,null,"CHANNEL","LENS","COMBINE","PART NO.","TAPE","CCT","LENGTH","COMBINE","PART NO.","CUT",null,"INPUT","TYPE","INPUT ENDCAP","IN CABLE","LENGTH","COLOR","OUTPUT","TYPE","OUTPUT  ENDCAP","OUTCABLE","LENGTH","COLOR","IN","OUT","INPUT REF","INPUT PART #","OUTPUT REF","OUTPUT PART#","LENGTH","LED FC","ENDCAP","IN FC","IN DN","OUT FC","OUT DN","DN","WATT",null,"REF",null,null,null,null,"CH LC FC",null,"FC TOTAL","DN TOTAL",null,null,null,null,null,null,null,"HD724_4000K","DL-FLEX-HD-CV3W-40",3.5,0.29166666666666669,1,"_1_INCH",null,36,18,9,null,11,10,9,11,11,10,9,11,11,"_HARDWIRE_OUT_","L",null,"SM31","_CHSM31_",null,null,null,"CH-SM-31-LEC",1,null,36,18,9,36,18,9,36,18,9,36,18,9,36,18,9,36,18,9]
[null,"A 27",{"$f":"VLOOKUP(CONFIGURATOR!E25,DATA!$B$6:$C$7,2,FALSE)","v":{"$error":"#N/A"}},{"$f":"CONFIGURATOR!F25","v":0},{"$f":"CONCATENATE(C12,D12)","v":{"$error":"#N/A"}},{"$f":"VLOOKUP($E$12,$I$3:$J$8,2,FALSE)","v":{"$error":"#N/A"}},{"$f":"VLOOKUP(CONFIGURATOR!H25,DATA!$M$3:$N$8,2,FALSE)","v":{"$error":"#N/A"}},{"$f":"CONFIGURATOR!I25","v":0},{"$f":"CONFIGURATOR!K25","v":0},{"$f":"CONCATENATE(G12,H12)","v":{"$error":"#N/A"}},{"$f":"VLOOKUP(J12,$BF$4:$BG$22,2,FALSE)","v":{"$error":"#N/A"}},{"$f":"VLOOKUP(K12,$BG$4:$BK$22,5,FALSE)","v":{"$error":"#N/A"}},{"$f":"CONCATENATE(E12,L12)","v":{"$error":"#N/A"}},{"$f":"VLOOKUP(CONFIGURATOR!M25,DATA!$W$2:$X$6,2,FALSE)","v":{"$error":"#N/A"}},{"$f":"VLOOKUP(N12,$BZ$3:$CA$12,2,FALSE)","v":{"$error":"#N/A"}},{"$f":"IF(O12=\"L\",VLOOKUP(F12,$CC$3:$CD$8,2,FALSE),\"\")&IF(O12=\"D\",VLOOKUP(F12,$CF$3:$CG$8,2,FALSE),\"\")","v":{"$error":"#N/A"}},{"$f":"IF(N12=\"_PLUG_PLAY_IN_A_\",IF(CONFIGURATOR!N25<=18,\"DL-PS-PT-M\",IF(CONFIGURATOR!N25<=48,\"DL-PS-EXT-48\",IF(CONFIGURATOR!N25<=96,\"DL-PS-EXT-96\"))),\"\")&IF(N12=\"_PLUG_PLAY_IN_B_\",\"PS-CC-R-EXT-PB-36\",\"\")&IF(N12=\"_LINK_IN_\",\"DL-PS-EXT-48\",\"\")&IF(N12=\"_HARDWIRE_IN_\",IF(CONFIGURATOR!N25<=18,\"DL-PS-PT-M\",IF(CONFIGURATOR!N25<=48,\"DL-PS-EXT-48\",IF(CONFIGURATOR!N25<=96,\"DL-PS-EXT-96\"))),\"\")&IF(N12=\"_ST_\",IF(CONFIGURATOR!N25<=10,\"S601-CC12\",IF(CONFIGURATOR!N25<=22,\"S601-CC24\",IF(CONFIGURATOR!N25<=46,\"S601-CC48\"))),\"\")","v":{"$error":"#N/A"}},{"$f":"CONFIGURATOR!N25","v":0},{"$f":"IF(CONFIGURATOR!O25=\"BLACK\",\"BK\",\"\")&IF(CONFIGURATOR!O25=\"WHITE\",\"WH\",\"\")","v":""},{"$f":"VLOOKUP(CONFIGURATOR!Q25,DATA!$Y$2:$Z$6,2,FALSE)","v":{"$error":"#N/A"}},{"$f":"VLOOKUP(T12,$BZ$3:$CA$11,2,FALSE)","v":{"$error":"#N/A"}},{"$f":"IF(U12=\"L\",VLOOKUP(F12,$CC$3:$CD$8,2,FALSE),\"\")&IF(U12=\"D\",VLOOKUP(F12,$CF$3:$CG$8,2,FALSE),\"\")","v":{"$error":"#N/A"}},{"$f":"IF(T12=\"_PLUG_PLAY_OUT_A_\",IF(CONFIGURATOR!R25<=18,\"DL-PS-PT-F\",IF(CONFIGURATOR!R25<=48,\"DL-PS-EXT-48\",IF(CONFIGURATOR!R25<=96,\"DL-PS-EXT-96\"))),\"\")&IF(T12=\"_PLUG_PLAY_OUT_B_\",\"PS-CC-R-EXT-PB-36\",\"\")&IF(T12=\"_LINK_OUT_\",\"DL-PS-EXT-48\",\"\")&IF(T12=\"_HARDWIRE_OUT_\",IF(CONFIGURATOR!R25<=18,\"DL-PS-PT-F\",IF(CONFIGURATOR!R25<=48,\"DL-PS-EXT-48\",IF(CONFIGURATOR!R25<=96,\"DL-PS-EXT-96\"))),\"\")","v":{"$error":"#N/A"}},{"$f":"IF(CONFIGURATOR!C25>0,CONFIGURATOR!R25,\"\")","v":""},{"$f":"IF(CONFIGURATOR!S25=\"BLACK\",\"BK\",\"\")&IF(CONFIGURATOR!S25=\"WHITE\",\"WH\",\"\")","v":""},{"$f":"IF(CONFIGURATOR!C25>0,VLOOKUP(Q12,$B$31:$C$38,2,FALSE),\"\")","v":""},{"$f":"IFERROR(IF(CONFIGURATOR!C25>0,VLOOKUP(W12,$B$31:$C$38,2,FALSE),\"\"),\"\")","v":""},{"$f":"IF(CONFIGURATOR!C25>0,CONCATENATE(Q12,\"-\",S12),\"\")","v":""},{"$f":"IF(CONFIGURATOR!C25>0,VLOOKUP(AB12,$F$31:$G$45,2,FALSE),\"\")","v":""},{"$f":"IF(CONFIGURATOR!C25>0,CONCATENATE(W12,\"-\",Y12),\"\")","v":""},{"$f":"IF(CONFIGURATOR!C25>0,VLOOKUP(AD12,$F$31:$G$47,2,FALSE),\"\")","v":""},{"$f":"IF(CONFIGURATOR!C25>0,VLOOKUP(I12,$B$62:$C$157,2,FALSE),\"\")","v":""},{"$f":"IFERROR(CONFIGURATOR!K25*(VLOOKUP(G12,$F$64:$G$68,2,FALSE)),\"\")","v":""},0.1,{"$f":"IFERROR(VLOOKUP(AC12,$G$31:$H$45,2,FALSE),\"\")","v":""},{"$f":"IFERROR(VLOOKUP(AC12,$G$31:$I$45,3,FALSE),\"\")","v":""},{"$f":"IFERROR(VLOOKUP(AE12,$G$31:$H$43,2,FALSE),\"\")","v":""},{"$f":"IFERROR(VLOOKUP(AE12,$G$31:$I$43,3,FALSE),\"\")","v":""},{"$f":"IFERROR(VLOOKUP(AF12,$B$50:$C$57,2,FALSE),\"\")","v":""},{"$f":"IFERROR(I12*VLOOKUP(K12,$BG$4:$BI$22,3,FALSE),\"\")","v":""},null,{"$f":"CONCATENATE(E12,I12)","v":{"$error":"#N/A"}},{"$f":"VLOOKUP(AP12,$F$71:$H$574,2,FALSE)","v":{"$error":"#N/A"}},{"$f":"IF(AQ12=\"CH-SM-31-96\",VLOOKUP(AQ12,$F$50:$G$59,2,FALSE),VLOOKUP(AQ12,$F$50:$G$59,2,FALSE)*AF12)","v":{"$error":"#N/A"}},{"$f":"VLOOKUP(AP12,$F$71:$H$574,3,FALSE)","v":{"$error":"#N/A"}},{"$f":"IFERROR(VLOOKUP(AS12,$F$50:$G$59,2,FALSE),\"\")","v":""},{"$f":"SUM(AR12,AT12)","v":{"$error":"#N/A"}},null,{"$f":"SUM(AP5,AG12,AH12,AI12,AK12,AU12)","v":{"$error":"#N/A"}},{"$f":"IF(R12>0,SUM(AM12,AJ12,AL12),\"\")","v":""},{"$f":"VLOOKUP(F12,$CF$3:$CH$8,3,FALSE)","v":{"$error":"#N/A"}},{"$f":"CONCATENATE(O12,U12)","v":{"$error":"#N/A"}},{"$f":"IF(AZ12=\"LL\",P12,AY12)","v":{"$error":"#N/A"}},{"$f":"IF(AZ12=\"LL\",V12,\"\")","v":{"$error":"#N/A"}},null,null,null,"HD724_5000K","DL-FLEX-HD-CV3W-50",3.5,0.29166666666666669,1,"_1_INCH",null,40,20,10,null,12,11,10,12,12,11,10,12,12,"_ST_","L",null,"SM35","_CHSM35_",null,null,null,"CH-SM-35-AR-LEC",1,null,40,20,10,40,20,10,40,20,10,40,20,10,40,20,10,40,20,10]
[null,"B 35",{"$f":"VLOOKUP(CONFIGURATOR!E34,DATA!$B$6:$C$7,2,FALSE)","v":{"$error":"#N/A"}},{"$f":"CONFIGURATOR!F34","v":0},{"$f":"CONCATENATE(C13,D13)","v":{"$error":"#N/A"}},{"$f":"VLOOKUP(E13,$I$3:$J$8,2,FALSE)","v":{"$error":"#N/A"}},{"$f":"VLOOKUP(CONFIGURATOR!H34,DATA!$M$3:$N$8,2,FALSE)","v":{"$error":"#N/A"}},{"$f":"CONFIGURATOR!I34","v":0},{"$f":"CONFIGURATOR!K34","v":0},{"$f":"CONCATENATE(G13,H13)","v":{"$error":"#N/A"}},{"$error":"#N/A"},{"$error":"#N/A"},{"$f":"CONCATENATE(E13,L13)","v":{"$error":"#N/A"}},{"$f":"VLOOKUP(CONFIGURATOR!M34,DATA!$W$2:$X$6,2,FALSE)","v":{"$error":"#N/A"}},{"$f":"VLOOKUP(N13,$BZ$3:$CA$12,2,FALSE)","v":{"$error":"#N/A"}},{"$f":"IF(O13=\"L\",VLOOKUP(F13,$CC$3:$CD$8,2,FALSE),\"\")&IF(O13=\"D\",VLOOKUP(F13,$CF$3:$CG$8,2,FALSE),\"\")","v":{"$error":"#N/A"}},{"$f":"IF(N13=\"_PLUG_PLAY_IN_A_\",IF(CONFIGURATOR!N34<=18,\"DL-PS-PT-M\",IF(CONFIGURATOR!N34<=48,\"DL-PS-EXT-48\",IF(CONFIGURATOR!N34<=96,\"DL-PS-EXT-96\"))),\"\")&IF(N13=\"_PLUG_PLAY_IN_B_\",\"PS-CC-R-EXT-PB-36\",\"\")&IF(N13=\"_LINK_IN_\",\"DL-PS-EXT-48\",\"\")&IF(N13=\"_HARDWIRE_IN_\",IF(CONFIGURATOR!N34<=18,\"DL-PS-PT-M\",IF(CONFIGURATOR!N34<=48,\"DL-PS-EXT-48\",IF(CONFIGURATOR!N34<=96,\"DL-PS-EXT-96\"))),\"\")&IF(N13=\"_ST_\",IF(CONFIGURATOR!N34<=10,\"S601-CC12\",IF(CONFIGURATOR!N34<=22,\"S601-CC24\",IF(CONFIGURATOR!N34<=46,\"S601-CC48\"))),\"\")","v":{"$error":"#N/A"}},{"$f":"CONFIGURATOR!N34","v":0},{"$f":"IF(CONFIGURATOR!O34=\"BLACK\",\"BK\",\"\")&IF(CONFIGURATOR!O34=\"WHITE\",\"WH\",\"\")","v":""},{"$f":"VLOOKUP(CONFIGURATOR!Q34,DATA!$Y$2:$Z$6,2,FALSE)","v":{"$error":"#N/A"}},{"$f":"VLOOKUP(T13,$BZ$3:$CA$11,2,FALSE)","v":{"$error":"#N/A"}},{"$f":"IF(U13=\"L\",VLOOKUP(F13,$CC$3:$CD$8,2,FALSE),\"\")&IF(U13=\"D\",VLOOKUP(F13,$CF$3:$CG$8,2,FALSE),\"\")","v":{"$error":"#N/A"}},{"$f":"IF(T13=\"_PLUG_PLAY_OUT_A_\",IF(CONFIGURATOR!R34<=18,\"DL-PS-PT-F\",IF(CONFIGURATOR!R34<=48,\"DL-PS-EXT-48\",IF(CONFIGURATOR!R34<=96,\"DL-PS-EXT-96\"))),\"\")&IF(T13=\"_PLUG_PLAY_OUT_B_\",\"PS-CC-R-EXT-PB-36\",\"\")&IF(T13=\"_LINK_OUT_\",\"DL-PS-EXT-48\",\"\")&IF(T13=\"_HARDWIRE_OUT_\",IF(CONFIGURATOR!R34<=18,\"DL-PS-PT-F\",IF(CONFIGURATOR!R34<=48,\"DL-PS-EXT-48\",IF(CONFIGURATOR!R34<=96,\"DL-PS-EXT-96\"))),\"\")","v":{"$error":"#N/A"}},{"$f":"IF(CONFIGURATOR!C34>0,CONFIGURATOR!R34,\"\")","v":""},{"$f":"IF(CONFIGURATOR!S34=\"BLACK\",\"BK\",\"\")&IF(CONFIGURATOR!S34=\"WHITE\",\"WH\",\"\")","v":""},{"$f":"IF(CONFIGURATOR!C34>0,VLOOKUP(Q13,$B$31:$C$38,2,FALSE),\"\")","v":""},{"$f":"IFERROR(IF(CONFIGURATOR!C34>0,VLOOKUP(W13,$B$31:$C$38,2,FALSE),\"\"),\"\")","v":""},{"$f":"IF(CONFIGURATOR!C34>0,CONCATENATE(Q13,\"-\",S13),\"\")","v":""},{"$f":"IF(CONFIGURATOR!C34>0,VLOOKUP(AB13,$F$31:$G$45,2,FALSE),\"\")","v":""},{"$f":"IF(CONFIGURATOR!C34>0,CONCATENATE(W13,\"-\",Y13),\"\")","v":""},{"$f":"IF(CONFIGURATOR!C34>0,VLOOKUP(AD13,$F$31:$G$47,2,FALSE),\"\")","v":""},{"$f":"IF(CONFIGURATOR!C34>0,VLOOKUP(I13,$B$62:$C$157,2,FALSE),\"\")","v":""},{"$f":"IFERROR(CONFIGURATOR!K34*(VLOOKUP(G13,$F$64:$G$68,2,FALSE)),\"\")","v":""},0.1,{"$f":"IFERROR(VLOOKUP(AC13,$G$31:$H$45,2,FALSE),\"\")","v":""},{"$f":"IFERROR(VLOOKUP(AC13,$G$31:$I$45,3,FALSE),\"\")","v":""},{"$f":"IFERROR(VLOOKUP(AE13,$G$31:$H$43,2,FALSE),\"\")","v":""},{"$f":"IFERROR(VLOOKUP(AE13,$G$31:$I$43,3,FALSE),\"\")","v":""},{"$f":"IFERROR(VLOOKUP(AF13,$B$50:$C$57,2,FALSE),\"\")","v":""},"",null,{"$f":"CONCATENATE(E13,I13)","v":{"$error":"#N/A"}},{"$f":"VLOOKUP(AP13,$F$71:$H$574,2,FALSE)","v":{"$error":"#N/A"}},{"$f":"IF(AQ13=\"CH-SM-31-96\",VLOOKUP(AQ13,$F$50:$G$59,2,FALSE),VLOOKUP(AQ13,$F$50:$G$59,2,FALSE)*AF13)","v":{"$error":"#N/A"}},{"$f":"VLOOKUP(AP13,$F$71:$H$574,3,FALSE)","v":{"$error":"#N/A"}},{"$f":"IFERROR(VLOOKUP(AS13,$F$50:$G$59,2,FALSE),\"\")","v":""},{"$f":"SUM(AR13,AT13)","v":{"$error":"#N/A"}},null,{"$f":"SUM(AP6,AG13,AH13,AI13,AK13,AU13)","v":{"$error":"#N/A"}},{"$f":"IF(R13>0,SUM(AM13,AJ13,AL13),\"\")","v":""},{"$f":"VLOOKUP(F13,$CF$3:$CH$8,3,FALSE)","v":{"$error":"#N/A"}},{"$f":"CONCATENATE(O13,U13)","v":{"$error":"#N/A"}},{"$f":"IF(AZ13=\"LL\",P13,AY13)","v":{"$error":"#N/A"}},{"$f":"IF(AZ13=\"LL\",V13,\"\")","v":{"$error":"#N/A"}},null,null,null,"HD724_6000K","DL-FLEX-HD-CV3W-60",3.5,0.29166666666666669,1,"_1_INCH",null,44,22,11,null,13,12,11,13,13,12,11,13,13,null,null,null,null,null,null,null,null,"CH-SM-35-AR-LEC",1,null,44,22,11,44,22,11,44,22,11,44,22,11,44,22,11,44,22,11]
[null,"C 43",{"$f":"VLOOKUP(CONFIGURATOR!E43,DATA!$B$6:$C$7,2,FALSE)","v":{"$error":"#N/A"}},{"$f":"CONFIGURATOR!F43","v":0},{"$f":"CONCATENATE(C14,D14)","v":{"$error":"#N/A"}},{"$f":"VLOOKUP(E14,$I$3:$J$8,2,FALSE)","v":{"$error":"#N/A"}},{"$f":"VLOOKUP(CONFIGURATOR!H43,DATA!$M$3:$N$8,2,FALSE)","v":{"$error":"#N/A"}},{"$f":"CONFIGURATOR!I43","v":0},{"$f":"CONFIGURATOR!K43","v":0},{"$f":"CONCATENATE(G14,H14)","v":{"$error":"#N/A"}},{"$error":"#N/A"},{"$error":"#N/A"},{"$error":"#N/A"},{"$f":"VLOOKUP(CONFIGURATOR!M43,DATA!$W$2:$X$6,2,FALSE)","v":{"$error":"#N/A"}},{"$error":"#N/A"},{"$error":"#N/A"},{"$f":"IF(N14=\"_PLUG_PLAY_IN_A_\",IF(CONFIGURATOR!N43<=18,\"DL-PS-PT-M\",IF(CONFIGURATOR!N43<=48,\"DL-PS-EXT-48\",IF(CONFIGURATOR!N43<=96,\"DL-PS-EXT-96\"))),\"\")&IF(N14=\"_PLUG_PLAY_IN_B_\",\"PS-CC-R-EXT-PB-36\",\"\")&IF(N14=\"_LINK_IN_\",\"DL-PS-EXT-48\",\"\")&IF(N14=\"_HARDWIRE_IN_\",IF(CONFIGURATOR!N43<=18,\"DL-PS-PT-M\",IF(CONFIGURATOR!N43<=48,\"DL-PS-EXT-48\",IF(CONFIGURATOR!N43<=96,\"DL-PS-EXT-96\"))),\"\")&IF(N14=\"_ST_\",IF(CONFIGURATOR!N43<=10,\"S601-CC12\",IF(CONFIGURATOR!N43<=22,\"S601-CC24\",IF(CONFIGURATOR!N43<=46,\"S601-CC48\"))),\"\")","v":{"$error":"#N/A"}},{"$f":"CONFIGURATOR!N43","v":0},{"$f":"IF(CONFIGURATOR!O43=\"BLACK\",\"BK\",\"\")&IF(CONFIGURATOR!O43=\"WHITE\",\"WH\",\"\")","v":""},{"$f":"VLOOKUP(CONFIGURATOR!Q43,DATA!$Y$2:$Z$6,2,FALSE)","v":{"$error":"#N/A"}},{"$error":"#N/A"},{"$error":"#N/A"},{"$f":"IF(T14=\"_PLUG_PLAY_OUT_A_\",IF(CONFIGURATOR!R43<=18,\"DL-PS-PT-F\",IF(CONFIGURATOR!R43<=48,\"DL-PS-EXT-48\",IF(CONFIGURATOR!R43<=96,\"DL-PS-EXT-96\"))),\"\")&IF(T14=\"_PLUG_PLAY_OUT_B_\",\"PS-CC-R-EXT-PB-36\",\"\")&IF(T14=\"_LINK_OUT_\",\"DL-PS-EXT-48\",\"\")&IF(T14=\"_HARDWIRE_OUT_\",IF(CONFIGURATOR!R43<=18,\"DL-PS-PT-F\",IF(CONFIGURATOR!R43<=48,\"DL-PS-EXT-48\",IF(CONFIGURATOR!R43<=96,\"DL-PS-EXT-96\"))),\"\")","v":{"$error":"#N/A"}},{"$f":"IF(CONFIGURATOR!C43>0,CONFIGURATOR!R43,\"\")","v":""},{"$f":"IF(CONFIGURATOR!S43=\"BLACK\",\"BK\",\"\")&IF(CONFIGURATOR!S43=\"WHITE\",\"WH\",\"\")","v":""},{"$f":"IF(CONFIGURATOR!C43>0,VLOOKUP(Q14,$B$31:$C$38,2,FALSE),\"\")","v":""},{"$f":"IFERROR(IF(CONFIGURATOR!C43>0,VLOOKUP(W14,$B$31:$C$38,2,FALSE),\"\"),\"\")","v":""},{"$f":"IF(CONFIGURATOR!C43>0,CONCATENATE(Q14,\"-\",S14),\"\")","v":""},{"$f":"IF(CONFIGURATOR!C43>0,VLOOKUP(AB14,$F$31:$G$45,2,FALSE),\"\")","v":""},{"$f":"IF(CONFIGURATOR!C43>0,CONCATENATE(W14,\"-\",Y14),\"\")","v":""},{"$f":"IF(CONFIGURATOR!C43>0,VLOOKUP(AD14,$F$31:$G$47,2,FALSE),\"\")","v":""},{"$f":"IF(CONFIGURATOR!C43>0,VLOOKUP(I14,$B$62:$C$157,2,FALSE),\"\")","v":""},{"$f":"IFERROR(CONFIGURATOR!K43*(VLOOKUP(G14,$F$64:$G$68,2,FALSE)),\"\")","v":""},0.1,"","","","","","",null,{"$error":"#N/A"},{"$error":"#N/A"},{"$error":"#N/A"},{"$error":"#N/A"},"",{"$error":"#N/A"},null,{"$error":"#N/A"},"",{"$error":"#N/A"},{"$error":"#N/A"},{"$f":"IF(AZ14=\"LL\",P14,AY14)","v":{"$error":"#N/A"}},{"$error":"#N/A"},null,null,null,"DL36_3000K","DL-FLEX36-30",2.9,0.24166666666666667,2,"_2_INCH",null,48,24,12,null,14,13,12,14,14,13,12,14,14,null,null,null,null,null,null,null,null,"CH-SM-35-TR-LEC",1,null,48,24,12,48,24,12,48,24,12,48,24,12,48,24,12,48,24,12]
[null,"D 51",{"$f":"VLOOKUP(CONFIGURATOR!E52,DATA!$B$6:$C$7,2,FALSE)","v":{"$error":"#N/A"}},{"$f":"CONFIGURATOR!F52","v":0},{"$error":"#N/A"},{"$error":"#N/A"},{"$f":"VLOOKUP(CONFIGURATOR!H52,DATA!$M$3:$N$8,2,FALSE)","v":{"$error":"#N/A"}},{"$f":"CONFIGURATOR!I52","v":0},{"$f":"CONFIGURATOR!K52","v":0},{"$error":"#N/A"},{"$error":"#N/A"},{"$error":"#N/A"},{"$error":"#N/A"},{"$f":"VLOOKUP(CONFIGURATOR!M52,DATA!$W$2:$X$6,2,FALSE)","v":{"$error":"#N/A"}},{"$error":"#N/A"},{"$error":"#N/A"},{"$f":"IF(N15=\"_PLUG_PLAY_IN_A_\",IF(CONFIGURATOR!N52<=18,\"DL-PS-PT-M\",IF(CONFIGURATOR!N52<=48,\"DL-PS-EXT-48\",IF(CONFIGURATOR!N52<=96,\"DL-PS-EXT-96\"))),\"\")&IF(N15=\"_PLUG_PLAY_IN_B_\",\"PS-CC-R-EXT-PB-36\",\"\")&IF(N15=\"_LINK_IN_\",\"DL-PS-EXT-48\",\"\")&IF(N15=\"_HARDWIRE_IN_\",IF(CONFIGURATOR!N52<=18,\"DL-PS-PT-M\",IF(CONFIGURATOR!N52<=48,\"DL-PS-EXT-48\",IF(CONFIGURATOR!N52<=96,\"DL-PS-EXT-96\"))),\"\")&IF(N15=\"_ST_\",IF(CONFIGURATOR!N52<=10,\"S601-CC12\",IF(CONFIGURATOR!N52<=22,\"S601-CC24\",IF(CONFIGURATOR!N52<=46,\"S601-CC48\"))),\"\")","v":{"$error":"#N/A"}},{"$f":"CONFIGURATOR!N52","v":0},{"$f":"IF(CONFIGURATOR!O52=\"BLACK\",\"BK\",\"\")&IF(CONFIGURATOR!O52=\"WHITE\",\"WH\",\"\")","v":""},{"$f":"VLOOKUP(CONFIGURATOR!Q52,DATA!$Y$2:$Z$6,2,FALSE)","v":{"$error":"#N/A"}},{"$error":"#N/A"},{"$error":"#N/A"},{"$f":"IF(T15=\"_PLUG_PLAY_OUT_A_\",IF(CONFIGURATOR!R52<=18,\"DL-PS-PT-F\",IF(CONFIGURATOR!R52<=48,\"DL-PS-EXT-48\",IF(CONFIGURATOR!R52<=96,\"DL-PS-EXT-96\"))),\"\")&IF(T15=\"_PLUG_PLAY_OUT_B_\",\"PS-CC-R-EXT-PB-36\",\"\")&IF(T15=\"_LINK_OUT_\",\"DL-PS-EXT-48\",\"\")&IF(T15=\"_HARDWIRE_OUT_\",IF(CONFIGURATOR!R52<=18,\"DL-PS-PT-F\",IF(CONFIGURATOR!R52<=48,\"DL-PS-EXT-48\",IF(CONFIGURATOR!R52<=96,\"DL-PS-EXT-96\"))),\"\")","v":{"$error":"#N/A"}},{"$f":"IF(CONFIGURATOR!C52>0,CONFIGURATOR!R52,\"\")","v":""},{"$f":"IF(CONFIGURATOR!S52=\"BLACK\",\"BK\",\"\")&IF(CONFIGURATOR!S52=\"WHITE\",\"WH\",\"\")","v":""},{"$f":"IF(CONFIGURATOR!C52>0,VLOOKUP(Q15,$B$31:$C$38,2,FALSE),\"\")","v":""},{"$f":"IFERROR(IF(CONFIGURATOR!C52>0,VLOOKUP(W15,$B$31:$C$38,2,FALSE),\"\"),\"\")","v":""},{"$f":"IF(CONFIGURATOR!C52>0,CONCATENATE(Q15,\"-\",S15),\"\")","v":""},{"$f":"IF(CONFIGURATOR!C52>0,VLOOKUP(AB15,$F$31:$G$45,2,FALSE),\"\")","v":""},{"$f":"IF(CONFIGURATOR!C52>0,CONCATENATE(W15,\"-\",Y15),\"\")","v":""},{"$f":"IF(CONFIGURATOR!C52>0,VLOOKUP(AD15,$F$31:$G$47,2,FALSE),\"\")","v":""},{"$f":"IF(CONFIGURATOR!C52>0,VLOOKUP(I15,$B$62:$C$157,2,FALSE),\"\")","v":""},{"$f":"IFERROR(CONFIGURATOR!K52*(VLOOKUP(G15,$F$64:$G$68,2,FALSE)),\"\")","v":""},0.1,"","","","","","",null,{"$error":"#N/A"},{"$error":"#N/A"},{"$error":"#N/A"},{"$error":"#N/A"},"",{"$error":"#N/A"},null,{"$error":"#N/A"},"",{"$error":"#N/A"},{"$error":"#N/A"},{"$error":"#N/A"},{"$error":"#N/A"},null,null,null,"DL36_3500K","DL-FLEX36-35",2.9,0.24166666666666667,2,"_2_INCH",null,52,26,13,null,15,14,null,15,15,14,null,15,15,null,null,null,null,null,null,null,null,"CH-SM-31-FR60-DEC",1,null,52,26,13,52,26,13,52,26,13,52,26,13,52,26,13,52,26,13]
[null,"E 59",{"$f":"VLOOKUP(CONFIGURATOR!E61,DATA!$B$6:$C$7,2,FALSE)","v":{"$error":"#N/A"}},{"$f":"CONFIGURATOR!F61","v":0},{"$error":"#N/A"},{"$error":"#N/A"},{"$f":"VLOOKUP(CONFIGURATOR!H61,DATA!$M$3:$N$8,2,FALSE)","v":{"$error":"#N/A"}},{"$f":"CONFIGURATOR!I61","v":0},{"$f":"CONFIGURATOR!K61","v":0},{"$error":"#N/A"},{"$error":"#N/A"},{"$error":"#N/A"},{"$error":"#N/A"},{"$f":"VLOOKUP(CONFIGURATOR!M61,DATA!$W$2:$X$6,2,FALSE)","v":{"$error":"#N/A"}},{"$error":"#N/A"},{"$error":"#N/A"},{"$f":"IF(N16=\"_PLUG_PLAY_IN_A_\",IF(CONFIGURATOR!N61<=18,\"DL-PS-PT-M\",IF(CONFIGURATOR!N61<=48,\"DL-PS-EXT-48\",IF(CONFIGURATOR!N30<=96,\"DL-PS-EXT-96\"))),\"\")&IF(N16=\"_PLUG_PLAY_IN_B_\",\"PS-CC-R-EXT-PB-36\",\"\")&IF(N16=\"_LINK_IN_\",\"DL-PS-EXT-48\",\"\")&IF(N16=\"_HARDWIRE_IN_\",IF(CONFIGURATOR!N61<=18,\"DL-PS-PT-M\",IF(CONFIGURATOR!N61<=48,\"DL-PS-EXT-48\",IF(CONFIGURATOR!N61<=96,\"DL-PS-EXT-96\"))),\"\")&IF(N16=\"_ST_\",IF(CONFIGURATOR!N61<=10,\"S601-CC12\",IF(CONFIGURATOR!N61<=22,\"S601-CC24\",IF(CONFIGURATOR!N61<=46,\"S601-CC48\"))),\"\")","v":{"$error":"#N/A"}},{"$f":"CONFIGURATOR!N61","v":0},{"$f":"IF(CONFIGURATOR!O61=\"BLACK\",\"BK\",\"\")&IF(CONFIGURATOR!O61=\"WHITE\",\"WH\",\"\")","v":""},{"$f":"VLOOKUP(CONFIGURATOR!Q61,DATA!$Y$2:$Z$6,2,FALSE)","v":{"$error":"#N/A"}},{"$error":"#N/A"},{"$error":"#N/A"},{"$f":"IF(T16=\"_PLUG_PLAY_OUT_A_\",IF(CONFIGURATOR!R61<=18,\"DL-PS-PT-F\",IF(CONFIGURATOR!R61<=48,\"DL-PS-EXT-48\",IF(CONFIGURATOR!R61<=96,\"DL-PS-EXT-96\"))),\"\")&IF(T16=\"_PLUG_PLAY_OUT_B_\",\"PS-CC-R-EXT-PB-36\",\"\")&IF(T16=\"_LINK_OUT_\",\"DL-PS-EXT-48\",\"\")&IF(T16=\"_HARDWIRE_OUT_\",IF(CONFIGURATOR!R61<=18,\"DL-PS-PT-F\",IF(CONFIGURATOR!R61<=48,\"DL-PS-EXT-48\",IF(CONFIGURATOR!R61<=96,\"DL-PS-EXT-96\"))),\"\")","v":{"$error":"#N/A"}},{"$f":"IF(CONFIGURATOR!C61>0,CONFIGURATOR!R61,\"\")","v":""},{"$f":"IF(CONFIGURATOR!S61=\"BLACK\",\"BK\",\"\")&IF(CONFIGURATOR!S61=\"WHITE\",\"WH\",\"\")","v":""},{"$f":"IF(CONFIGURATOR!C61>0,VLOOKUP(Q16,$B$31:$C$38,2,FALSE),\"\")","v":""},{"$f":"IFERROR(IF(CONFIGURATOR!C61>0,VLOOKUP(W16,$B$31:$C$38,2,FALSE),\"\"),\"\")","v":""},{"$f":"IF(CONFIGURATOR!C61>0,CONCATENATE(Q16,\"-\",S16),\"\")","v":""},{"$f":"IF(CONFIGURATOR!C61>0,VLOOKUP(AB16,$F$31:$G$45,2,FALSE),\"\")","v":""},{"$f":"IF(CONFIGURATOR!C61>0,CONCATENATE(W16,\"-\",Y16),\"\")","v":""},{"$f":"IF(CONFIGURATOR!C61>0,VLOOKUP(AD16,$F$31:$G$47,2,FALSE),\"\")","v":""},{"$f":"IF(CONFIGURATOR!C61>0,VLOOKUP(I16,$B$62:$C$157,2,FALSE),\"\")","v":""},{"$f":"IFERROR(CONFIGURATOR!K61*(VLOOKUP(G16,$F$64:$G$68,2,FALSE)),\"\")","v":""},0.1,"","","","","","",null,{"$error":"#N/A"},{"$error":"#N/A"},{"$error":"#N/A"},{"$error":"#N/A"},"",{"$error":"#N/A"},null,{"$error":"#N/A"},"",{"$error":"#N/A"},{"$error":"#N/A"},{"$error":"#N/A"},{"$error":"#N/A"},null,null,null,"DL36_4000K","DL-FLEX36-40",2.9,0.24166666666666667,2,"_2_INCH",null,56,28,14,null,16,15,null,16,16,15,null,16,16,null,null,null,null,null,null,null,null,"CH-SM-31-DEC",1,null,56,28,14,56,28,14,56,28,14,56,28,14,56,28,14,56,28,14]
[null,"F 67",{"$f":"VLOOKUP(CONFIGURATOR!E70,DATA!$B$6:$C$7,2,FALSE)","v":{"$error":"#N/A"}},{"$f":"CONFIGURATOR!F70","v":0},{"$error":"#N/A"},{"$error":"#N/A"},{"$f":"VLOOKUP(CONFIGURATOR!H70,DATA!$M$3:$N$8,2,FALSE)","v":{"$error":"#N/A"}},{"$f":"CONFIGURATOR!I70","v":0},{"$f":"CONFIGURATOR!K70","v":0},{"$error":"#N/A"},{"$error":"#N/A"},{"$error":"#N/A"},{"$error":"#N/A"},{"$f":"VLOOKUP(CONFIGURATOR!M70,DATA!$W$2:$X$6,2,FALSE)","v":{"$error":"#N/A"}},{"$error":"#N/A"},{"$error":"#N/A"},{"$f":"IF(N17=\"_PLUG_PLAY_IN_A_\",IF(CONFIGURATOR!N70<=18,\"DL-PS-PT-M\",IF(CONFIGURATOR!N70<=48,\"DL-PS-EXT-48\",IF(CONFIGURATOR!N70<=96,\"DL-PS-EXT-96\"))),\"\")&IF(N17=\"_PLUG_PLAY_IN_B_\",\"PS-CC-R-EXT-PB-36\",\"\")&IF(N17=\"_LINK_IN_\",\"DL-PS-EXT-48\",\"\")&IF(N17=\"_HARDWIRE_IN_\",IF(CONFIGURATOR!N70<=18,\"DL-PS-PT-M\",IF(CONFIGURATOR!N70<=48,\"DL-PS-EXT-48\",IF(CONFIGURATOR!N70<=96,\"DL-PS-EXT-96\"))),\"\")&IF(N17=\"_ST_\",IF(CONFIGURATOR!N70<=10,\"S601-CC12\",IF(CONFIGURATOR!N70<=22,\"S601-CC24\",IF(CONFIGURATOR!N70<=46,\"S601-CC48\"))),\"\")","v":{"$error":"#N/A"}},{"$f":"CONFIGURATOR!N70","v":0},{"$f":"IF(CONFIGURATOR!O70=\"BLACK\",\"BK\",\"\")&IF(CONFIGURATOR!O70=\"WHITE\",\"WH\",\"\")","v":""},{"$f":"VLOOKUP(CONFIGURATOR!Q70,DATA!$Y$2:$Z$6,2,FALSE)","v":{"$error":"#N/A"}},{"$error":"#N/A"},{"$error":"#N/A"},{"$f":"IF(T17=\"_PLUG_PLAY_OUT_A_\",IF(CONFIGURATOR!R70<=18,\"DL-PS-PT-F\",IF(CONFIGURATOR!R70<=48,\"DL-PS-EXT-48\",IF(CONFIGURATOR!R70<=96,\"DL-PS-EXT-96\"))),\"\")&IF(T17=\"_PLUG_PLAY_OUT_B_\",\"PS-CC-R-EXT-PB-36\",\"\")&IF(T17=\"_LINK_OUT_\",\"DL-PS-EXT-48\",\"\")&IF(T17=\"_HARDWIRE_OUT_\",IF(CONFIGURATOR!R70<=18,\"DL-PS-PT-F\",IF(CONFIGURATOR!R70<=48,\"DL-PS-EXT-48\",IF(CONFIGURATOR!R70<=96,\"DL-PS-EXT-96\"))),\"\")","v":{"$error":"#N/A"}},{"$f":"IF(CONFIGURATOR!C70>0,CONFIGURATOR!R70,\"\")","v":""},{"$f":"IF(CONFIGURATOR!S70=\"BLACK\",\"BK\",\"\")&IF(CONFIGURATOR!S70=\"WHITE\",\"WH\",\"\")","v":""},{"$f":"IF(CONFIGURATOR!C70>0,VLOOKUP(Q17,$B$31:$C$38,2,FALSE),\"\")","v":""},{"$f":"IFERROR(IF(CONFIGURATOR!C70>0,VLOOKUP(W17,$B$31:$C$38,2,FALSE),\"\"),\"\")","v":""},{"$f":"IF(CONFIGURATOR!C70>0,CONCATENATE(Q17,\"-\",S17),\"\")","v":""},{"$f":"IF(CONFIGURATOR!C70>0,VLOOKUP(AB17,$F$31:$G$45,2,FALSE),\"\")","v":""},{"$f":"IF(CONFIGURATOR!C70>0,CONCATENATE(W17,\"-\",Y17),\"\")","v":""},{"$f":"IF(CONFIGURATOR!C70>0,VLOOKUP(AD17,$F$31:$G$47,2,FALSE),\"\")","v":""},{"$f":"IF(CONFIGURATOR!C70>0,VLOOKUP(I17,$B$62:$C$157,2,FALSE),\"\")","v":""},{"$f":"IFERROR(CONFIGURATOR!K70*(VLOOKUP(G17,$F$64:$G$68,2,FALSE)),\"\")","v":""},0.1,"","","","","","",null,{"$error":"#N/A"},{"$error":"#N/A"},{"$error":"#N/A"},{"$error":"#N/A"},"",{"$error":"#N/A"},null,{"$error":"#N/A"},"",{"$error":"#N/A"},{"$error":"#N/A"},{"$error":"#N/A"},{"$error":"#N/A"},null,null,null,"CFX2_NW","CFX2-NW",1.5,0.125,4,"_4_INCH",null,60,30,15,null,17,16,null,17,17,16,null,17,17,null,null,null,null,null,null,null,null,"CH-SM-31-DEC",1,null,60,30,15,60,30,15,60,30,15,60,30,15,60,30,15,60,30,15]
[null,"G 75",{"$f":"VLOOKUP(CONFIGURATOR!E79,DATA!$B$6:$C$7,2,FALSE)","v":{"$error":"#N/A"}},{"$f":"CONFIGURATOR!F79","v":0},{"$error":"#N/A"},{"$error":"#N/A"},{"$f":"VLOOKUP(CONFIGURATOR!H79,DATA!$M$3:$N$8,2,FALSE)","v":{"$error":"#N/A"}},{"$f":"CONFIGURATOR!I79","v":0},{"$f":"CONFIGURATOR!K79","v":0},{"$error":"#N/A"},{"$error":"#N/A"},{"$error":"#N/A"},{"$error":"#N/A"},{"$f":"VLOOKUP(CONFIGURATOR!M79,DATA!$W$2:$X$6,2,FALSE)","v":{"$error":"#N/A"}},{"$error":"#N/A"},{"$error":"#N/A"},{"$f":"IF(N18=\"_PLUG_PLAY_IN_A_\",IF(CONFIGURATOR!N79<=18,\"DL-PS-PT-M\",IF(CONFIGURATOR!N79<=48,\"DL-PS-EXT-48\",IF(CONFIGURATOR!N79<=96,\"DL-PS-EXT-96\"))),\"\")&IF(N18=\"_PLUG_PLAY_IN_B_\",\"PS-CC-R-EXT-PB-36\",\"\")&IF(N18=\"_LINK_IN_\",\"DL-PS-EXT-48\",\"\")&IF(N18=\"_HARDWIRE_IN_\",IF(CONFIGURATOR!N79<=18,\"DL-PS-PT-M\",IF(CONFIGURATOR!N79<=48,\"DL-PS-EXT-48\",IF(CONFIGURATOR!N79<=96,\"DL-PS-EXT-96\"))),\"\")&IF(N18=\"_ST_\",IF(CONFIGURATOR!N79<=10,\"S601-CC12\",IF(CONFIGURATOR!N79<=22,\"S601-CC24\",IF(CONFIGURATOR!N79<=46,\"S601-CC48\"))),\"\")","v":{"$error":"#N/A"}},{"$f":"CONFIGURATOR!N79","v":0},{"$f":"IF(CONFIGURATOR!O79=\"BLACK\",\"BK\",\"\")&IF(CONFIGURATOR!O79=\"WHITE\",\"WH\",\"\")","v":""},{"$f":"VLOOKUP(CONFIGURATOR!Q79,DATA!$Y$2:$Z$6,2,FALSE)","v":{"$error":"#N/A"}},{"$error":"#N/A"},{"$error":"#N/A"},{"$f":"IF(T18=\"_PLUG_PLAY_OUT_A_\",IF(CONFIGURATOR!R79<=18,\"DL-PS-PT-F\",IF(CONFIGURATOR!R79<=48,\"DL-PS-EXT-48\",IF(CONFIGURATOR!R32<=96,\"DL-PS-EXT-96\"))),\"\")&IF(T18=\"_PLUG_PLAY_OUT_B_\",\"PS-CC-R-EXT-PB-36\",\"\")&IF(T18=\"_LINK_OUT_\",\"DL-PS-EXT-48\",\"\")&IF(T18=\"_HARDWIRE_OUT_\",IF(CONFIGURATOR!R79<=18,\"DL-PS-PT-F\",IF(CONFIGURATOR!R79<=48,\"DL-PS-EXT-48\",IF(CONFIGURATOR!R79<=96,\"DL-PS-EXT-96\"))),\"\")","v":{"$error":"#N/A"}},{"$f":"IF(CONFIGURATOR!C79>0,CONFIGURATOR!R79,\"\")","v":""},{"$f":"IF(CONFIGURATOR!S79=\"BLACK\",\"BK\",\"\")&IF(CONFIGURATOR!S79=\"WHITE\",\"WH\",\"\")","v":""},{"$f":"IF(CONFIGURATOR!C79>0,VLOOKUP(Q18,$B$31:$C$38,2,FALSE),\"\")","v":""},{"$f":"IFERROR(IF(CONFIGURATOR!C79>0,VLOOKUP(W18,$B$31:$C$38,2,FALSE),\"\"),\"\")","v":""},{"$f":"IF(CONFIGURATOR!C79>0,CONCATENATE(Q18,\"-\",S18),\"\")","v":""},{"$f":"IF(CONFIGURATOR!C79>0,VLOOKUP(AB18,$F$31:$G$45,2,FALSE),\"\")","v":""},{"$f":"IF(CONFIGURATOR!C79>0,CONCATENATE(W18,\"-\",Y18),\"\")","v":""},{"$f":"IF(CONFIGURATOR!C79>0,VLOOKUP(AD18,$F$31:$G$47,2,FALSE),\"\")","v":""},{"$f":"IF(CONFIGURATOR!C79>0,VLOOKUP(I18,$B$62:$C$157,2,FALSE),\"\")","v":""},{"$f":"IFERROR(CONFIGURATOR!K79*(VLOOKUP(G18,$F$64:$G$68,2,FALSE)),\"\")","v":""},0.1,"","","","","","",null,{"$error":"#N/A"},{"$error":"#N/A"},{"$error":"#N/A"},{"$error":"#N/A"},"",{"$error":"#N/A"},null,{"$error":"#N/A"},"",{"$error":"#N/A"},{"$error":"#N/A"},{"$error":"#N/A"},{"$error":"#N/A"},null,null,null,"CFX2_CW","CFX2-CW",1.5,0.125,4,"_4_INCH",null,64,32,16,null,18,17,null,18,18,17,null,18,18,null,null,null,null,null,null,null,null,"CH-SM-35-AR-DEC",1,null,64,32,16,64,32,16,64,32,16,64,32,16,64,32,16,64,32,16]
[null,"H 83",{"$f":"VLOOKUP(CONFIGURATOR!E88,DATA!$B$6:$C$7,2,FALSE)","v":{"$error":"#N/A"}},{"$f":"CONFIGURATOR!F88","v":0},{"$error":"#N/A"},{"$error":"#N/A"},{"$f":"VLOOKUP(CONFIGURATOR!H88,DATA!$M$3:$N$8,2,FALSE)","v":{"$error":"#N/A"}},{"$f":"CONFIGURATOR!I88","v":0},{"$f":"CONFIGURATOR!K88","v":0},{"$error":"#N/A"},{"$error":"#N/A"},{"$error":"#N/A"},{"$error":"#N/A"},{"$f":"VLOOKUP(CONFIGURATOR!M88,DATA!$W$2:$X$6,2,FALSE)","v":{"$error":"#N/A"}},{"$error":"#N/A"},{"$error":"#N/A"},{"$f":"IF(N19=\"_PLUG_PLAY_IN_A_\",IF(CONFIGURATOR!N88<=18,\"DL-PS-PT-M\",IF(CONFIGURATOR!N88<=48,\"DL-PS-EXT-48\",IF(CONFIGURATOR!N88<=96,\"DL-PS-EXT-96\"))),\"\")&IF(N19=\"_PLUG_PLAY_IN_B_\",\"PS-CC-R-EXT-PB-36\",\"\")&IF(N19=\"_LINK_IN_\",\"DL-PS-EXT-48\",\"\")&IF(N19=\"_HARDWIRE_IN_\",IF(CONFIGURATOR!N88<=18,\"DL-PS-PT-M\",IF(CONFIGURATOR!N88<=48,\"DL-PS-EXT-48\",IF(CONFIGURATOR!N88<=96,\"DL-PS-EXT-96\"))),\"\")&IF(N19=\"_ST_\",IF(CONFIGURATOR!N88<=10,\"S601-CC12\",IF(CONFIGURATOR!N88<=22,\"S601-CC24\",IF(CONFIGURATOR!N88<=46,\"S601-CC48\"))),\"\")","v":{"$error":"#N/A"}},{"$f":"CONFIGURATOR!N88","v":0},{"$f":"IF(CONFIGURATOR!O88=\"BLACK\",\"BK\",\"\")&IF(CONFIGURATOR!O88=\"WHITE\",\"WH\",\"\")","v":""},{"$f":"VLOOKUP(CONFIGURATOR!Q88,DATA!$Y$2:$Z$6,2,FALSE)","v":{"$error":"#N/A"}},{"$error":"#N/A"},{"$error":"#N/A"},{"$f":"IF(T19=\"_PLUG_PLAY_OUT_A_\",IF(CONFIGURATOR!R88<=18,\"DL-PS-PT-F\",IF(CONFIGURATOR!R88<=48,\"DL-PS-EXT-48\",IF(CONFIGURATOR!R88<=96,\"DL-PS-EXT-96\"))),\"\")&IF(T19=\"_PLUG_PLAY_OUT_B_\",\"PS-CC-R-EXT-PB-36\",\"\")&IF(T19=\"_LINK_OUT_\",\"DL-PS-EXT-48\",\"\")&IF(T19=\"_HARDWIRE_OUT_\",IF(CONFIGURATOR!R88<=18,\"DL-PS-PT-F\",IF(CONFIGURATOR!R88<=48,\"DL-PS-EXT-48\",IF(CONFIGURATOR!R88<=96,\"DL-PS-EXT-96\"))),\"\")","v":{"$error":"#N/A"}},{"$f":"IF(CONFIGURATOR!C88>0,CONFIGURATOR!R88,\"\")","v":""},{"$f":"IF(CONFIGURATOR!S88=\"BLACK\",\"BK\",\"\")&IF(CONFIGURATOR!S88=\"WHITE\",\"WH\",\"\")","v":""},{"$f":"IF(CONFIGURATOR!C88>0,VLOOKUP(Q19,$B$31:$C$38,2,FALSE),\"\")","v":""},{"$f":"IFERROR(IF(CONFIGURATOR!C88>0,VLOOKUP(W19,$B$31:$C$38,2,FALSE),\"\"),\"\")","v":""},{"$f":"IF(CONFIGURATOR!C88>0,CONCATENATE(Q19,\"-\",S19),\"\")","v":""},{"$f":"IF(CONFIGURATOR!C88>0,VLOOKUP(AB19,$F$31:$G$45,2,FALSE),\"\")","v":""},{"$f":"IF(CONFIGURATOR!C88>0,CONCATENATE(W19,\"-\",Y19),\"\")","v":""},{"$f":"IF(CONFIGURATOR!C88>0,VLOOKUP(AD19,$F$31:$G$47,2,FALSE),\"\")","v":""},{"$f":"IF(CONFIGURATOR!C88>0,VLOOKUP(I19,$B$62:$C$157,2,FALSE),\"\")","v":""},{"$f":"IFERROR(CONFIGURATOR!K88*(VLOOKUP(G19,$F$64:$G$68,2,FALSE)),\"\")","v":""},0.1,"","","","","","",null,{"$error":"#N/A"},{"$error":"#N/A"},{"$error":"#N/A"},{"$error":"#N/A"},"",{"$error":"#N/A"},null,{"$error":"#N/A"},"",{"$error":"#N/A"},{"$error":"#N/A"},{"$error":"#N/A"},{"$error":"#N/A"},null,null,null,"CFX2_WW","CFX2-WW",1.5,0.125,4,"_4_INCH",null,68,34,17,null,19,18,null,19,19,18,null,19,19,null,null,null,null,null,null,null,null,"CH-SM-35-AR-DEC",1,null,68,34,17,68,34,17,68,34,17,68,34,17,68,34,17,68,34,17]
[null,"I 91",{"$f":"VLOOKUP(CONFIGURATOR!E97,DATA!$B$6:$C$7,2,FALSE)","v":{"$error":"#N/A"}},{"$f":"CONFIGURATOR!F97","v":0},{"$error":"#N/A"},{"$error":"#N/A"},{"$f":"VLOOKUP(CONFIGURATOR!H97,DATA!$M$3:$N$8,2,FALSE)","v":{"$error":"#N/A"}},{"$f":"CONFIGURATOR!I97","v":0},{"$f":"CONFIGURATOR!K97","v":0},{"$error":"#N/A"},{"$error":"#N/A"},{"$error":"#N/A"},{"$error":"#N/A"},{"$f":"VLOOKUP(CONFIGURATOR!M97,DATA!$W$2:$X$6,2,FALSE)","v":{"$error":"#N/A"}},{"$error":"#N/A"},{"$error":"#N/A"},{"$f":"IF(N20=\"_PLUG_PLAY_IN_A_\",IF(CONFIGURATOR!N97<=18,\"DL-PS-PT-M\",IF(CONFIGURATOR!N97<=48,\"DL-PS-EXT-48\",IF(CONFIGURATOR!N97<=96,\"DL-PS-EXT-96\"))),\"\")&IF(N20=\"_PLUG_PLAY_IN_B_\",\"PS-CC-R-EXT-PB-36\",\"\")&IF(N20=\"_LINK_IN_\",\"DL-PS-EXT-48\",\"\")&IF(N20=\"_HARDWIRE_IN_\",IF(CONFIGURATOR!N97<=18,\"DL-PS-PT-M\",IF(CONFIGURATOR!N97<=48,\"DL-PS-EXT-48\",IF(CONFIGURATOR!N97<=96,\"DL-PS-EXT-96\"))),\"\")&IF(N20=\"_ST_\",IF(CONFIGURATOR!N97<=10,\"S601-CC12\",IF(CONFIGURATOR!N97<=22,\"S601-CC24\",IF(CONFIGURATOR!N97<=46,\"S601-CC48\"))),\"\")","v":{"$error":"#N/A"}},{"$f":"CONFIGURATOR!N97","v":0},{"$f":"IF(CONFIGURATOR!O97=\"BLACK\",\"BK\",\"\")&IF(CONFIGURATOR!O97=\"WHITE\",\"WH\",\"\")","v":""},{"$f":"VLOOKUP(CONFIGURATOR!Q97,DATA!$Y$2:$Z$6,2,FALSE)","v":{"$error":"#N/A"}},{"$error":"#N/A"},{"$error":"#N/A"},{"$f":"IF(T20=\"_PLUG_PLAY_OUT_A_\",IF(CONFIGURATOR!R97<=18,\"DL-PS-PT-F\",IF(CONFIGURATOR!R34<=48,\"DL-PS-EXT-48\",IF(CONFIGURATOR!R97<=96,\"DL-PS-EXT-96\"))),\"\")&IF(T20=\"_PLUG_PLAY_OUT_B_\",\"PS-CC-R-EXT-PB-36\",\"\")&IF(T20=\"_LINK_OUT_\",\"DL-PS-EXT-48\",\"\")&IF(T20=\"_HARDWIRE_OUT_\",IF(CONFIGURATOR!R97<=18,\"DL-PS-PT-F\",IF(CONFIGURATOR!R97<=48,\"DL-PS-EXT-48\",IF(CONFIGURATOR!R97<=96,\"DL-PS-EXT-96\"))),\"\")","v":{"$error":"#N/A"}},{"$f":"IF(CONFIGURATOR!C97>0,CONFIGURATOR!R97,\"\")","v":""},{"$f":"IF(CONFIGURATOR!S97=\"BLACK\",\"BK\",\"\")&IF(CONFIGURATOR!S97=\"WHITE\",\"WH\",\"\")","v":""},{"$f":"IF(CONFIGURATOR!C97>0,VLOOKUP(Q20,$B$31:$C$38,2,FALSE),\"\")","v":""},{"$f":"IFERROR(IF(CONFIGURATOR!C97>0,VLOOKUP(W20,$B$31:$C$38,2,FALSE),\"\"),\"\")","v":""},{"$f":"IF(CONFIGURATOR!C97>0,CONCATENATE(Q20,\"-\",S20),\"\")","v":""},{"$f":"IF(CONFIGURATOR!C97>0,VLOOKUP(AB20,$F$31:$G$45,2,FALSE),\"\")","v":""},{"$f":"IF(CONFIGURATOR!C97>0,CONCATENATE(W20,\"-\",Y20),\"\")","v":""},{"$f":"IF(CONFIGURATOR!C97>0,VLOOKUP(AD20,$F$31:$G$47,2,FALSE),\"\")","v":""},{"$f":"IF(CONFIGURATOR!C97>0,VLOOKUP(I20,$B$62:$C$157,2,FALSE),\"\")","v":""},{"$f":"IFERROR(CONFIGURATOR!K97*(VLOOKUP(G20,$F$64:$G$68,2,FALSE)),\"\")","v":""},0.1,"","","","","","",null,{"$error":"#N/A"},{"$error":"#N/A"},{"$error":"#N/A"},{"$error":"#N/A"},"",{"$error":"#N/A"},null,{"$error":"#N/A"},"",{"$error":"#N/A"},{"$error":"#N/A"},{"$error":"#N/A"},{"$error":"#N/A"},null,null,null,"CFX2P_WW","CFX2P-WW",3.2,{"$f":"BH20/12","v":0.26666666666666666},4,"_4_INCH",null,72,36,18,null,20,null,null,20,20,null,null,20,20,null,null,null,null,null,null,null,null,"CH-SM-35-TR-DEC",1,null,72,36,18,72,36,18,72,36,18,72,36,18,72,36,18,72,36,18]
[null,"J 99",{"$f":"VLOOKUP(CONFIGURATOR!E106,DATA!$B$6:$C$7,2,FALSE)","v":{"$error":"#N/A"}},{"$f":"CONFIGURATOR!F106","v":0},{"$error":"#N/A"},{"$error":"#N/A"},{"$f":"VLOOKUP(CONFIGURATOR!H106,DATA!$M$3:$N$8,2,FALSE)","v":{"$error":"#N/A"}},{"$f":"CONFIGURATOR!I106","v":0},{"$f":"CONFIGURATOR!K106","v":0},{"$error":"#N/A"},{"$error":"#N/A"},{"$error":"#N/A"},{"$error":"#N/A"},{"$f":"VLOOKUP(CONFIGURATOR!M106,DATA!$W$2:$X$6,2,FALSE)","v":{"$error":"#N/A"}},{"$error":"#N/A"},{"$error":"#N/A"},{"$f":"IF(N21=\"_PLUG_PLAY_IN_A_\",IF(CONFIGURATOR!N106<=18,\"DL-PS-PT-M\",IF(CONFIGURATOR!N106<=48,\"DL-PS-EXT-48\",IF(CONFIGURATOR!N106<=96,\"DL-PS-EXT-96\"))),\"\")&IF(N21=\"_PLUG_PLAY_IN_B_\",\"PS-CC-R-EXT-PB-36\",\"\")&IF(N21=\"_LINK_IN_\",\"DL-PS-EXT-48\",\"\")&IF(N21=\"_HARDWIRE_IN_\",IF(CONFIGURATOR!N106<=18,\"DL-PS-PT-M\",IF(CONFIGURATOR!N106<=48,\"DL-PS-EXT-48\",IF(CONFIGURATOR!N106<=96,\"DL-PS-EXT-96\"))),\"\")&IF(N21=\"_ST_\",IF(CONFIGURATOR!N106<=10,\"S601-CC12\",IF(CONFIGURATOR!N106<=22,\"S601-CC24\",IF(CONFIGURATOR!N106<=46,\"S601-CC48\"))),\"\")","v":{"$error":"#N/A"}},{"$f":"CONFIGURATOR!N106","v":0},{"$f":"IF(CONFIGURATOR!O106=\"BLACK\",\"BK\",\"\")&IF(CONFIGURATOR!O106=\"WHITE\",\"WH\",\"\")","v":""},{"$f":"VLOOKUP(CONFIGURATOR!Q106,DATA!$Y$2:$Z$6,2,FALSE)","v":{"$error":"#N/A"}},{"$error":"#N/A"},{"$error":"#N/A"},{"$f":"IF(T21=\"_PLUG_PLAY_OUT_A_\",IF(CONFIGURATOR!R106<=18,\"DL-PS-PT-F\",IF(CONFIGURATOR!R106<=48,\"DL-PS-EXT-48\",IF(CONFIGURATOR!R106<=96,\"DL-PS-EXT-96\"))),\"\")&IF(T21=\"_PLUG_PLAY_OUT_B_\",\"PS-CC-R-EXT-PB-36\",\"\")&IF(T21=\"_LINK_OUT_\",\"DL-PS-EXT-48\",\"\")&IF(T21=\"_HARDWIRE_OUT_\",IF(CONFIGURATOR!R106<=18,\"DL-PS-PT-F\",IF(CONFIGURATOR!R106<=48,\"DL-PS-EXT-48\",IF(CONFIGURATOR!R106<=96,\"DL-PS-EXT-96\"))),\"\")","v":{"$error":"#N/A"}},{"$f":"IF(CONFIGURATOR!C106>0,CONFIGURATOR!R106,\"\")","v":""},{"$f":"IF(CONFIGURATOR!S106=\"BLACK\",\"BK\",\"\")&IF(CONFIGURATOR!S106=\"WHITE\",\"WH\",\"\")","v":""},{"$f":"IF(CONFIGURATOR!C106>0,VLOOKUP(Q21,$B$31:$C$38,2,FALSE),\"\")","v":""},{"$f":"IFERROR(IF(CONFIGURATOR!C106>0,VLOOKUP(W21,$B$31:$C$38,2,FALSE),\"\"),\"\")","v":""},{"$f":"IF(CONFIGURATOR!C106>0,CONCATENATE(Q21,\"-\",S21),\"\")","v":""},{"$f":"IF(CONFIGURATOR!C106>0,VLOOKUP(AB21,$F$31:$G$45,2,FALSE),\"\")","v":""},{"$f":"IF(CONFIGURATOR!C106>0,CONCATENATE(W21,\"-\",Y21),\"\")","v":""},{"$f":"IF(CONFIGURATOR!C106>0,VLOOKUP(AD21,$F$31:$G$47,2,FALSE),\"\")","v":""},{"$f":"IF(CONFIGURATOR!C106>0,VLOOKUP(I21,$B$62:$C$157,2,FALSE),\"\")","v":""},{"$f":"IFERROR(CONFIGURATOR!K106*(VLOOKUP(G21,$F$64:$G$68,2,FALSE)),\"\")","v":""},0.1,"","","","","","",null,{"$error":"#N/A"},{"$error":"#N/A"},{"$error":"#N/A"},{"$error":"#N/A"},"",{"$error":"#N/A"},null,{"$error":"#N/A"},"",{"$error":"#N/A"},{"$error":"#N/A"},{"$error":"#N/A"},{"$error":"#N/A"},null,null,null,"CFX2P_NW","CFX2P-NW",3.2,{"$f":"BH21/12","v":0.26666666666666666},4,"_4_INCH",null,76,38,19,null,21,null,null,21,21,null,null,21,21,null,null,null,null,null,null,null,null,null,null,null,76,38,19,76,38,19,76,38,19,null,38,19,76,38,19,76,38,19]
[null,null,null,null,null,null,null,null,null,null,null,null,null,null,null,null,null,null,null,null,null,null,null,null,null,null,null,null,null,null,null,null,null,null,null,null,null,null,null,null,null,"",null,null,null,null,null,null,null,null,null,null,null,null,null,null,null,"CFX2P_CW","CFX2P-CW",3.2,{"$f":"BH22/12","v":0.26666666666666666},4,"_4_INCH",null,80,40,20,null,22,null,null,22,22,null,null,22,22,null,null,null,null,null,null,null,null,null,null,null,80,40,20,80,40,20,80,40,20,null,40,20,80,40,20,80,40,20]
[null,null,null,null,null,null,null,null,null,null,null,null,null,null,null,null,null,null,null,null,null,null,null,null,null,null,null,null,null,null,null,null,null,null,null,null,null,null,null,null,null,"",null,null,null,null,null,null,null,null,null,null,null,null,null,null,null,null,null,null,null,null,null,null,84,42,21,null,23,null,null,23,23,null,null,23,23,null,null,null,null,null,null,null,null,null,null,null,84,42,21,84,42,21,84,42,21,null,42,21,84,42,21,84,42,21]
[null,null,null,null,null,null,null,null,null,null,null,null,"IN","OUT",null,null,null,null,null,null,null,null,null,null,null,null,null,null,null,null,null,null,null,null,null,null,null,null,null,null,null,null,null,null,null,null,null,null,null,null,null,null,null,null,null,null,null,null,null,null,null,null,null,null,88,44,22,null,24,null,null,24,24,null,null,24,24,null,null,null,null,null,null,null,null,null,null,null,88,44,22,88,44,22,88,44,22,null,44,22,88,44,22,88,44,22]
[null,"_DL_PS_PT_M","_DL-PS-PT-F","_DL_PS_EXT48_",null,"_DL_PS_EXT96_","_PS_CC_EXT_PB36_","_S601_CC12_","_S601_CC24_","_S601_CC48_",null,null,{"$f":"VLOOKUP(N12,$X$2:$AA$6,4,FALSE)","v":{"$error":"#N/A"}},{"$f":"VLOOKUP(T12,Z2:AB6,3,FALSE)","v":{"$error":"#N/A"}},"A",{"$f":"IFERROR(CONCATENATE(\"CBF\",CONFIGURATOR!E25,CONFIGURATOR!F25,CONFIGURATOR!K25,CONFIGURATOR!H25,CONFIGURATOR!J25,CONFIGURATOR!L25,M25,CONFIGURATOR!N25,N25,CONFIGURATOR!R25),\"\")","v":""},null,null,null,null,null,null,null,null,null,null,null,null,null,null,null,null,null,null,null,null,null,null,null,null,null,null,null,null,null,null,null,null,null,null,null,null,null,null,null,null,null,null,null,null,null,null,null,null,92,46,23,null,25,null,null,25,25,null,null,25,25,null,null,null,null,null,null,null,null,null,null,null,92,46,23,92,46,23,92,46,23,null,46,23,92,46,23,92,46,23]
[null,null,null,null,null,null,null,null,null,null,null,null,null,null,null,{"$f":"IF(CONFIGURATOR!C25>0,(CONCATENATE(\"BESPOKE \",CONFIGURATOR!E25,\" \",CONFIGURATOR!K25,\"IN. \",\"WITH \",CONFIGURATOR!F25,\" LENS \",CONFIGURATOR!H25,\" LED \",CONFIGURATOR!I25,\" \",CONFIGURATOR!M25,\" \",CONFIGURATOR!N25,\"IN. \",CONFIGURATOR!O25,\" WITH \",CONFIGURATOR!Q25,\" \",CONFIGURATOR!R25,\" \",CONFIGURATOR!V25,CONFIGURATOR!S25 )),\"\")","v":""},null,null,null,null,null,null,null,null,null,null,null,null,null,null,null,null,null,null,null,null,null,null,null,null,null,null,null,null,null,null,null,null,null,null,null,null,null,null,null,null,null,null,null,null,null,null,null,null,96,48,24,null,26,null,null,26,26,null,null,26,26,null,null,null,null,null,null,null,null,null,null,null,96,48,24,96,48,24,96,48,24,null,48,24,96,48,24,96,48,24]
[null,"BLACK","BLACK","BLACK",null,"BLACK","WHITE","BLACK","BLACK","BLACK",null,null,null,null,null,null,null,null,null,null,null,null,null,null,null,null,null,null,null,null,null,null,null,null,null,null,null,null,null,null,null,null,null,null,null,null,null,null,null,null,null,null,null,null,null,null,null,null,null,null,null,null,null,null,null,50,25,null,27,null,null,27,27,null,null,27,27,null,null,null,null,null,null,null,null,null,null,null,null,50,25,null,50,25,null,50,25,null,50,25,null,50,25,null,50,25]
[null,"WHITE","WHITE","WHITE",null,"WHITE",null,"WHITE","WHITE","WHITE",null,null,null,null,null,null,null,null,null,null,null,null,null,null,null,null,null,null,null,null,null,null,null,null,null,null,null,null,null,null,null,null,null,null,null,null,null,null,null,null,null,null,null,null,null,null,null,null,null,null,null,null,null,null,null,52,26,null,28,null,null,28,28,null,null,28,28,null,null,null,null,null,null,null,null,null,null,null,null,52,26,null,52,26,null,52,26,null,52,26,null,52,26,null,52,26]
[null,null,null,null,null,null,null,null,null,null,null,null,null,null,null,null,null,null,null,null,null,null,null,null,null,null,null,null,null,null,null,null,null,null,null,null,null,null,null,null,null,null,null,null,null,null,null,null,null,null,null,null,null,null,null,null,null,null,null,null,null,null,null,null,null,54,27,null,29,null,null,29,29,null,null,29,29,null,null,null,null,null,null,null,null,null,null,null,null,54,27,null,54,27,null,54,27,null,54,27,null,54,27,null,54,27]
[null,null,null,null,null,null,null,null,null,null,null,null,null,null,null,null,null,null,null,null,null,null,null,null,null,null,null,null,null,null,null,null,null,null,null,null,null,null,null,null,null,null,null,null,null,null,null,null,null,null,null,null,null,null,null,null,null,null,null,null,null,null,null,null,null,56,28,null,30,null,null,30,30,null,null,30,30,null,null,null,null,null,null,null,null,null,null,null,null,56,28,null,56,28,null,56,28,null,56,28,null,56,28,null,56,28]
[null,"DL-PS-PT-M","_DL_PS_PT_M",1,null,"PS-CC-R-EXT-PB-36-WH","PS-CC-R-EXT-PB-36",0.39,2.5,null,"2700K",27,null,null,null,null,null,null,null,null,null,null,null,null,null,null,null,null,null,null,null,null,null,null,null,null,null,null,null,null,null,null,null,null,null,null,null,null,null,null,null,null,null,null,null,null,null,null,null,null,null,null,null,null,null,58,29,null,31,null,null,31,31,null,null,31,31,null,null,null,null,null,null,null,null,null,null,null,null,58,29,null,58,29,null,58,29,null,58,29,null,58,29,null,58,29]
[null,"DL-PS-PT-F","_DL_PS_PT_F",1,null,"DL-PS-PT-M-WH","DL-PS-EXT-48-WH",1.37,8,null,"3000K",30,null,null,null,null,null,null,null,null,null,null,null,null,null,null,null,null,null,null,null,null,null,null,null,null,null,null,null,null,null,null,null,null,null,null,null,null,null,null,null,null,null,null,null,null,null,null,null,null,null,null,null,null,null,60,30,null,32,null,null,32,32,null,null,32,32,null,null,null,null,null,null,null,null,null,null,null,null,60,30,null,60,30,null,60,30,null,60,30,null,60,30,null,60,30]
[null,"DL-PS-EXT-48","_DL_PS_EXT48_",1,null,"DL-PS-PT-F-WH","DL-PS-EXT-48-WH",1.37,8,null,"3500K",35,{"$f":"VLOOKUP(N13,$X$2:$AA$6,4,FALSE)","v":{"$error":"#N/A"}},{"$f":"VLOOKUP(T13,$Z$2:$AB$6,3,FALSE)","v":{"$error":"#N/A"}},"B",{"$f":"IFERROR(CONCATENATE(\"CBF\",CONFIGURATOR!E34,CONFIGURATOR!F34,CONFIGURATOR!K34,CONFIGURATOR!H34,CONFIGURATOR!J34,CONFIGURATOR!L34,M33,CONFIGURATOR!N34,N33,CONFIGURATOR!R34),\"\")","v":""},null,null,null,null,null,null,null,null,null,null,null,null,null,null,null,null,null,null,null,null,null,null,null,null,null,null,null,null,null,null,null,null,null,null,null,null,null,null,null,null,null,null,null,null,null,null,null,null,null,62,31,null,33,null,null,33,33,null,null,33,33,null,null,null,null,null,null,null,null,null,null,null,null,62,31,null,62,31,null,62,31,null,62,31,null,62,31,null,62,31]
[null,"DL-PS-EXT-96","_DL_PS_EXT96_",1,null,"DL-PS-EXT-48-WH","DL-PS-EXT-48-WH",1.37,8,null,"4000K",40,null,null,null,{"$f":"IF(CONFIGURATOR!C34>0,(CONCATENATE(\"BESPOKE \",CONFIGURATOR!E34,\" \",CONFIGURATOR!K34,\"IN. \",\"WITH \",CONFIGURATOR!F34,\" LENS \",CONFIGURATOR!H34,\" LED \",CONFIGURATOR!I34,\" \",CONFIGURATOR!M34,\" \",CONFIGURATOR!N34,\"IN. \",CONFIGURATOR!O34,\" WITH \",CONFIGURATOR!Q34,\" \",CONFIGURATOR!R34,\" \",CONFIGURATOR!V34,CONFIGURATOR!S34 )),\"\")","v":""},null,null,null,null,null,null,null,null,null,null,null,null,null,null,null,null,null,null,null,null,null,null,null,null,null,null,null,null,null,null,null,null,null,null,null,null,null,null,null,null,null,null,null,null,null,null,null,null,null,64,32,null,34,null,null,34,34,null,null,34,34,null,null,null,null,null,null,null,null,null,null,null,null,64,32,null,64,32,null,64,32,null,64,32,null,64,32,null,64,32]
[null,"PS-CC-R-EXT-PB-36","_PS_CC_EXT_PB36_",1,null,"DL-PS-EXT-96-WH","DL-PS-EXT-96-WH",0.87,15,null,"6000K",60,null,null,null,null,null,null,null,null,null,null,null,null,null,null,null,null,null,null,null,null,null,null,null,null,null,null,null,null,null,null,null,null,null,null,null,null,null,null,null,null,null,null,null,null,null,null,null,null,null,null,null,null,null,66,33,null,35,null,null,35,35,null,null,35,35,null,null,null,null,null,null,null,null,null,null,null,null,66,33,null,66,33,null,66,33,null,66,33,null,66,33,null,66,33]
[null,"S601-CC12","_S601_CC12_",1,null,"S601-CC12-WH","S601-CC12-WH",0.35,4,null,"NW","NW",null,null,null,null,null,null,null,null,null,null,null,null,null,null,null,null,null,null,null,null,null,null,null,null,null,null,null,null,null,null,null,null,null,null,null,null,null,null,null,null,null,null,null,null,null,null,null,null,null,null,null,null,null,68,34,null,36,null,null,36,36,null,null,36,36,null,null,null,null,null,null,null,null,null,null,null,null,68,34,null,68,34,null,68,34,null,68,34,null,68,34,null,68,34]
[null,"S601-CC24","_S601_CC24_",1,null,"S601-CC24-WH","S601-CC24-WH",0.57999999999999996,4.5,null,"CW","CW",null,null,null,null,null,null,null,null,null,null,null,null,null,null,null,null,null,null,null,null,null,null,null,null,null,null,null,null,null,null,null,null,null,null,null,null,null,null,null,null,null,null,null,null,null,null,null,null,null,null,null,null,null,70,35,null,37,null,null,37,37,null,null,37,37,null,null,null,null,null,null,null,null,null,null,null,null,70,35,null,70,35,null,70,35,null,70,35,null,70,35,null,70,35]
[null,"S601-CC48","_S601_CC48_",1,null,"S601-CC48-WH","S601-CC48-WH",0.69,5,null,"WW","WW",null,null,null,null,null,null,null,null,null,null,null,null,null,null,null,null,null,null,null,null,null,null,null,null,null,null,null,null,null,null,null,null,null,null,null,null,null,null,null,null,null,null,null,null,null,null,null,null,null,null,null,null,null,72,36,null,38,null,null,38,38,null,null,38,38,null,null,null,null,null,null,null,null,null,null,null,null,72,36,null,72,36,null,72,36,null,72,36,null,72,36,null,72,36]
[null,null,null,"\" \"",null,"DL-PS-PT-M-BK","DL-PS-PT-M",2,5,null,null,null,null,null,null,null,null,null,null,null,null,null,null,null,null,null,null,null,null,null,null,null,null,null,null,null,null,null,null,null,null,null,null,null,null,null,null,null,null,null,null,null,null,null,null,null,null,null,null,null,null,null,null,null,null,74,37,null,39,null,null,39,39,null,null,39,39,null,null,null,null,null,null,null,null,null,null,null,null,74,37,null,74,37,null,74,37,null,null,37,null,74,37,null,74,37]
[null,null,null,null,null,"DL-PS-PT-F-BK","DL-PS-PT-F",2,5,null,null,null,null,null,null,null,null,null,null,null,null,null,null,null,null,null,null,null,null,null,null,null,null,null,null,null,null,null,null,null,null,null,null,null,null,null,null,null,null,null,null,null,null,null,null,null,null,null,null,null,null,null,null,null,null,76,38,null,40,null,null,40,40,null,null,40,40,null,null,null,null,null,null,null,null,null,null,null,null,76,38,null,76,38,null,76,38,null,null,38,null,76,38,null,76,38]
[null,"HD72",null,null,null,"DL-PS-EXT-48-BK","DL-PS-EXT-48",1.37,8,null,null,null,{"$f":"VLOOKUP(N14,$X$2:$AA$6,4,FALSE)","v":{"$error":"#N/A"}},{"$f":"VLOOKUP(T14,$Z$2:$AB$6,3,FALSE)","v":{"$error":"#N/A"}},"C",{"$f":"IFERROR(CONCATENATE(\"CBF\",CONFIGURATOR!E43,CONFIGURATOR!F43,CONFIGURATOR!K43,CONFIGURATOR!H43,CONFIGURATOR!J43,CONFIGURATOR!L43,M41,CONFIGURATOR!N43,N41,CONFIGURATOR!R43),\"\")","v":""},null,null,null,null,null,null,null,null,null,null,null,null,null,null,null,null,null,null,null,null,null,null,null,null,null,null,null,null,null,null,null,null,null,null,null,null,null,null,null,null,null,null,null,null,null,null,null,null,null,78,39,null,41,null,null,41,41,null,null,41,41,null,null,null,null,null,null,null,null,null,null,null,null,78,39,null,78,39,null,78,39,null,null,39,null,78,39,null,78,39]
[null,"HD724",null,null,null,"DL-PS-EXT-96-BK","DL-PS-EXT-96",1.64,12,null,null,null,null,null,null,{"$f":"IF(CONFIGURATOR!C43>0,(CONCATENATE(\"BESPOKE \",CONFIGURATOR!E43,\" \",CONFIGURATOR!K43,\"IN. \",\"WITH \",CONFIGURATOR!F43,\" LENS \",CONFIGURATOR!H43,\" LED \",CONFIGURATOR!I43,\" \",CONFIGURATOR!M43,\" \",CONFIGURATOR!N43,\"IN. \",CONFIGURATOR!O43,\" WITH \",CONFIGURATOR!Q43,\" \",CONFIGURATOR!R43,\" \",CONFIGURATOR!V43,CONFIGURATOR!S43 )),\"\")","v":""},null,null,null,null,null,null,null,null,null,null,null,null,null,null,null,null,null,null,null,null,null,null,null,null,null,null,null,null,null,null,null,null,null,null,null,null,null,null,null,null,null,null,null,null,null,null,null,null,null,80,40,null,42,null,null,42,42,null,null,42,42,null,null,null,null,null,null,null,null,null,null,null,null,80,40,null,80,40,null,80,40,null,null,40,null,80,40,null,80,40]
[null,"CFX2",null,null,null,"S601-CC12-BK","S601-CC12-BK",0.35,4,null,null,null,null,null,null,null,null,null,null,null,null,null,null,null,null,null,null,null,null,null,null,null,null,null,null,null,null,null,null,null,null,null,null,null,null,null,null,null,null,null,null,null,null,null,null,null,null,null,null,null,null,null,null,null,null,82,41,null,43,null,null,43,43,null,null,43,43,null,null,null,null,null,null,null,null,null,null,null,null,82,41,null,82,41,null,82,41,null,null,41,null,82,41,null,82,41]
[null,"CFX2P",null,null,null,"S601-CC24-BK","S601-CC24-BK",0.57999999999999996,4.5,null,null,null,null,null,null,null,null,null,null,null,null,null,null,null,null,null,null,null,null,null,null,null,null,null,null,null,null,null,null,null,null,null,null,null,null,null,null,null,null,null,null,null,null,null,null,null,null,null,null,null,null,null,null,null,null,84,42,null,44,null,null,44,44,null,null,44,44,null,null,null,null,null,null,null,null,null,null,null,null,84,42,null,84,42,null,84,42,null,null,42,null,84,42,null,84,42]
[null,"DL36",null,null,null,"S601-CC48-BK","S601-CC48-BK",0.69,5,null,null,null,null,null,null,null,null,null,null,null,null,null,null,null,null,null,null,null,null,null,null,null,null,null,null,null,null,null,null,null,null,null,null,null,null,null,null,null,null,null,null,null,null,null,null,null,null,null,null,null,null,null,null,null,null,86,43,null,45,null,null,45,45,null,null,45,45,null,null,null,null,null,null,null,null,null,null,null,null,86,43,null,86,43,null,86,43,null,null,43,null,86,43,null,86,43]
[null,null,null,null,null,null,null,null,null,null,null,null,null,null,null,null,null,null,null,null,null,null,null,null,null,null,null,null,null,null,null,null,null,null,null,null,null,null,null,null,null,null,null,null,null,null,null,null,null,null,null,null,null,null,null,null,null,null,null,null,null,null,null,null,null,88,44,null,46,null,null,46,46,null,null,46,46,null,null,null,null,null,null,null,null,null,null,null,null,88,44,null,88,44,null,88,44,null,null,44,null,88,44,null,88,44]
[null,null,null,null,null,null,null,null,null,null,null,null,null,null,null,null,null,null,null,null,null,null,null,null,null,null,null,null,null,null,null,null,null,null,null,null,null,null,null,null,null,null,null,null,null,null,null,null,null,null,null,null,null,null,null,null,null,null,null,null,null,null,null,null,null,90,45,null,47,null,null,47,47,null,null,47,null,null,null,null,null,null,null,null,null,null,null,null,null,90,45,null,90,45,null,90,45,null,null,45,null,90,45,null,90,45]
[null,null,null,null,null,null,null,null,null,null,"CON MODEL","Lm/IN",null,null,null,null,null,null,null,null,null,null,null,null,null,null,null,null,null,null,null,null,null,null,null,null,null,null,null,null,null,null,null,null,null,null,null,null,null,null,null,null,null,null,null,null,null,null,null,null,null,null,null,null,null,92,46,null,48,null,null,48,48,null,null,48,null,null,null,null,null,null,null,null,null,null,null,null,null,92,46,null,92,46,null,92,46,null,null,46,null,92,46,null,92,46]
[null,"COST/FT",null,null,null,"CHANNEL","FC","DN",null,null,"HD722700K",40.083329999999997,{"$f":"VLOOKUP(N15,$X$2:$AA$6,4,FALSE)","v":{"$error":"#N/A"}},{"$f":"VLOOKUP(T15,$Z$2:$AB$6,3,FALSE)","v":{"$error":"#N/A"}},"D",{"$f":"IF(CONFIGURATOR!C52>0,CONCATENATE(\"CBF\",CONFIGURATOR!E52,CONFIGURATOR!F52,CONFIGURATOR!K52,CONFIGURATOR!H52,CONFIGURATOR!J52,CONFIGURATOR!L52,M49,CONFIGURATOR!N52,N49,CONFIGURATOR!R52),\"\")","v":""},null,null,null,null,null,null,null,null,null,null,null,null,null,null,null,null,null,null,null,null,null,null,null,null,null,null,null,null,null,null,null,null,null,null,null,null,null,null,null,null,null,null,null,null,null,null,null,null,null,94,47,null,49,null,null,49,49,null,null,49,null,null,null,null,null,null,null,null,null,null,null,null,null,94,47,null,94,47,null,94,47,null,null,47,null,94,47,null,94,47]
[null,1,31.95,null,null,"CH-SM-31-FR60-12",0.83,null,null,null,"HD723000K",41.91666,null,null,null,{"$f":"IF(CONFIGURATOR!C52>0,(CONCATENATE(\"BESPOKE \",CONFIGURATOR!E52,\" \",CONFIGURATOR!K52,\"IN. \",\"WITH \",CONFIGURATOR!F52,\" LENS \",CONFIGURATOR!H52,\" LED \",CONFIGURATOR!I52,\" \",CONFIGURATOR!M52,\" \",CONFIGURATOR!N52,\"IN. \",CONFIGURATOR!O52,\" WITH \",CONFIGURATOR!Q52,\" \",CONFIGURATOR!R52,\" \",CONFIGURATOR!V52,CONFIGURATOR!S52 )),\"\")","v":""},null,null,null,null,null,null,null,null,null,null,null,null,null,null,null,null,null,null,null,null,null,null,null,null,null,null,null,null,null,null,null,null,null,null,null,null,null,null,null,null,null,null,null,null,null,null,null,null,null,96,48,null,50,null,null,50,50,null,null,50,null,null,null,null,null,null,null,null,null,null,null,null,null,96,48,null,96,48,null,96,48,null,null,48,null,96,48,null,96,48]
[null,2,61.95,null,null,"CH-SM-31-FR60-96-12",0.76,null,null,null,"HD723500K",43.833329999999997,null,null,null,null,null,null,null,null,null,null,null,null,null,null,null,null,null,null,null,null,null,null,null,null,null,null,null,null,null,null,null,null,null,null,null,null,null,null,null,null,null,null,null,null,null,null,null,null,null,null,null,null,null,null,49,null,51,null,null,51,51,null,null,51,null,null,null,null,null,null,null,null,null,null,null,null,null,null,49,null,null,49,null,null,49,null,null,49,null,null,49,null,null,49]
[null,3,90.95,null,null,"CH-SM-31-FR-12",0.55000000000000004,null,null,null,"HD724000K",47,null,null,null,null,null,null,null,null,null,null,null,null,null,null,null,null,null,null,null,null,null,null,null,null,null,null,null,null,null,null,null,null,null,null,null,null,null,null,null,null,null,null,null,null,null,null,null,null,null,null,null,null,null,null,50,null,52,null,null,52,52,null,null,52,null,null,null,null,null,null,null,null,null,null,null,null,null,null,50,null,null,50,null,null,50,null,null,50,null,null,50,null,null,50]
[null,4,115.95,null,null,"CH-SM-31-OP-12",0.55000000000000004,null,null,null,"HD726000K",49.25,null,null,null,null,null,null,null,null,null,null,null,null,null,null,null,null,null,null,null,null,null,null,null,null,null,null,null,null,null,null,null,null,null,null,null,null,null,null,null,null,null,null,null,null,null,null,null,null,null,null,null,null,null,null,51,null,53,null,null,53,53,null,null,53,null,null,null,null,null,null,null,null,null,null,null,null,null,null,51,null,null,51,null,null,51,null,null,51,null,null,51,null,null,51]
[null,5,151.94999999999999,null,null,"CH-SM-35-ARFR-12",0.55000000000000004,null,null,null,"HD7243000K",30.83333,null,null,null,null,null,null,null,null,null,null,null,null,null,null,null,null,null,null,null,null,null,null,null,null,null,null,null,null,null,null,null,null,null,null,null,null,null,null,null,null,null,null,null,null,null,null,null,null,null,null,null,null,null,null,52,null,54,null,null,54,54,null,null,54,null,null,null,null,null,null,null,null,null,null,null,null,null,null,52,null,null,52,null,null,52,null,null,52,null,null,52,null,null,52]
[null,6,179.95,null,null,"CH-SM-35-AROP-12",0.55000000000000004,null,null,null,"HD7243500K",31.666599999999999,null,null,null,null,null,null,null,null,null,null,null,null,null,null,null,null,null,null,null,null,null,null,null,null,null,null,null,null,null,null,null,null,null,null,null,null,null,null,null,null,null,null,null,null,null,null,null,null,null,null,null,null,null,null,53,null,55,null,null,55,55,null,null,55,null,null,null,null,null,null,null,null,null,null,null,null,null,null,53,null,null,53,null,null,53,null,null,53,null,null,53,null,null,53]
[null,7,211.95,null,null,"CH-SM-35-TROP-12",0.55000000000000004,null,null,null,"HD7244000K",31.666599999999999,null,null,null,null,null,null,null,null,null,null,null,null,null,null,null,null,null,null,null,null,null,null,null,null,null,null,null,null,null,null,null,null,null,null,null,null,null,null,null,null,null,null,null,null,null,null,null,null,null,null,null,null,null,null,54,null,56,null,null,56,56,null,null,56,null,null,null,null,null,null,null,null,null,null,null,null,null,null,54,null,null,54,null,null,54,null,null,54,null,null,54,null,null,54]
[null,8,229.95,null,null,"CH-SM-31-96",2.9,null,null,null,"HD7246000K",32.5,{"$f":"VLOOKUP(N16,$X$2:$AA$6,4,FALSE)","v":{"$error":"#N/A"}},{"$f":"VLOOKUP(T16,$Z$2:$AB$6,3,FALSE)","v":{"$error":"#N/A"}},"E",{"$f":"IF(CONFIGURATOR!C61>0,CONCATENATE(\"CBF\",CONFIGURATOR!E61,CONFIGURATOR!F61,CONFIGURATOR!K61,CONFIGURATOR!H61,CONFIGURATOR!J61,CONFIGURATOR!L61,M57,CONFIGURATOR!N61,N57,CONFIGURATOR!R61),\"\")","v":""},null,null,null,null,null,null,null,null,null,null,null,null,null,null,null,null,null,null,null,null,null,null,null,null,null,null,null,null,null,null,null,null,null,null,null,null,null,null,null,null,null,null,null,null,null,null,null,null,null,null,55,null,57,null,null,57,57,null,null,57,null,null,null,null,null,null,null,null,null,null,null,null,null,null,55,null,null,55,null,null,55,null,null,55,null,null,55,null,null,55]
[null,null,null,null,null,"CH-SM-312-LC-FR",2,null,null,null,"DL363000K",24.08333,null,null,null,{"$f":"IF(CONFIGURATOR!C61>0,(CONCATENATE(\"BESPOKE \",CONFIGURATOR!E61,\" \",CONFIGURATOR!K61,\"IN. \",\"WITH \",CONFIGURATOR!F61,\" LENS \",CONFIGURATOR!H61,\" LED \",CONFIGURATOR!I61,\" \",CONFIGURATOR!M61,\" \",CONFIGURATOR!N61,\"IN. \",CONFIGURATOR!O61,\" WITH \",CONFIGURATOR!Q61,\" \",CONFIGURATOR!R61,\" \",CONFIGURATOR!V61,CONFIGURATOR!S61 )),\"\")","v":""},null,null,null,null,null,null,null,null,null,null,null,null,null,null,null,null,null,null,null,null,null,null,null,null,null,null,null,null,null,null,null,null,null,null,null,null,null,null,null,null,null,null,null,null,null,null,null,null,null,null,56,null,58,null,null,58,58,null,null,58,null,null,null,null,null,null,null,null,null,null,null,null,null,null,56,null,null,56,null,null,56,null,null,56,null,null,56,null,null,56]
[null,null,null,null,null,"CH-SM-312-LC-OP",2,null,null,null,"DL363500K",24.333300000000001,null,null,null,null,null,null,null,null,null,null,null,null,null,null,null,null,null,null,null,null,null,null,null,null,null,null,null,null,null,null,null,null,null,null,null,null,null,null,null,null,null,null,null,null,null,null,null,null,null,null,null,null,null,null,57,null,59,null,null,59,59,null,null,59,null,null,null,null,null,null,null,null,null,null,null,null,null,null,57,null,null,57,null,null,57,null,null,57,null,null,57,null,null,57]
[null,null,null,null,null,null,null,null,null,null,"DL364000K",24.583333,null,null,null,null,null,null,null,null,null,null,null,null,null,null,null,null,null,null,null,null,null,null,null,null,null,null,null,null,null,null,null,null,null,null,null,null,null,null,null,null,null,null,null,null,null,null,null,null,null,null,null,null,null,null,58,null,60,null,null,60,60,null,null,60,null,null,null,null,null,null,null,null,null,null,null,null,null,null,58,null,null,58,null,null,58,null,null,58,null,null,58,null,null,58]
[null,"INCHES","RD FEET",null,null,null,null,null,null,null,"CFX2WW",12.416665999999999,null,null,null,null,null,null,null,null,null,null,null,null,null,null,null,null,null,null,null,null,null,null,null,null,null,null,null,null,null,null,null,null,null,null,null,null,null,null,null,null,null,null,null,null,null,null,null,null,null,null,null,null,null,null,59,null,61,null,null,61,61,null,null,61,null,null,null,null,null,null,null,null,null,null,null,null,null,null,59,null,null,59,null,null,59,null,null,59,null,null,59,null,null,59]
[null,1,1,null,null,null,null,null,null,null,"CFX2NW",12.916665999999999,null,null,null,null,null,null,null,null,null,null,null,null,null,null,null,null,null,null,null,null,null,null,null,null,null,null,null,null,null,null,null,null,null,null,null,null,null,null,null,null,null,null,null,null,null,null,null,null,null,null,null,null,null,null,60,null,62,null,null,62,62,null,null,62,null,null,null,null,null,null,null,null,null,null,null,null,null,null,60,null,null,60,null,null,60,null,null,60,null,null,60,null,null,60]
[null,2,1,null,null,"LED STRIP","FC / IN","FC / FT",null,null,"CFX2CW",13.16666,null,null,null,null,null,null,null,null,null,null,null,null,null,null,null,null,null,null,null,null,null,null,null,null,null,null,null,null,null,null,null,null,null,null,null,null,null,null,null,null,null,null,null,null,null,null,null,null,null,null,null,null,null,null,61,null,63,null,null,63,63,null,null,63,null,null,null,null,null,null,null,null,null,null,null,null,null,null,61,null,null,61,null,null,61,null,null,61,null,null,61,null,null,61]
[null,3,1,null,null,"HD72_",0.15,{"$f":"G64*12","v":1.7999999999999998},null,null,"CFX2PWW",23.916665999999999,null,null,null,null,null,null,null,null,null,null,null,null,null,null,null,null,null,null,null,null,null,null,null,null,null,null,null,null,null,null,null,null,null,null,null,null,null,null,null,null,null,null,null,null,null,null,null,null,null,null,null,null,null,null,62,null,64,null,null,64,64,null,null,64,null,null,null,null,null,null,null,null,null,null,null,null,null,null,62,null,null,62,null,null,62,null,null,62,null,null,62,null,null,62]
[null,4,1,null,null,"HD724_",0.13,{"$f":"G65*12","v":1.56},null,null,"CFX2PNW",24.416665999999999,{"$f":"VLOOKUP(N17,$X$2:$AA$6,4,FALSE)","v":{"$error":"#N/A"}},{"$f":"VLOOKUP(T17,$Z$2:$AB$6,3,FALSE)","v":{"$error":"#N/A"}},"F",{"$f":"IF(CONFIGURATOR!C70>0,CONCATENATE(\"CBF\",CONFIGURATOR!E70,CONFIGURATOR!F70,CONFIGURATOR!K70,CONFIGURATOR!H70,CONFIGURATOR!J70,CONFIGURATOR!L70,M65,CONFIGURATOR!N70,N65,CONFIGURATOR!R70),\"\")","v":""},null,null,null,null,null,null,null,null,null,null,null,null,null,null,null,null,null,null,null,null,null,null,null,null,null,null,null,null,null,null,null,null,null,null,null,null,null,null,null,null,null,null,null,null,null,null,null,null,null,null,63,null,65,null,null,65,65,null,null,65,null,null,null,null,null,null,null,null,null,null,null,null,null,null,63,null,null,63,null,null,63,null,null,63,null,null,63,null,null,63]
[null,5,1,null,null,"DL36_",0.11,{"$f":"G66*12","v":1.32},null,null,"CFX2PCW",25.16666,null,null,null,{"$f":"IF(CONFIGURATOR!C70>0,(CONCATENATE(\"BESPOKE \",CONFIGURATOR!E70,\" \",CONFIGURATOR!K70,\"IN. \",\"WITH \",CONFIGURATOR!F70,\" LENS \",CONFIGURATOR!H70,\" LED \",CONFIGURATOR!I70,\" \",CONFIGURATOR!M70,\" \",CONFIGURATOR!N70,\"IN. \",CONFIGURATOR!O70,\" WITH \",CONFIGURATOR!Q70,\" \",CONFIGURATOR!R70,\" \",CONFIGURATOR!V70,CONFIGURATOR!S70 )),\"\")","v":""},null,null,null,null,null,null,null,null,null,null,null,null,null,null,null,null,null,null,null,null,null,null,null,null,null,null,null,null,null,null,null,null,null,null,null,null,null,null,null,null,null,null,null,null,null,null,null,null,null,null,64,null,66,null,null,66,66,null,null,66,null,null,null,null,null,null,null,null,null,null,null,null,null,null,64,null,null,64,null,null,64,null,null,64,null,null,64,null,null,64]
[null,6,1,null,null,"CFX2_",5.2999999999999999E-2,{"$f":"G67*12","v":0.63600000000000001},null,null,null,null,null,null,null,null,null,null,null,null,null,null,null,null,null,null,null,null,null,null,null,null,null,null,null,null,null,null,null,null,null,null,null,null,null,null,null,null,null,null,null,null,null,null,null,null,null,null,null,null,null,null,null,null,null,null,65,null,67,null,null,67,67,null,null,67,null,null,null,null,null,null,null,null,null,null,null,null,null,null,65,null,null,65,null,null,65,null,null,65,null,null,65,null,null,65]
[null,7,1,null,null,"CFX2P_",0.123,{"$f":"G68*12","v":1.476},null,null,null,null,null,null,null,null,null,null,null,null,null,null,null,null,null,null,null,null,null,null,null,null,null,null,null,null,null,null,null,null,null,null,null,null,null,null,null,null,null,null,null,null,null,null,null,null,null,null,null,null,null,null,null,null,null,null,66,null,68,null,null,68,68,null,null,68,null,null,null,null,null,null,null,null,null,null,null,null,null,null,66,null,null,66,null,null,66,null,null,66,null,null,66,null,null,66]
[null,8,1,null,null,null,null,null,null,null,"LENS","TRANSMITTANCE",null,null,null,null,null,null,null,null,null,null,null,null,null,null,null,null,null,null,null,null,null,null,null,null,null,null,null,null,null,null,null,null,null,null,null,null,null,null,null,null,null,null,null,null,null,null,null,null,null,null,null,null,null,null,67,null,69,null,null,69,69,null,null,69,null,null,null,null,null,null,null,null,null,null,null,null,null,null,67,null,null,67,null,null,67,null,null,67,null,null,67,null,null,67]
[null,9,1,null,null,null,null,null,null,null,"FR",0.8,null,null,null,null,null,null,null,null,null,null,null,null,null,null,null,null,null,null,null,null,null,null,null,null,null,null,null,null,null,null,null,null,null,null,null,null,null,null,null,null,null,null,null,null,null,null,null,null,null,null,null,null,null,null,68,null,70,null,null,70,70,null,null,70,null,null,null,null,null,null,null,null,null,null,null,null,null,null,68,null,null,68,null,null,68,null,null,68,null,null,68,null,null,68]
[null,10,1,null,null,"SM31_FR1","CH-SM-31-FR-12",null,null,null,"OP",0.75,null,null,null,null,null,null,null,null,null,null,null,null,null,null,null,null,null,null,null,null,null,null,null,null,null,null,null,null,null,null,null,null,null,null,null,null,null,null,null,null,null,null,null,null,null,null,null,null,null,null,null,null,null,null,69,null,71,null,null,71,71,null,null,71,null,null,null,null,null,null,null,null,null,null,null,null,null,null,69,null,null,69,null,null,69,null,null,69,null,null,69,null,null,69]
[null,11,1,null,null,"SM31_FR2","CH-SM-31-FR-12",null,null,null,"FR60",0.9,null,null,null,null,null,null,null,null,null,null,null,null,null,null,null,null,null,null,null,null,null,null,null,null,null,null,null,null,null,null,null,null,null,null,null,null,null,null,null,null,null,null,null,null,null,null,null,null,null,null,null,null,null,null,70,null,72,null,null,72,72,null,null,72,null,null,null,null,null,null,null,null,null,null,null,null,null,null,70,null,null,70,null,null,70,null,null,70,null,null,70,null,null,70]
[null,12,1,null,null,"SM31_FR3","CH-SM-31-FR-12",null,null,null,"ARFR",0.8,{"$f":"VLOOKUP(N18,$X$2:$AA$6,4,FALSE)","v":{"$error":"#N/A"}},{"$f":"VLOOKUP(T18,$Z$2:$AB$6,3,FALSE)","v":{"$error":"#N/A"}},"G",{"$f":"IF(CONFIGURATOR!C79>0,CONCATENATE(\"CBF\",CONFIGURATOR!E79,CONFIGURATOR!F79,CONFIGURATOR!K79,CONFIGURATOR!H79,CONFIGURATOR!J79,CONFIGURATOR!L79,M73,CONFIGURATOR!N79,N73,CONFIGURATOR!R79),\"\")","v":""},null,null,null,null,null,null,null,null,null,null,null,null,null,null,null,null,null,null,null,null,null,null,null,null,null,null,null,null,null,null,null,null,null,null,null,null,null,null,null,null,null,null,null,null,null,null,null,null,null,null,71,null,73,null,null,73,73,null,null,73,null,null,null,null,null,null,null,null,null,null,null,null,null,null,71,null,null,71,null,null,71,null,null,71,null,null,71,null,null,71]
[null,13,2,null,null,"SM31_FR4","CH-SM-31-FR-12",null,null,null,"AROP",0.75,null,null,null,{"$f":"IF(CONFIGURATOR!C79>0,(CONCATENATE(\"BESPOKE \",CONFIGURATOR!E79,\" \",CONFIGURATOR!K79,\"IN. \",\"WITH \",CONFIGURATOR!F79,\" LENS \",CONFIGURATOR!H79,\" LED \",CONFIGURATOR!I79,\" \",CONFIGURATOR!M79,\" \",CONFIGURATOR!N79,\"IN. \",CONFIGURATOR!O79,\" WITH \",CONFIGURATOR!Q79,\" \",CONFIGURATOR!R79,\" \",CONFIGURATOR!V79,CONFIGURATOR!S79 )),\"\")","v":""},null,null,null,null,null,null,null,null,null,null,null,null,null,null,null,null,null,null,null,null,null,null,null,null,null,null,null,null,null,null,null,null,null,null,null,null,null,null,null,null,null,null,null,null,null,null,null,null,null,null,72,null,74,null,null,74,74,null,null,74,null,null,null,null,null,null,null,null,null,null,null,null,null,null,72,null,null,72,null,null,72,null,null,72,null,null,72,null,null,72]
[null,14,2,null,null,"SM31_FR5","CH-SM-31-FR-12",null,null,null,"TROP",0.75,null,null,null,null,null,null,null,null,null,null,null,null,null,null,null,null,null,null,null,null,null,null,null,null,null,null,null,null,null,null,null,null,null,null,null,null,null,null,null,null,null,null,null,null,null,null,null,null,null,null,null,null,null,null,73,null,75,null,null,75,75,null,null,75,null,null,null,null,null,null,null,null,null,null,null,null,null,null,73,null,null,73,null,null,73,null,null,null,null,null,73,null,null,73]
[null,15,2,null,null,"SM31_FR6","CH-SM-31-FR-12",null,null,null,null,null,null,null,null,null,null,null,null,null,null,null,null,null,null,null,null,null,null,null,null,null,null,null,null,null,null,null,null,null,null,null,null,null,null,null,null,null,null,null,null,null,null,null,null,null,null,null,null,null,null,null,null,null,null,null,74,null,76,null,null,76,76,null,null,76,null,null,null,null,null,null,null,null,null,null,null,null,null,null,74,null,null,74,null,null,74,null,null,null,null,null,74,null,null,74]
[null,16,2,null,null,"SM31_FR7","CH-SM-31-FR-12",null,null,null,null,null,null,null,null,null,null,null,null,null,null,null,null,null,null,null,null,null,null,null,null,null,null,null,null,null,null,null,null,null,null,null,null,null,null,null,null,null,null,null,null,null,null,null,null,null,null,null,null,null,null,null,null,null,null,null,75,null,77,null,null,77,77,null,null,77,null,null,null,null,null,null,null,null,null,null,null,null,null,null,75,null,null,75,null,null,75,null,null,null,null,null,75,null,null,75]
[null,17,2,null,null,"SM31_FR8","CH-SM-31-FR-12",null,null,null,null,null,null,null,null,null,null,null,null,null,null,null,null,null,null,null,null,null,null,null,null,null,null,null,null,null,null,null,null,null,null,null,null,null,null,null,null,null,null,null,null,null,null,null,null,null,null,null,null,null,null,null,null,null,null,null,76,null,78,null,null,78,78,null,null,78,null,null,null,null,null,null,null,null,null,null,null,null,null,null,76,null,null,76,null,null,76,null,null,null,null,null,76,null,null,76]
[null,18,2,null,null,"SM31_FR9","CH-SM-31-FR-12",null,null,null,null,null,null,null,null,null,null,null,null,null,null,null,null,null,null,null,null,null,null,null,null,null,null,null,null,null,null,null,null,null,null,null,null,null,null,null,null,null,null,null,null,null,null,null,null,null,null,null,null,null,null,null,null,null,null,null,77,null,79,null,null,79,79,null,null,79,null,null,null,null,null,null,null,null,null,null,null,null,null,null,77,null,null,77,null,null,77,null,null,null,null,null,77,null,null,77]
[null,19,2,null,null,"SM31_FR10","CH-SM-31-FR-12",null,null,null,null,null,null,null,null,null,null,null,null,null,null,null,null,null,null,null,null,null,null,null,null,null,null,null,null,null,null,null,null,null,null,null,null,null,null,null,null,null,null,null,null,null,null,null,null,null,null,null,null,null,null,null,null,null,null,null,78,null,80,null,null,80,80,null,null,80,null,null,null,null,null,null,null,null,null,null,null,null,null,null,78,null,null,78,null,null,78,null,null,null,null,null,78,null,null,78]
[null,20,2,null,null,"SM31_FR11","CH-SM-31-FR-12",null,null,null,null,null,{"$f":"VLOOKUP(N19,$X$2:$AA$6,4,FALSE)","v":{"$error":"#N/A"}},{"$f":"VLOOKUP(T19,$Z$2:$AB$6,3,FALSE)","v":{"$error":"#N/A"}},"H",{"$f":"IF(CONFIGURATOR!C88>0,CONCATENATE(\"CBF\",CONFIGURATOR!E88,CONFIGURATOR!F88,CONFIGURATOR!K88,CONFIGURATOR!H88,CONFIGURATOR!J88,CONFIGURATOR!L88,M81,CONFIGURATOR!N88,N81,CONFIGURATOR!R88),\"\")","v":""},null,null,null,null,null,null,null,null,null,null,null,null,null,null,null,null,null,null,null,null,null,null,null,null,null,null,null,null,null,null,null,null,null,null,null,null,null,null,null,null,null,null,null,null,null,null,null,null,null,null,79,null,81,null,null,81,81,null,null,81,null,null,null,null,null,null,null,null,null,null,null,null,null,null,79,null,null,79,null,null,79,null,null,null,null,null,79,null,null,79]
[null,21,2,null,null,"SM31_FR12","CH-SM-31-FR-12",null,null,null,null,null,null,null,null,{"$f":"IF(CONFIGURATOR!C88>0,(CONCATENATE(\"BESPOKE \",CONFIGURATOR!E88,\" \",CONFIGURATOR!K88,\"IN. \",\"WITH \",CONFIGURATOR!F88,\" LENS \",CONFIGURATOR!H88,\" LED \",CONFIGURATOR!I88,\" \",CONFIGURATOR!M88,\" \",CONFIGURATOR!N88,\"IN. \",CONFIGURATOR!O88,\" WITH \",CONFIGURATOR!Q88,\" \",CONFIGURATOR!R88,\" \",CONFIGURATOR!V88,CONFIGURATOR!S88 )),\"\")","v":""},null,null,null,null,null,null,null,null,null,null,null,null,null,null,null,null,null,null,null,null,null,null,null,null,null,null,null,null,null,null,null,null,null,null,null,null,null,null,null,null,null,null,null,null,null,null,null,null,null,null,80,null,82,null,null,82,82,null,null,82,null,null,null,null,null,null,null,null,null,null,null,null,null,null,80,null,null,80,null,null,80,null,null,null,null,null,80,null,null,80]
[null,22,2,null,null,"SM31_FR13","CH-SM-31-FR-12",null,null,null,null,null,null,null,null,null,null,null,null,null,null,null,null,null,null,null,null,null,null,null,null,null,null,null,null,null,null,null,null,null,null,null,null,null,null,null,null,null,null,null,null,null,null,null,null,null,null,null,null,null,null,null,null,null,null,null,81,null,83,null,null,83,83,null,null,83,null,null,null,null,null,null,null,null,null,null,null,null,null,null,81,null,null,81,null,null,81,null,null,null,null,null,81,null,null,81]
[null,23,2,null,null,"SM31_FR14","CH-SM-31-FR-12",null,null,null,null,null,null,null,null,null,null,null,null,null,null,null,null,null,null,null,null,null,null,null,null,null,null,null,null,null,null,null,null,null,null,null,null,null,null,null,null,null,null,null,null,null,null,null,null,null,null,null,null,null,null,null,null,null,null,null,82,null,84,null,null,84,84,null,null,84,null,null,null,null,null,null,null,null,null,null,null,null,null,null,82,null,null,82,null,null,82,null,null,null,null,null,82,null,null,82]
[null,24,2,null,null,"SM31_FR15","CH-SM-31-FR-12",null,null,null,null,null,null,null,null,null,null,null,null,null,null,null,null,null,null,null,null,null,null,null,null,null,null,null,null,null,null,null,null,null,null,null,null,null,null,null,null,null,null,null,null,null,null,null,null,null,null,null,null,null,null,null,null,null,null,null,83,null,85,null,null,85,85,null,null,85,null,null,null,null,null,null,null,null,null,null,null,null,null,null,83,null,null,83,null,null,83,null,null,null,null,null,83,null,null,83]
[null,25,3,null,null,"SM31_FR16","CH-SM-31-FR-12",null,null,null,null,null,null,null,null,null,null,null,null,null,null,null,null,null,null,null,null,null,null,null,null,null,null,null,null,null,null,null,null,null,null,null,null,null,null,null,null,null,null,null,null,null,null,null,null,null,null,null,null,null,null,null,null,null,null,null,84,null,86,null,null,86,86,null,null,86,null,null,null,null,null,null,null,null,null,null,null,null,null,null,84,null,null,84,null,null,84,null,null,null,null,null,84,null,null,84]
[null,26,3,null,null,"SM31_FR17","CH-SM-31-FR-12",null,null,null,null,null,null,null,null,null,null,null,null,null,null,null,null,null,null,null,null,null,null,null,null,null,null,null,null,null,null,null,null,null,null,null,null,null,null,null,null,null,null,null,null,null,null,null,null,null,null,null,null,null,null,null,null,null,null,null,85,null,87,null,null,87,87,null,null,87,null,null,null,null,null,null,null,null,null,null,null,null,null,null,85,null,null,85,null,null,85,null,null,null,null,null,85,null,null,85]
[null,27,3,null,null,"SM31_FR18","CH-SM-31-FR-12",null,null,null,null,null,null,null,null,null,null,null,null,null,null,null,null,null,null,null,null,null,null,null,null,null,null,null,null,null,null,null,null,null,null,null,null,null,null,null,null,null,null,null,null,null,null,null,null,null,null,null,null,null,null,null,null,null,null,null,86,null,88,null,null,88,88,null,null,88,null,null,null,null,null,null,null,null,null,null,null,null,null,null,86,null,null,86,null,null,86,null,null,null,null,null,86,null,null,86]
[null,28,3,null,null,"SM31_FR19","CH-SM-31-FR-12",null,null,null,null,null,{"$f":"VLOOKUP(N20,$X$2:$AA$6,4,FALSE)","v":{"$error":"#N/A"}},{"$f":"VLOOKUP(T20,$Z$2:$AB$6,3,FALSE)","v":{"$error":"#N/A"}},"I",{"$f":"IF(CONFIGURATOR!C97>0,CONCATENATE(\"CBF\",CONFIGURATOR!E97,CONFIGURATOR!F97,CONFIGURATOR!K97,CONFIGURATOR!H97,CONFIGURATOR!J97,CONFIGURATOR!L97,M89,CONFIGURATOR!N97,N89,CONFIGURATOR!R97),\"\")","v":""},null,null,null,null,null,null,null,null,null,null,null,null,null,null,null,null,null,null,null,null,null,null,null,null,null,null,null,null,null,null,null,null,null,null,null,null,null,null,null,null,null,null,null,null,null,null,null,null,null,null,87,null,89,null,null,89,89,null,null,89,null,null,null,null,null,null,null,null,null,null,null,null,null,null,87,null,null,87,null,null,87,null,null,null,null,null,87,null,null,87]
[null,29,3,null,null,"SM31_FR20","CH-SM-31-FR-12",null,null,null,null,null,null,null,null,{"$f":"IF(CONFIGURATOR!C97>0,(CONCATENATE(\"BESPOKE \",CONFIGURATOR!E97,\" \",CONFIGURATOR!K97,\"IN. \",\"WITH \",CONFIGURATOR!F97,\" LENS \",CONFIGURATOR!H97,\" LED \",CONFIGURATOR!I97,\" \",CONFIGURATOR!M97,\" \",CONFIGURATOR!N97,\"IN. \",CONFIGURATOR!O97,\" WITH \",CONFIGURATOR!Q97,\" \",CONFIGURATOR!R97,\" \",CONFIGURATOR!V97,CONFIGURATOR!S97 )),\"\")","v":""},null,null,null,null,null,null,null,null,null,null,null,null,null,null,null,null,null,null,null,null,null,null,null,null,null,null,null,null,null,null,null,null,null,null,null,null,null,null,null,null,null,null,null,null,null,null,null,null,null,null,88,null,90,null,null,90,90,null,null,90,null,null,null,null,null,null,null,null,null,null,null,null,null,null,88,null,null,88,null,null,88,null,null,null,null,null,88,null,null,88]
[null,30,3,null,null,"SM31_FR21","CH-SM-31-FR-12",null,null,null,null,null,null,null,null,null,null,null,null,null,null,null,null,null,null,null,null,null,null,null,null,null,null,null,null,null,null,null,null,null,null,null,null,null,null,null,null,null,null,null,null,null,null,null,null,null,null,null,null,null,null,null,null,null,null,null,89,null,91,null,null,91,91,null,null,91,null,null,null,null,null,null,null,null,null,null,null,null,null,null,89,null,null,89,null,null,89,null,null,null,null,null,89,null,null,89]
[null,31,3,null,null,"SM31_FR22","CH-SM-31-FR-12",null,null,null,null,null,null,null,null,null,null,null,null,null,null,null,null,null,null,null,null,null,null,null,null,null,null,null,null,null,null,null,null,null,null,null,null,null,null,null,null,null,null,null,null,null,null,null,null,null,null,null,null,null,null,null,null,null,null,null,90,null,92,null,null,92,92,null,null,92,null,null,null,null,null,null,null,null,null,null,null,null,null,null,90,null,null,90,null,null,90,null,null,null,null,null,90,null,null,90]
[null,32,3,null,null,"SM31_FR23","CH-SM-31-FR-12",null,null,null,null,null,null,null,null,null,null,null,null,null,null,null,null,null,null,null,null,null,null,null,null,null,null,null,null,null,null,null,null,null,null,null,null,null,null,null,null,null,null,null,null,null,null,null,null,null,null,null,null,null,null,null,null,null,null,null,91,null,93,null,null,93,93,null,null,93,null,null,null,null,null,null,null,null,null,null,null,null,null,null,91,null,null,91,null,null,91,null,null,null,null,null,91,null,null,91]
[null,33,3,null,null,"SM31_FR24","CH-SM-31-FR-12",null,null,null,null,null,null,null,null,null,null,null,null,null,null,null,null,null,null,null,null,null,null,null,null,null,null,null,null,null,null,null,null,null,null,null,null,null,null,null,null,null,null,null,null,null,null,null,null,null,null,null,null,null,null,null,null,null,null,null,92,null,94,null,null,94,94,null,null,94,null,null,null,null,null,null,null,null,null,null,null,null,null,null,92,null,null,92,null,null,92,null,null,null,null,null,92,null,null,92]
[null,34,3,null,null,"SM31_FR25","CH-SM-31-FR-12",null,null,null,null,null,null,null,null,null,null,null,null,null,null,null,null,null,null,null,null,null,null,null,null,null,null,null,null,null,null,null,null,null,null,null,null,null,null,null,null,null,null,null,null,null,null,null,null,null,null,null,null,null,null,null,null,null,null,null,93,null,95,null,null,95,95,null,null,95,null,null,null,null,null,null,null,null,null,null,null,null,null,null,93,null,null,93,null,null,93,null,null,null,null,null,93,null,null,93]
[null,35,3,null,null,"SM31_FR26","CH-SM-31-FR-12",null,null,null,null,null,null,null,null,null,null,null,null,null,null,null,null,null,null,null,null,null,null,null,null,null,null,null,null,null,null,null,null,null,null,null,null,null,null,null,null,null,null,null,null,null,null,null,null,null,null,null,null,null,null,null,null,null,null,null,94,null,96,null,null,96,96,null,null,96,null,null,null,null,null,null,null,null,null,null,null,null,null,null,94,null,null,94,null,null,94,null,null,null,null,null,94,null,null,94]
[null,36,3,null,null,"SM31_FR27","CH-SM-31-FR-12",null,null,null,null,null,{"$f":"VLOOKUP(N21,$X$2:$AA$6,4,FALSE)","v":{"$error":"#N/A"}},{"$f":"VLOOKUP(T21,$Z$2:$AB$6,3,FALSE)","v":{"$error":"#N/A"}},"J",{"$f":"IF(CONFIGURATOR!C106>0,CONCATENATE(\"CBF\",CONFIGURATOR!E106,CONFIGURATOR!F106,CONFIGURATOR!K106,CONFIGURATOR!H106,CONFIGURATOR!J106,CONFIGURATOR!L106,M97,CONFIGURATOR!N106,N97,CONFIGURATOR!R106),\"\")","v":""},null,null,null,null,null,null,null,null,null,null,null,null,null,null,null,null,null,null,null,null,null,null,null,null,null,null,null,null,null,null,null,null,null,null,null,null,null,null,null,null,null,null,null,null,null,null,null,null,null,null,95,null,null,null,null,null,null,null,null,null,null,null,null,null,null,null,null,null,null,null,null,null,null,null,95,null,null,95,null,null,95,null,null,null,null,null,95,null,null,95]
[null,37,4,null,null,"SM31_FR28","CH-SM-31-FR-12",null,null,null,null,null,null,null,null,{"$f":"IF(CONFIGURATOR!C106>0,(CONCATENATE(\"BESPOKE \",CONFIGURATOR!E106,\" \",CONFIGURATOR!K106,\"IN. \",\"WITH \",CONFIGURATOR!F106,\" LENS \",CONFIGURATOR!H106,\" LED \",CONFIGURATOR!I106,\" \",CONFIGURATOR!M106,\" \",CONFIGURATOR!N106,\"IN. \",CONFIGURATOR!O106,\" WITH \",CONFIGURATOR!Q106,\" \",CONFIGURATOR!R106,\" \",CONFIGURATOR!V106,CONFIGURATOR!S106 )),\"\")","v":""},null,null,null,null,null,null,null,null,null,null,null,null,null,null,null,null,null,null,null,null,null,null,null,null,null,null,null,null,null,null,null,null,null,null,null,null,null,null,null,null,null,null,null,null,null,null,null,null,null,null,96,null,null,null,null,null,null,null,null,null,null,null,null,null,null,null,null,null,null,null,null,null,null,null,96,null,null,96,null,null,96,null,null,null,null,null,96,null,null,96]
[null,38,4,null,null,"SM31_FR29","CH-SM-31-FR-12"]
[null,39,4,null,null,"SM31_FR30","CH-SM-31-FR-12"]
[null,40,4,null,null,"SM31_FR31","CH-SM-31-FR-12"]
[null,41,4,null,null,"SM31_FR32","CH-SM-31-FR-12"]
[null,42,4,null,null,"SM31_FR33","CH-SM-31-FR-12"]
[null,43,4,null,null,"SM31_FR34","CH-SM-31-FR-12"]
[null,44,4,null,null,"SM31_FR35","CH-SM-31-FR-12",null,null,null,null,null,null,null,"A",{"$f":"IF(CONFIGURATOR!C114>0,CONCATENATE(\"CBF\",CONFIGURATOR!E114,CONFIGURATOR!F114,CONFIGURATOR!K114,CONFIGURATOR!H114,CONFIGURATOR!J114,CONFIGURATOR!L114,\"I\",CONFIGURATOR!N114,CONFIGURATOR!U114,CONFIGURATOR!R114),\"\")","v":""}]
[null,45,4,null,null,"SM31_FR36","CH-SM-31-FR-12",null,null,null,null,null,null,null,null,{"$f":"IF(CONFIGURATOR!C114>0,(CONCATENATE(\"BESPOKE \",CONFIGURATOR!E114,\" \",CONFIGURATOR!K114,\"IN. \",\"WITH \",CONFIGURATOR!F114,\" LENS \",CONFIGURATOR!H114,\" LED \",CONFIGURATOR!I114,\" \",CONFIGURATOR!M114,\" \",CONFIGURATOR!N114,\"IN. \",CONFIGURATOR!O114,\" WITH \",CONFIGURATOR!Q114,\" \",CONFIGURATOR!R114,\" \",CONFIGURATOR!T114,CONFIGURATOR!S114 )),\"\")","v":""}]
[null,46,4,null,null,"SM31_FR37","CH-SM-31-FR-12"]
[null,47,4,null,null,"SM31_FR38","CH-SM-31-FR-12"]
[null,48,4,null,null,"SM31_FR39","CH-SM-31-FR-12"]
[null,49,5,null,null,"SM31_FR40","CH-SM-31-FR-12"]
[null,50,5,null,null,"SM31_FR41","CH-SM-31-FR-12"]
[null,51,5,null,null,"SM31_FR42","CH-SM-31-FR-12"]
[null,52,5,null,null,"SM31_FR43","CH-SM-31-FR-12"]
[null,53,5,null,null,"SM31_FR44","CH-SM-31-FR-12"]
[null,54,5,null,null,"SM31_FR45","CH-SM-31-FR-12"]
[null,55,5,null,null,"SM31_FR46","CH-SM-31-FR-12"]
[null,56,5,null,null,"SM31_FR47","CH-SM-31-FR-12"]
[null,57,5,null,null,"SM31_FR48","CH-SM-31-FR-12"]
[null,58,5,null,null,"SM31_FR49","CH-SM-31-FR-12"]
[null,59,5,null,null,"SM31_FR50","CH-SM-31-FR-12"]
[null,60,5,null,null,"SM31_FR51","CH-SM-31-FR-12"]
[null,61,6,null,null,"SM31_FR52","CH-SM-31-FR-12"]
[null,62,6,null,null,"SM31_FR53","CH-SM-31-FR-12"]
[null,63,6,null,null,"SM31_FR54","CH-SM-31-FR-12"]
[null,64,6,null,null,"SM31_FR55","CH-SM-31-FR-12"]
[null,65,6,null,null,"SM31_FR56","CH-SM-31-FR-12"]
[null,66,6,null,null,"SM31_FR57","CH-SM-31-FR-12"]
[null,67,6,null,null,"SM31_FR58","CH-SM-31-FR-12"]
[null,68,6,null,null,"SM31_FR59","CH-SM-31-FR-12"]
[null,69,6,null,null,"SM31_FR60","CH-SM-31-FR-12"]
[null,70,6,null,null,"SM31_FR61","CH-SM-31-FR-12"]
[null,71,6,null,null,"SM31_FR62","CH-SM-31-FR-12"]
[null,72,6,null,null,"SM31_FR63","CH-SM-31-FR-12"]
[null,73,7,null,null,"SM31_FR64","CH-SM-31-FR-12"]
[null,74,7,null,null,"SM31_FR65","CH-SM-31-FR-12"]
[null,75,7,null,null,"SM31_FR66","CH-SM-31-FR-12"]
[null,76,7,null,null,"SM31_FR67","CH-SM-31-FR-12"]
[null,77,7,null,null,"SM31_FR68","CH-SM-31-FR-12"]
[null,78,7,null,null,"SM31_FR69","CH-SM-31-FR-12"]
[null,79,7,null,null,"SM31_FR70","CH-SM-31-FR-12"]
[null,80,7,null,null,"SM31_FR71","CH-SM-31-FR-12"]
[null,81,7,null,null,"SM31_FR72","CH-SM-31-FR-12"]
[null,82,7,null,null,"SM31_FR73","CH-SM-31-96","CH-SM-312-LC-FR"]
[null,83,7,null,null,"SM31_FR74","CH-SM-31-96","CH-SM-312-LC-FR"]
[null,84,7,null,null,"SM31_FR75","CH-SM-31-96","CH-SM-312-LC-FR"]
[null,85,8,null,null,"SM31_FR76","CH-SM-31-96","CH-SM-312-LC-FR"]
[null,86,8,null,null,"SM31_FR77","CH-SM-31-96","CH-SM-312-LC-FR"]
[null,87,8,null,null,"SM31_FR78","CH-SM-31-96","CH-SM-312-LC-FR"]
[null,88,8,null,null,"SM31_FR79","CH-SM-31-96","CH-SM-312-LC-FR"]
[null,89,8,null,null,"SM31_FR80","CH-SM-31-96","CH-SM-312-LC-FR"]
[null,90,8,null,null,"SM31_FR81","CH-SM-31-96","CH-SM-312-LC-FR"]
[null,91,8,null,null,"SM31_FR82","CH-SM-31-96","CH-SM-312-LC-FR"]
[null,92,8,null,null,"SM31_FR83","CH-SM-31-96","CH-SM-312-LC-FR"]
[null,93,8,null,null,"SM31_FR84","CH-SM-31-96","CH-SM-312-LC-FR"]
[null,94,8,null,null,"SM31_FR85","CH-SM-31-96","CH-SM-312-LC-FR"]
[null,95,8,null,null,"SM31_FR86","CH-SM-31-96","CH-SM-312-LC-FR"]
[null,96,8,null,null,"SM31_FR87","CH-SM-31-96","CH-SM-312-LC-FR"]
[null,null,null,null,null,"SM31_FR88","CH-SM-31-96","CH-SM-312-LC-FR"]
[null,null,null,null,null,"SM31_FR89","CH-SM-31-96","CH-SM-312-LC-FR"]
[null,null,null,null,null,"SM31_FR90","CH-SM-31-96","CH-SM-312-LC-FR"]
[null,null,null,null,null,"SM31_FR91","CH-SM-31-96","CH-SM-312-LC-FR"]
[null,null,null,null,null,"SM31_FR92","CH-SM-31-96","CH-SM-312-LC-FR"]
[null,null,null,null,null,"SM31_FR93","CH-SM-31-96","CH-SM-312-LC-FR"]
[null,null,null,null,null,"SM31_FR94","CH-SM-31-96","CH-SM-312-LC-FR"]
[null,null,null,null,null,"SM31_FR95","CH-SM-31-96","CH-SM-312-LC-FR"]
[null,null,null,null,null,"SM31_FR96","CH-SM-31-96","CH-SM-312-LC-FR"]
[null,null,null,null,null,"SM31_OP1","CH-SM-31-OP-12"]
[null,null,null,null,null,"SM31_OP2","CH-SM-31-OP-12"]
[null,null,null,null,null,"SM31_OP3","CH-SM-31-OP-12"]
[null,null,null,null,null,"SM31_OP4","CH-SM-31-OP-12"]
[null,null,null,null,null,"SM31_OP5","CH-SM-31-OP-12"]
[null,null,null,null,null,"SM31_OP6","CH-SM-31-OP-12"]
[null,null,null,null,null,"SM31_OP7","CH-SM-31-OP-12"]
[null,null,null,null,null,"SM31_OP8","CH-SM-31-OP-12"]
[null,null,null,null,null,"SM31_OP9","CH-SM-31-OP-12"]
[null,null,null,null,null,"SM31_OP10","CH-SM-31-OP-12"]
[null,null,null,null,null,"SM31_OP11","CH-SM-31-OP-12"]
[null,null,null,null,null,"SM31_OP12","CH-SM-31-OP-12"]
[null,null,null,null,null,"SM31_OP13","CH-SM-31-OP-12"]
[null,null,null,null,null,"SM31_OP14","CH-SM-31-OP-12"]
[null,null,null,null,null,"SM31_OP15","CH-SM-31-OP-12"]
[null,null,null,null,null,"SM31_OP16","CH-SM-31-OP-12"]
[null,null,null,null,null,"SM31_OP17","CH-SM-31-OP-12"]
[null,null,null,null,null,"SM31_OP18","CH-SM-31-OP-12"]
[null,null,null,null,null,"SM31_OP19","CH-SM-31-OP-12"]
[null,null,null,null,null,"SM31_OP20","CH-SM-31-OP-12"]
[null,null,null,null,null,"SM31_OP21","CH-SM-31-OP-12"]
[null,null,null,null,null,"SM31_OP22","CH-SM-31-OP-12"]
[null,null,null,null,null,"SM31_OP23","CH-SM-31-OP-12"]
[null,null,null,null,null,"SM31_OP24","CH-SM-31-OP-12"]
[null,null,null,null,null,"SM31_OP25","CH-SM-31-OP-12"]
[null,null,null,null,null,"SM31_OP26","CH-SM-31-OP-12"]
[null,null,null,null,null,"SM31_OP27","CH-SM-31-OP-12"]
[null,null,null,null,null,"SM31_OP28","CH-SM-31-OP-12"]
[null,null,null,null,null,"SM31_OP29","CH-SM-31-OP-12"]
[null,null,null,null,null,"SM31_OP30","CH-SM-31-OP-12"]
[null,null,null,null,null,"SM31_OP31","CH-SM-31-OP-12"]
[null,null,null,null,null,"SM31_OP32","CH-SM-31-OP-12"]
[null,null,null,null,null,"SM31_OP33","CH-SM-31-OP-12"]
[null,null,null,null,null,"SM31_OP34","CH-SM-31-OP-12"]
[null,null,null,null,null,"SM31_OP35","CH-SM-31-OP-12"]
[null,null,null,null,null,"SM31_OP36","CH-SM-31-OP-12"]
[null,null,null,null,null,"SM31_OP37","CH-SM-31-OP-12"]
[null,null,null,null,null,"SM31_OP38","CH-SM-31-OP-12"]
[null,null,null,null,null,"SM31_OP39","CH-SM-31-OP-12"]
[null,null,null,null,null,"SM31_OP40","CH-SM-31-OP-12"]
[null,null,null,null,null,"SM31_OP41","CH-SM-31-OP-12"]
[null,null,null,null,null,"SM31_OP42","CH-SM-31-OP-12"]
[null,null,null,null,null,"SM31_OP43","CH-SM-31-OP-12"]
[null,null,null,null,null,"SM31_OP44","CH-SM-31-OP-12"]
[null,null,null,null,null,"SM31_OP45","CH-SM-31-OP-12"]
[null,null,null,null,null,"SM31_OP46","CH-SM-31-OP-12"]
[null,null,null,null,null,"SM31_OP47","CH-SM-31-OP-12"]
[null,null,null,null,null,"SM31_OP48","CH-SM-31-OP-12"]
[null,null,null,null,null,"SM31_OP49","CH-SM-31-OP-12"]
[null,null,null,null,null,"SM31_OP50","CH-SM-31-OP-12"]
[null,null,null,null,null,"SM31_OP51","CH-SM-31-OP-12"]
[null,null,null,null,null,"SM31_OP52","CH-SM-31-OP-12"]
[null,null,null,null,null,"SM31_OP53","CH-SM-31-OP-12"]
[null,null,null,null,null,"SM31_OP54","CH-SM-31-OP-12"]
[null,null,null,null,null,"SM31_OP55","CH-SM-31-OP-12"]
[null,null,null,null,null,"SM31_OP56","CH-SM-31-OP-12"]
[null,null,null,null,null,"SM31_OP57","CH-SM-31-OP-12"]
[null,null,null,null,null,"SM31_OP58","CH-SM-31-OP-12"]
[null,null,null,null,null,"SM31_OP59","CH-SM-31-OP-12"]
[null,null,null,null,null,"SM31_OP60","CH-SM-31-OP-12"]
[null,null,null,null,null,"SM31_OP61","CH-SM-31-OP-12"]
[null,null,null,null,null,"SM31_OP62","CH-SM-31-OP-12"]
[null,null,null,null,null,"SM31_OP63","CH-SM-31-OP-12"]
[null,null,null,null,null,"SM31_OP64","CH-SM-31-OP-12"]
[null,null,null,null,null,"SM31_OP65","CH-SM-31-OP-12"]
[null,null,null,null,null,"SM31_OP66","CH-SM-31-OP-12"]
[null,null,null,null,null,"SM31_OP67","CH-SM-31-OP-12"]
[null,null,null,null,null,"SM31_OP68","CH-SM-31-OP-12"]
[null,null,null,null,null,"SM31_OP69","CH-SM-31-OP-12"]
[null,null,null,null,null,"SM31_OP70","CH-SM-31-OP-12"]
[null,null,null,null,null,"SM31_OP71","CH-SM-31-OP-12"]
[null,null,null,null,null,"SM31_OP72","CH-SM-31-OP-12"]
[null,null,null,null,null,"SM31_OP73","CH-SM-31-96","CH-SM-312-LC-FR"]
[null,null,null,null,null,"SM31_OP74","CH-SM-31-96","CH-SM-312-LC-FR"]
[null,null,null,null,null,"SM31_OP75","CH-SM-31-96","CH-SM-312-LC-FR"]
[null,null,null,null,null,"SM31_OP76","CH-SM-31-96","CH-SM-312-LC-FR"]
[null,null,null,null,null,"SM31_OP77","CH-SM-31-96","CH-SM-312-LC-FR"]
[null,null,null,null,null,"SM31_OP78","CH-SM-31-96","CH-SM-312-LC-FR"]
[null,null,null,null,null,"SM31_OP79","CH-SM-31-96","CH-SM-312-LC-FR"]
[null,null,null,null,null,"SM31_OP80","CH-SM-31-96","CH-SM-312-LC-FR"]
[null,null,null,null,null,"SM31_OP81","CH-SM-31-96","CH-SM-312-LC-FR"]
[null,null,null,null,null,"SM31_OP82","CH-SM-31-96","CH-SM-312-LC-FR"]
[null,null,null,null,null,"SM31_OP83","CH-SM-31-96","CH-SM-312-LC-FR"]
[null,null,null,null,null,"SM31_OP84","CH-SM-31-96","CH-SM-312-LC-FR"]
[null,null,null,null,null,"SM31_OP85","CH-SM-31-96","CH-SM-312-LC-FR"]
[null,null,null,null,null,"SM31_OP86","CH-SM-31-96","CH-SM-312-LC-FR"]
[null,null,null,null,null,"SM31_OP87","CH-SM-31-96","CH-SM-312-LC-FR"]
[null,null,null,null,null,"SM31_OP88","CH-SM-31-96","CH-SM-312-LC-FR"]
[null,null,null,null,null,"SM31_OP89","CH-SM-31-96","CH-SM-312-LC-FR"]
[null,null,null,null,null,"SM31_OP90","CH-SM-31-96","CH-SM-312-LC-FR"]
[null,null,null,null,null,"SM31_OP91","CH-SM-31-96","CH-SM-312-LC-FR"]
[null,null,null,null,null,"SM31_OP92","CH-SM-31-96","CH-SM-312-LC-FR"]
[null,null,null,null,null,"SM31_OP93","CH-SM-31-96","CH-SM-312-LC-FR"]
[null,null,null,null,null,"SM31_OP94","CH-SM-31-96","CH-SM-312-LC-FR"]
[null,null,null,null,null,"SM31_OP95","CH-SM-31-96","CH-SM-312-LC-FR"]
[null,null,null,null,null,"SM31_OP96","CH-SM-31-96","CH-SM-312-LC-FR"]
[null,null,null,null,null,"SM31_FR601","CH-SM-31-FR60-12"]
[null,null,null,null,null,"SM31_FR602","CH-SM-31-FR60-12"]
[null,null,null,null,null,"SM31_FR603","CH-SM-31-FR60-12"]
[null,null,null,null,null,"SM31_FR604","CH-SM-31-FR60-12"]
[null,null,null,null,null,"SM31_FR605","CH-SM-31-FR60-12"]
[null,null,null,null,null,"SM31_FR606","CH-SM-31-FR60-12"]
[null,null,null,null,null,"SM31_FR607","CH-SM-31-FR60-12"]
[null,null,null,null,null,"SM31_FR608","CH-SM-31-FR60-12"]
[null,null,null,null,null,"SM31_FR609","CH-SM-31-FR60-12"]
[null,null,null,null,null,"SM31_FR6010","CH-SM-31-FR60-12"]
[null,null,null,null,null,"SM31_FR6011","CH-SM-31-FR60-12"]
[null,null,null,null,null,"SM31_FR6012","CH-SM-31-FR60-12"]
[null,null,null,null,null,"SM31_FR6013","CH-SM-31-FR60-12"]
[null,null,null,null,null,"SM31_FR6014","CH-SM-31-FR60-12"]
[null,null,null,null,null,"SM31_FR6015","CH-SM-31-FR60-12"]
[null,null,null,null,null,"SM31_FR6016","CH-SM-31-FR60-12"]
[null,null,null,null,null,"SM31_FR6017","CH-SM-31-FR60-12"]
[null,null,null,null,null,"SM31_FR6018","CH-SM-31-FR60-12"]
[null,null,null,null,null,"SM31_FR6019","CH-SM-31-FR60-12"]
[null,null,null,null,null,"SM31_FR6020","CH-SM-31-FR60-12"]
[null,null,null,null,null,"SM31_FR6021","CH-SM-31-FR60-12"]
[null,null,null,null,null,"SM31_FR6022","CH-SM-31-FR60-12"]
[null,null,null,null,null,"SM31_FR6023","CH-SM-31-FR60-12"]
[null,null,null,null,null,"SM31_FR6024","CH-SM-31-FR60-12"]
[null,null,null,null,null,"SM31_FR6025","CH-SM-31-FR60-12"]
[null,null,null,null,null,"SM31_FR6026","CH-SM-31-FR60-12"]
[null,null,null,null,null,"SM31_FR6027","CH-SM-31-FR60-12"]
[null,null,null,null,null,"SM31_FR6028","CH-SM-31-FR60-12"]
[null,null,null,null,null,"SM31_FR6029","CH-SM-31-FR60-12"]
[null,null,null,null,null,"SM31_FR6030","CH-SM-31-FR60-12"]
[null,null,null,null,null,"SM31_FR6031","CH-SM-31-FR60-12"]
[null,null,null,null,null,"SM31_FR6032","CH-SM-31-FR60-12"]
[null,null,null,null,null,"SM31_FR6033","CH-SM-31-FR60-12"]
[null,null,null,null,null,"SM31_FR6034","CH-SM-31-FR60-12"]
[null,null,null,null,null,"SM31_FR6035","CH-SM-31-FR60-12"]
[null,null,null,null,null,"SM31_FR6036","CH-SM-31-FR60-12"]
[null,null,null,null,null,"SM31_FR6037","CH-SM-31-FR60-12"]
[null,null,null,null,null,"SM31_FR6038","CH-SM-31-FR60-12"]
[null,null,null,null,null,"SM31_FR6039","CH-SM-31-FR60-12"]
[null,null,null,null,null,"SM31_FR6040","CH-SM-31-FR60-12"]
[null,null,null,null,null,"SM31_FR6041","CH-SM-31-FR60-12"]
[null,null,null,null,null,"SM31_FR6042","CH-SM-31-FR60-12"]
[null,null,null,null,null,"SM31_FR6043","CH-SM-31-FR60-12"]
[null,null,null,null,null,"SM31_FR6044","CH-SM-31-FR60-12"]
[null,null,null,null,null,"SM31_FR6045","CH-SM-31-FR60-12"]
[null,null,null,null,null,"SM31_FR6046","CH-SM-31-FR60-12"]
[null,null,null,null,null,"SM31_FR6047","CH-SM-31-FR60-12"]
[null,null,null,null,null,"SM31_FR6048","CH-SM-31-FR60-12"]
[null,null,null,null,null,"SM31_FR6049","CH-SM-31-FR60-12"]
[null,null,null,null,null,"SM31_FR6050","CH-SM-31-FR60-12"]
[null,null,null,null,null,"SM31_FR6051","CH-SM-31-FR60-12"]
[null,null,null,null,null,"SM31_FR6052","CH-SM-31-FR60-12"]
[null,null,null,null,null,"SM31_FR6053","CH-SM-31-FR60-12"]
[null,null,null,null,null,"SM31_FR6054","CH-SM-31-FR60-12"]
[null,null,null,null,null,"SM31_FR6055","CH-SM-31-FR60-12"]
[null,null,null,null,null,"SM31_FR6056","CH-SM-31-FR60-12"]
[null,null,null,null,null,"SM31_FR6057","CH-SM-31-FR60-12"]
[null,null,null,null,null,"SM31_FR6058","CH-SM-31-FR60-12"]
[null,null,null,null,null,"SM31_FR6059","CH-SM-31-FR60-12"]
[null,null,null,null,null,"SM31_FR6060","CH-SM-31-FR60-12"]
[null,null,null,null,null,"SM31_FR6061","CH-SM-31-FR60-12"]
[null,null,null,null,null,"SM31_FR6062","CH-SM-31-FR60-12"]
[null,null,null,null,null,"SM31_FR6063","CH-SM-31-FR60-12"]
[null,null,null,null,null,"SM31_FR6064","CH-SM-31-FR60-12"]
[null,null,null,null,null,"SM31_FR6065","CH-SM-31-FR60-12"]
[null,null,null,null,null,"SM31_FR6066","CH-SM-31-FR60-12"]
[null,null,null,null,null,"SM31_FR6067","CH-SM-31-FR60-12"]
[null,null,null,null,null,"SM31_FR6068","CH-SM-31-FR60-12"]
[null,null,null,null,null,"SM31_FR6069","CH-SM-31-FR60-12"]
[null,null,null,null,null,"SM31_FR6070","CH-SM-31-FR60-12"]
[null,null,null,null,null,"SM31_FR6071","CH-SM-31-FR60-12"]
[null,null,null,null,null,"SM31_FR6072","CH-SM-31-FR60-12"]
[null,null,null,null,null,"SM31_FR6073","CH-SM-31-FR60-96-12"]
[null,null,null,null,null,"SM31_FR6074","CH-SM-31-FR60-96-12"]
[null,null,null,null,null,"SM31_FR6075","CH-SM-31-FR60-96-12"]
[null,null,null,null,null,"SM31_FR6076","CH-SM-31-FR60-96-12"]
[null,null,null,null,null,"SM31_FR6077","CH-SM-31-FR60-96-12"]
[null,null,null,null,null,"SM31_FR6078","CH-SM-31-FR60-96-12"]
[null,null,null,null,null,"SM31_FR6079","CH-SM-31-FR60-96-12"]
[null,null,null,null,null,"SM31_FR6080","CH-SM-31-FR60-96-12"]
[null,null,null,null,null,"SM31_FR6081","CH-SM-31-FR60-96-12"]
[null,null,null,null,null,"SM31_FR6082","CH-SM-31-FR60-96-12"]
[null,null,null,null,null,"SM31_FR6083","CH-SM-31-FR60-96-12"]
[null,null,null,null,null,"SM31_FR6084","CH-SM-31-FR60-96-12"]
[null,null,null,null,null,"SM31_FR6085","CH-SM-31-FR60-96-12"]
[null,null,null,null,null,"SM31_FR6086","CH-SM-31-FR60-96-12"]
[null,null,null,null,null,"SM31_FR6087","CH-SM-31-FR60-96-12"]
[null,null,null,null,null,"SM31_FR6088","CH-SM-31-FR60-96-12"]
[null,null,null,null,null,"SM31_FR6089","CH-SM-31-FR60-96-12"]
[null,null,null,null,null,"SM31_FR6090","CH-SM-31-FR60-96-12"]
[null,null,null,null,null,"SM31_FR6091","CH-SM-31-FR60-96-12"]
[null,null,null,null,null,"SM31_FR6092","CH-SM-31-FR60-96-12"]
[null,null,null,null,null,"SM31_FR6093","CH-SM-31-FR60-96-12"]
[null,null,null,null,null,"SM31_FR6094","CH-SM-31-FR60-96-12"]
[null,null,null,null,null,"SM31_FR6095","CH-SM-31-FR60-96-12"]
[null,null,null,null,null,"SM31_FR6096","CH-SM-31-FR60-96-12"]
[null,null,null,null,null,"SM35_AROP1","CH-SM-35-AROP-12"]
[null,null,null,null,null,"SM35_AROP2","CH-SM-35-AROP-12"]
[null,null,null,null,null,"SM35_AROP3","CH-SM-35-AROP-12"]
[null,null,null,null,null,"SM35_AROP4","CH-SM-35-AROP-12"]
[null,null,null,null,null,"SM35_AROP5","CH-SM-35-AROP-12"]
[null,null,null,null,null,"SM35_AROP6","CH-SM-35-AROP-12"]
[null,null,null,null,null,"SM35_AROP7","CH-SM-35-AROP-12"]
[null,null,null,null,null,"SM35_AROP8","CH-SM-35-AROP-12"]
[null,null,null,null,null,"SM35_AROP9","CH-SM-35-AROP-12"]
[null,null,null,null,null,"SM35_AROP10","CH-SM-35-AROP-12"]
[null,null,null,null,null,"SM35_AROP11","CH-SM-35-AROP-12"]
[null,null,null,null,null,"SM35_AROP12","CH-SM-35-AROP-12"]
[null,null,null,null,null,"SM35_AROP13","CH-SM-35-AROP-12"]
[null,null,null,null,null,"SM35_AROP14","CH-SM-35-AROP-12"]
[null,null,null,null,null,"SM35_AROP15","CH-SM-35-AROP-12"]
[null,null,null,null,null,"SM35_AROP16","CH-SM-35-AROP-12"]
[null,null,null,null,null,"SM35_AROP17","CH-SM-35-AROP-12"]
[null,null,null,null,null,"SM35_AROP18","CH-SM-35-AROP-12"]
[null,null,null,null,null,"SM35_AROP19","CH-SM-35-AROP-12"]
[null,null,null,null,null,"SM35_AROP20","CH-SM-35-AROP-12"]
[null,null,null,null,null,"SM35_AROP21","CH-SM-35-AROP-12"]
[null,null,null,null,null,"SM35_AROP22","CH-SM-35-AROP-12"]
[null,null,null,null,null,"SM35_AROP23","CH-SM-35-AROP-12"]
[null,null,null,null,null,"SM35_AROP24","CH-SM-35-AROP-12"]
[null,null,null,null,null,"SM35_AROP25","CH-SM-35-AROP-12"]
[null,null,null,null,null,"SM35_AROP26","CH-SM-35-AROP-12"]
[null,null,null,null,null,"SM35_AROP27","CH-SM-35-AROP-12"]
[null,null,null,null,null,"SM35_AROP28","CH-SM-35-AROP-12"]
[null,null,null,null,null,"SM35_AROP29","CH-SM-35-AROP-12"]
[null,null,null,null,null,"SM35_AROP30","CH-SM-35-AROP-12"]
[null,null,null,null,null,"SM35_AROP31","CH-SM-35-AROP-12"]
[null,null,null,null,null,"SM35_AROP32","CH-SM-35-AROP-12"]
[null,null,null,null,null,"SM35_AROP33","CH-SM-35-AROP-12"]
[null,null,null,null,null,"SM35_AROP34","CH-SM-35-AROP-12"]
[null,null,null,null,null,"SM35_AROP35","CH-SM-35-AROP-12"]
[null,null,null,null,null,"SM35_AROP36","CH-SM-35-AROP-12"]
[null,null,null,null,null,"SM35_AROP37","CH-SM-35-AROP-12"]
[null,null,null,null,null,"SM35_AROP38","CH-SM-35-AROP-12"]
[null,null,null,null,null,"SM35_AROP39","CH-SM-35-AROP-12"]
[null,null,null,null,null,"SM35_AROP40","CH-SM-35-AROP-12"]
[null,null,null,null,null,"SM35_AROP41","CH-SM-35-AROP-12"]
[null,null,null,null,null,"SM35_AROP42","CH-SM-35-AROP-12"]
[null,null,null,null,null,"SM35_AROP43","CH-SM-35-AROP-12"]
[null,null,null,null,null,"SM35_AROP44","CH-SM-35-AROP-12"]
[null,null,null,null,null,"SM35_AROP45","CH-SM-35-AROP-12"]
[null,null,null,null,null,"SM35_AROP46","CH-SM-35-AROP-12"]
[null,null,null,null,null,"SM35_AROP47","CH-SM-35-AROP-12"]
[null,null,null,null,null,"SM35_AROP48","CH-SM-35-AROP-12"]
[null,null,null,null,null,"SM35_AROP49","CH-SM-35-AROP-12"]
[null,null,null,null,null,"SM35_AROP50","CH-SM-35-AROP-12"]
[null,null,null,null,null,"SM35_AROP51","CH-SM-35-AROP-12"]
[null,null,null,null,null,"SM35_AROP52","CH-SM-35-AROP-12"]
[null,null,null,null,null,"SM35_AROP53","CH-SM-35-AROP-12"]
[null,null,null,null,null,"SM35_AROP54","CH-SM-35-AROP-12"]
[null,null,null,null,null,"SM35_AROP55","CH-SM-35-AROP-12"]
[null,null,null,null,null,"SM35_AROP56","CH-SM-35-AROP-12"]
[null,null,null,null,null,"SM35_AROP57","CH-SM-35-AROP-12"]
[null,null,null,null,null,"SM35_AROP58","CH-SM-35-AROP-12"]
[null,null,null,null,null,"SM35_AROP59","CH-SM-35-AROP-12"]
[null,null,null,null,null,"SM35_AROP60","CH-SM-35-AROP-12"]
[null,null,null,null,null,"SM35_AROP61","CH-SM-35-AROP-12"]
[null,null,null,null,null,"SM35_AROP62","CH-SM-35-AROP-12"]
[null,null,null,null,null,"SM35_AROP63","CH-SM-35-AROP-12"]
[null,null,null,null,null,"SM35_AROP64","CH-SM-35-AROP-12"]
[null,null,null,null,null,"SM35_AROP65","CH-SM-35-AROP-12"]
[null,null,null,null,null,"SM35_AROP66","CH-SM-35-AROP-12"]
[null,null,null,null,null,"SM35_AROP67","CH-SM-35-AROP-12"]
[null,null,null,null,null,"SM35_AROP68","CH-SM-35-AROP-12"]
[null,null,null,null,null,"SM35_AROP69","CH-SM-35-AROP-12"]
[null,null,null,null,null,"SM35_AROP70","CH-SM-35-AROP-12"]
[null,null,null,null,null,"SM35_AROP71","CH-SM-35-AROP-12"]
[null,null,null,null,null,"SM35_AROP72","CH-SM-35-AROP-12"]
[null,null,null,null,null,"SM35_ARFR1","CH-SM-35-ARFR-12"]
[null,null,null,null,null,"SM35_ARFR2","CH-SM-35-ARFR-12"]
[null,null,null,null,null,"SM35_ARFR3","CH-SM-35-ARFR-12"]
[null,null,null,null,null,"SM35_ARFR4","CH-SM-35-ARFR-12"]
[null,null,null,null,null,"SM35_ARFR5","CH-SM-35-ARFR-12"]
[null,null,null,null,null,"SM35_ARFR6","CH-SM-35-ARFR-12"]
[null,null,null,null,null,"SM35_ARFR7","CH-SM-35-ARFR-12"]
[null,null,null,null,null,"SM35_ARFR8","CH-SM-35-ARFR-12"]
[null,null,null,null,null,"SM35_ARFR9","CH-SM-35-ARFR-12"]
[null,null,null,null,null,"SM35_ARFR10","CH-SM-35-ARFR-12"]
[null,null,null,null,null,"SM35_ARFR11","CH-SM-35-ARFR-12"]
[null,null,null,null,null,"SM35_ARFR12","CH-SM-35-ARFR-12"]
[null,null,null,null,null,"SM35_ARFR13","CH-SM-35-ARFR-12"]
[null,null,null,null,null,"SM35_ARFR14","CH-SM-35-ARFR-12"]
[null,null,null,null,null,"SM35_ARFR15","CH-SM-35-ARFR-12"]
[null,null,null,null,null,"SM35_ARFR16","CH-SM-35-ARFR-12"]
[null,null,null,null,null,"SM35_ARFR17","CH-SM-35-ARFR-12"]
[null,null,null,null,null,"SM35_ARFR18","CH-SM-35-ARFR-12"]
[null,null,null,null,null,"SM35_ARFR19","CH-SM-35-ARFR-12"]
[null,null,null,null,null,"SM35_ARFR20","CH-SM-35-ARFR-12"]
[null,null,null,null,null,"SM35_ARFR21","CH-SM-35-ARFR-12"]
[null,null,null,null,null,"SM35_ARFR22","CH-SM-35-ARFR-12"]
[null,null,null,null,null,"SM35_ARFR23","CH-SM-35-ARFR-12"]
[null,null,null,null,null,"SM35_ARFR24","CH-SM-35-ARFR-12"]
[null,null,null,null,null,"SM35_ARFR25","CH-SM-35-ARFR-12"]
[null,null,null,null,null,"SM35_ARFR26","CH-SM-35-ARFR-12"]
[null,null,null,null,null,"SM35_ARFR27","CH-SM-35-ARFR-12"]
[null,null,null,null,null,"SM35_ARFR28","CH-SM-35-ARFR-12"]
[null,null,null,null,null,"SM35_ARFR29","CH-SM-35-ARFR-12"]
[null,null,null,null,null,"SM35_ARFR30","CH-SM-35-ARFR-12"]
[null,null,null,null,null,"SM35_ARFR31","CH-SM-35-ARFR-12"]
[null,null,null,null,null,"SM35_ARFR32","CH-SM-35-ARFR-12"]
[null,null,null,null,null,"SM35_ARFR33","CH-SM-35-ARFR-12"]
[null,null,null,null,null,"SM35_ARFR34","CH-SM-35-ARFR-12"]
[null,null,null,null,null,"SM35_ARFR35","CH-SM-35-ARFR-12"]
[null,null,null,null,null,"SM35_ARFR36","CH-SM-35-ARFR-12"]
[null,null,null,null,null,"SM35_ARFR37","CH-SM-35-ARFR-12"]
[null,null,null,null,null,"SM35_ARFR38","CH-SM-35-ARFR-12"]
[null,null,null,null,null,"SM35_ARFR39","CH-SM-35-ARFR-12"]
[null,null,null,null,null,"SM35_ARFR40","CH-SM-35-ARFR-12"]
[null,null,null,null,null,"SM35_ARFR41","CH-SM-35-ARFR-12"]
[null,null,null,null,null,"SM35_ARFR42","CH-SM-35-ARFR-12"]
[null,null,null,null,null,"SM35_ARFR43","CH-SM-35-ARFR-12"]
[null,null,null,null,null,"SM35_ARFR44","CH-SM-35-ARFR-12"]
[null,null,null,null,null,"SM35_ARFR45","CH-SM-35-ARFR-12"]
[null,null,null,null,null,"SM35_ARFR46","CH-SM-35-ARFR-12"]
[null,null,null,null,null,"SM35_ARFR47","CH-SM-35-ARFR-12"]
[null,null,null,null,null,"SM35_ARFR48","CH-SM-35-ARFR-12"]
[null,null,null,null,null,"SM35_ARFR49","CH-SM-35-ARFR-12"]
[null,null,null,null,null,"SM35_ARFR50","CH-SM-35-ARFR-12"]
[null,null,null,null,null,"SM35_ARFR51","CH-SM-35-ARFR-12"]
[null,null,null,null,null,"SM35_ARFR52","CH-SM-35-ARFR-12"]
[null,null,null,null,null,"SM35_ARFR53","CH-SM-35-ARFR-12"]
[null,null,null,null,null,"SM35_ARFR54","CH-SM-35-ARFR-12"]
[null,null,null,null,null,"SM35_ARFR55","CH-SM-35-ARFR-12"]
[null,null,null,null,null,"SM35_ARFR56","CH-SM-35-ARFR-12"]
[null,null,null,null,null,"SM35_ARFR57","CH-SM-35-ARFR-12"]
[null,null,null,null,null,"SM35_ARFR58","CH-SM-35-ARFR-12"]
[null,null,null,null,null,"SM35_ARFR59","CH-SM-35-ARFR-12"]
[null,null,null,null,null,"SM35_ARFR60","CH-SM-35-ARFR-12"]
[null,null,null,null,null,"SM35_ARFR61","CH-SM-35-ARFR-12"]
[null,null,null,null,null,"SM35_ARFR62","CH-SM-35-ARFR-12"]
[null,null,null,null,null,"SM35_ARFR63","CH-SM-35-ARFR-12"]
[null,null,null,null,null,"SM35_ARFR64","CH-SM-35-ARFR-12"]
[null,null,null,null,null,"SM35_ARFR65","CH-SM-35-ARFR-12"]
[null,null,null,null,null,"SM35_ARFR66","CH-SM-35-ARFR-12"]
[null,null,null,null,null,"SM35_ARFR67","CH-SM-35-ARFR-12"]
[null,null,null,null,null,"SM35_ARFR68","CH-SM-35-ARFR-12"]
[null,null,null,null,null,"SM35_ARFR69","CH-SM-35-ARFR-12"]
[null,null,null,null,null,"SM35_ARFR70","CH-SM-35-ARFR-12"]
[null,null,null,null,null,"SM35_ARFR71","CH-SM-35-ARFR-12"]
[null,null,null,null,null,"SM35_ARFR72","CH-SM-35-ARFR-12"]
[null,null,null,null,null,"SM35_TROP1","CH-SM-35-TROP-12"]
[null,null,null,null,null,"SM35_TROP2","CH-SM-35-TROP-12"]
[null,null,null,null,null,"SM35_TROP3","CH-SM-35-TROP-12"]
[null,null,null,null,null,"SM35_TROP4","CH-SM-35-TROP-12"]
[null,null,null,null,null,"SM35_TROP5","CH-SM-35-TROP-12"]
[null,null,null,null,null,"SM35_TROP6","CH-SM-35-TROP-12"]
[null,null,null,null,null,"SM35_TROP7","CH-SM-35-TROP-12"]
[null,null,null,null,null,"SM35_TROP8","CH-SM-35-TROP-12"]
[null,null,null,null,null,"SM35_TROP9","CH-SM-35-TROP-12"]
[null,null,null,null,null,"SM35_TROP10","CH-SM-35-TROP-12"]
[null,null,null,null,null,"SM35_TROP11","CH-SM-35-TROP-12"]
[null,null,null,null,null,"SM35_TROP12","CH-SM-35-TROP-12"]
[null,null,null,null,null,"SM35_TROP13","CH-SM-35-TROP-12"]
[null,null,null,null,null,"SM35_TROP14","CH-SM-35-TROP-12"]
[null,null,null,null,null,"SM35_TROP15","CH-SM-35-TROP-12"]
[null,null,null,null,null,"SM35_TROP16","CH-SM-35-TROP-12"]
[null,null,null,null,null,"SM35_TROP17","CH-SM-35-TROP-12"]
[null,null,null,null,null,"SM35_TROP18","CH-SM-35-TROP-12"]
[null,null,null,null,null,"SM35_TROP19","CH-SM-35-TROP-12"]
[null,null,null,null,null,"SM35_TROP20","CH-SM-35-TROP-12"]
[null,null,null,null,null,"SM35_TROP21","CH-SM-35-TROP-12"]
[null,null,null,null,null,"SM35_TROP22","CH-SM-35-TROP-12"]
[null,null,null,null,null,"SM35_TROP23","CH-SM-35-TROP-12"]
[null,null,null,null,null,"SM35_TROP24","CH-SM-35-TROP-12"]
[null,null,null,null,null,"SM35_TROP25","CH-SM-35-TROP-12"]
[null,null,null,null,null,"SM35_TROP26","CH-SM-35-TROP-12"]
[null,null,null,null,null,"SM35_TROP27","CH-SM-35-TROP-12"]
[null,null,null,null,null,"SM35_TROP28","CH-SM-35-TROP-12"]
[null,null,null,null,null,"SM35_TROP29","CH-SM-35-TROP-12"]
[null,null,null,null,null,"SM35_TROP30","CH-SM-35-TROP-12"]
[null,null,null,null,null,"SM35_TROP31","CH-SM-35-TROP-12"]
[null,null,null,null,null,"SM35_TROP32","CH-SM-35-TROP-12"]
[null,null,null,null,null,"SM35_TROP33","CH-SM-35-TROP-12"]
[null,null,null,null,null,"SM35_TROP34","CH-SM-35-TROP-12"]
[null,null,null,null,null,"SM35_TROP35","CH-SM-35-TROP-12"]
[null,null,null,null,null,"SM35_TROP36","CH-SM-35-TROP-12"]
[null,null,null,null,null,"SM35_TROP37","CH-SM-35-TROP-12"]
[null,null,null,null,null,"SM35_TROP38","CH-SM-35-TROP-12"]
[null,null,null,null,null,"SM35_TROP39","CH-SM-35-TROP-12"]
[null,null,null,null,null,"SM35_TROP40","CH-SM-35-TROP-12"]
[null,null,null,null,null,"SM35_TROP41","CH-SM-35-TROP-12"]
[null,null,null,null,null,"SM35_TROP42","CH-SM-35-TROP-12"]
[null,null,null,null,null,"SM35_TROP43","CH-SM-35-TROP-12"]
[null,null,null,null,null,"SM35_TROP44","CH-SM-35-TROP-12"]
[null,null,null,null,null,"SM35_TROP45","CH-SM-35-TROP-12"]
[null,null,null,null,null,"SM35_TROP46","CH-SM-35-TROP-12"]
[null,null,null,null,null,"SM35_TROP47","CH-SM-35-TROP-12"]
[null,null,null,null,null,"SM35_TROP48","CH-SM-35-TROP-12"]
[null,null,null,null,null,"SM35_TROP49","CH-SM-35-TROP-12"]
[null,null,null,null,null,"SM35_TROP50","CH-SM-35-TROP-12"]
[null,null,null,null,null,"SM35_TROP51","CH-SM-35-TROP-12"]
[null,null,null,null,null,"SM35_TROP52","CH-SM-35-TROP-12"]
[null,null,null,null,null,"SM35_TROP53","CH-SM-35-TROP-12"]
[null,null,null,null,null,"SM35_TROP54","CH-SM-35-TROP-12"]
[null,null,null,null,null,"SM35_TROP55","CH-SM-35-TROP-12"]
[null,null,null,null,null,"SM35_TROP56","CH-SM-35-TROP-12"]
[null,null,null,null,null,"SM35_TROP57","CH-SM-35-TROP-12"]
[null,null,null,null,null,"SM35_TROP58","CH-SM-35-TROP-12"]
[null,null,null,null,null,"SM35_TROP59","CH-SM-35-TROP-12"]
[null,null,null,null,null,"SM35_TROP60","CH-SM-35-TROP-12"]
[null,null,null,null,null,"SM35_TROP61","CH-SM-35-TROP-12"]
[null,null,null,null,null,"SM35_TROP62","CH-SM-35-TROP-12"]
[null,null,null,null,null,"SM35_TROP63","CH-SM-35-TROP-12"]
[null,null,null,null,null,"SM35_TROP64","CH-SM-35-TROP-12"]
[null,null,null,null,null,"SM35_TROP65","CH-SM-35-TROP-12"]
[null,null,null,null,null,"SM35_TROP66","CH-SM-35-TROP-12"]
[null,null,null,null,null,"SM35_TROP67","CH-SM-35-TROP-12"]
[null,null,null,null,null,"SM35_TROP68","CH-SM-35-TROP-12"]
[null,null,null,null,null,"SM35_TROP69","CH-SM-35-TROP-12"]
[null,null,null,null,null,"SM35_TROP70","CH-SM-35-TROP-12"]
[null,null,null,null,null,"SM35_TROP71","CH-SM-35-TROP-12"]
[null,null,null,null,null,"SM35_TROP72","CH-SM-35-TROP-12"]